{"text_format":"1","workbook":"xlsx","n_sheets":22,"sheets":["-38","-42","-46","-50","-55","-60","-66","-73","-81","+81","-90","+90","-44","-48","-52","-57","-63","-70","+70","-78","+78","Parameters"],"not_rendered":{"charts":0,"images":3,"macros":1,"external_links":1,"defined_names":59,"comments":0,"pivot_tables":0},"unopened":[],"bounds":{"document_bytes":16777216,"sheet_cells":100000,"rows_first":2000,"rows_last":500,"rows_between":2000,"halvings":0,"cell_chars":16384,"cell_head_chars":4096},"cells_cut":0,"cells_raw":0,"read":"whole","date_system":"1900"}

{"sheet":"-38","index":0,"n_rows":36,"n_cols":45,"rows_kept":36,"cut":false,"hidden":false,"merged":[]}
[null,null,null,null,null,null,null,null,"CADETES"]
[null,null,null,null,null,null,null,null,"-38",null,null,"LISBOA","CASTELO BRANCO","COIMBRA","SETÚBAL","VIANA CASTELO","I.TERCEIRA","COIMBRA","SANTARÉM","LISBOA","MADEIRA","AÇORES","SETÚBAL","COIMBRA","LISBOA","MADEIRA","C.BRANCO","SETÚBAL","VISEU","SANTARÉM","AÇORES","FPJ","Leiria","Lisboa","Castelo Branco","Coimbra","Leiria","Setúbal","Coimbra","V. Castelo","Santarém","Lisboa","Madeira","Setúbal","Coimbra"]
[null,null,null,null,null,null,null,null,null,null,null,"2016-04-09","2016-04-17","2016-04-30","2016-04-30","2016-06-18","2016-06-25","2016-06-26","2016-07-03","2016-10-22","2016-11-12","2016-11-19","2016-11-19","2016-12-17","2017-01-14","2017-01-14","2017-01-21","2017-01-21","2017-01-21","2017-01-21","2017-01-21","2017-02-11","2017-02-18","2017-04-01","2017-04-22","2017-04-29","2017-04-29","2017-05-13","2017-06-17","2017-06-17","2017-07-02","2017-11-11","2017-11-11","2017-11-18","2017-12-16"]
["Género","Categoria",null,"LF",null,"NOME","Ano de Nascimento","Associação","CLUBE","Somatório de pontos","Número de provas","OPEN CADETES","OPEN MESTRE ANTONIO MORAIS","OPEN INT. CIDADE BARCELOS","OPEN MONTIJO CADETES","OPEN INT. CIDADE DE VALENÇA","TORNEIO DE SÃO JOÃO","TAÇA ANTONIO ALEIXO","OPEN INT. ADJ SANTARÉM","OPEN CADETES","OPEN CADETES","OPEN PONTA DELGADA","OPEN PRAGAL","OPEN CADETES","Zonal de Cadetes","Zonal de Cadetes","Zonal de Cadetes","Zonal de Cadetes","Zonal de Cadetes","Zonal de Cadetes","Zonal de Cadetes","Camp.Nac. Cadetes","Torneio Associativo","Open Cadetes","Open Cadetes \"Mestre António Morais\"","OPEN INT. CIDADE BARCELOS","Torneio Associativo","Taça Cidade do Montijo","V Taça António Lopes Aleixo","III Open Int. Eurocidade Valença Tui","V Open Int. Cadetes","Open Cadetes","Open Cadetes","Torneio Aniversário JC Pragal","Open Cadetes"]
[]
["Masculino","-38",1,119490,{"$f":"COUNTIF(D:D,D6)","v":1},"Guilherme Gaspar",2002,"Coimbra","Associação Académica de Coimbra",{"$f":"SUM(L6:AW6)","v":18},{"$f":"COUNT(L6:AW6)","v":3},null,null,null,null,null,null,null,null,null,null,null,null,6,null,null,null,null,null,6,null,6]
["Masculino","-38",2,130632,{"$f":"COUNTIF(D:D,D7)","v":1},"Francisco Santos",2002,"Coimbra","Montanha Clube",{"$f":"SUM(L7:AW7)","v":6},{"$f":"COUNT(L7:AW7)","v":3},null,null,null,null,null,null,null,null,null,null,null,null,1,null,null,null,null,null,1,null,4]
["Masculino","-38",3,151119,{"$f":"COUNTIF(D:D,D8)","v":1},"Ricardo Marques",2002,"Lisboa","Sport Lisboa e Benfica",{"$f":"SUM(L8:AW8)","v":1},{"$f":"COUNT(L8:AW8)","v":1},null,null,null,null,null,null,null,null,null,null,null,null,null,null,null,null,null,null,null,null,1]
["Masculino","-38",4,null,{"$f":"COUNTIF(D:D,D9)","v":0},null,null,null,null,{"$f":"SUM(L9:AW9)","v":0},{"$f":"COUNT(L9:AW9)","v":0}]
["Masculino","-38",5,null,0,null,null,null,null,0,0]
["Masculino","-38",6,null,0,null,null,null,null,0,0]
["Masculino","-38",7,null,0,null,null,null,null,0,0]
["Masculino","-38",8,null,0,null,null,null,null,0,0]
["Masculino","-38",9,null,0,null,null,null,null,0,0]
["Masculino","-38",10,null,0,null,null,null,null,0,0]
["Masculino","-38",11,null,0,null,null,null,null,0,0]
["Masculino","-38",12,null,0,null,null,null,null,0,0]
["Masculino","-38",13,null,0,null,null,null,null,0,0]
["Masculino","-38",14,null,0,null,null,null,null,0,0]
["Masculino","-38",15,null,0,null,null,null,null,0,0]
["Masculino","-38",16,null,0,null,null,null,null,0,0]
["Masculino","-38",17,null,0,null,null,null,null,0,0]
["Masculino","-38",18,null,0,null,null,null,null,0,0]
["Masculino","-38",19,null,0,null,null,null,null,0,0]
["Masculino","-38",20,null,0,null,null,null,null,0,0]
["Masculino","-38",21,null,0,null,null,null,null,0,0]
["Masculino","-38",22,null,0,null,null,null,null,0,0]
["Masculino","-38",23,null,0,null,null,null,null,0,0]
["Masculino","-38",24,null,0,null,null,null,null,0,0]
["Masculino","-38",25,null,0,null,null,null,null,0,0]
["Masculino","-38",26,null,0,null,null,null,null,0,0]
["Masculino","-38",27,null,0,null,null,null,null,0,0]
["Masculino","-38",28,null,0,null,null,null,null,0,0]
["Masculino","-38",29,null,0,null,null,null,null,0,0]
["Masculino","-38",30,null,0,null,null,null,null,0,0]
["Masculino","-38",31,null,0,null,null,null,null,0,0]

{"sheet":"-42","index":1,"n_rows":33,"n_cols":45,"rows_kept":33,"cut":false,"hidden":false,"merged":[]}
[null,null,null,null,null,null,null,null,"CADETES"]
[null,null,null,null,null,null,null,null,"-42",null,null,"LISBOA","CASTELO BRANCO","COIMBRA","SETÚBAL","VIANA CASTELO","I.TERCEIRA","COIMBRA","SANTARÉM","LISBOA","MADEIRA","AÇORES","SETÚBAL","COIMBRA","LISBOA","MADEIRA","C.BRANCO","SETÚBAL","VISEU","SANTARÉM","AÇORES","FPJ","Leiria","Lisboa","Castelo Branco","Coimbra","Leiria","Setúbal","Coimbra","V. Castelo","Santarém","Lisboa","Madeira","Setúbal","Coimbra"]
[null,null,null,null,null,null,null,null,null,null,null,"2016-04-09","2016-04-17","2016-04-30","2016-04-30","2016-06-18","2016-06-25","2016-06-26","2016-07-03","2016-10-22","2016-11-12","2016-11-19","2016-11-19","2016-12-17","2017-01-14","2017-01-14","2017-01-21","2017-01-21","2017-01-21","2017-01-21","2017-01-21","2017-02-11","2017-02-18","2017-04-01","2017-04-22","2017-04-29","2017-04-29","2017-05-13","2017-06-17","2017-06-17","2017-07-02","2017-11-11","2017-11-11","2017-11-18","2017-12-16"]
["Género","Categoria",null,"LF",null,"NOME","Ano de Nascimento","Associação","CLUBE","Somatório de pontos","Número de provas","OPEN CADETES","OPEN MESTRE ANTONIO MORAIS","OPEN INT. CIDADE BARCELOS","OPEN MONTIJO CADETES","OPEN INT. CIDADE DE VALENÇA","TORNEIO DE SÃO JOÃO","TAÇA ANTONIO ALEIXO","OPEN INT. ADJ SANTARÉM","OPEN CADETES","OPEN CADETES","OPEN PONTA DELGADA","OPEN PRAGAL","OPEN CADETES","Zonal de Cadetes","Zonal de Cadetes","Zonal de Cadetes","Zonal de Cadetes","Zonal de Cadetes","Zonal de Cadetes","Zonal de Cadetes","Camp.Nac. Cadetes","Torneio Associativo","Open Cadetes","Open Cadetes \"Mestre António Morais\"","OPEN INT. CIDADE BARCELOS","Torneio Associativo","Taça Cidade do Montijo","V Taça António Lopes Aleixo","III Open Int. Eurocidade Valença Tui","V Open Int. Cadetes","Open Cadetes","Open Cadetes","Torneio Aniversário JC Pragal","Open Cadetes"]
[]
["Masculino","-42",1,115084,{"$f":"COUNTIF(D:D,D6)","v":1},"Guilherme Lopes",2002,"Santarém","Sporting Clube de Tomar",{"$f":"SUM(L6:AW6)","v":23},{"$f":"COUNT(L6:AW6)","v":4},null,null,null,null,null,null,null,null,6,null,null,null,6,null,null,null,null,null,1,null,10]
["Masculino","-42",2,145111,{"$f":"COUNTIF(D:D,D7)","v":1},"Gustavo Guerreiro",2001,"Algarve","Academia Chushin Associação",{"$f":"SUM(L7:AW7)","v":18},{"$f":"COUNT(L7:AW7)","v":4},3,6,null,null,null,null,null,null,4,null,null,5]
["Masculino","-42",3,120184,{"$f":"COUNTIF(D:D,D8)","v":1},"José Bentes",2002,"Lisboa","Universidade Lusofona de Humanidades de Tecnologias",{"$f":"SUM(L8:AW8)","v":15},{"$f":"COUNT(L8:AW8)","v":3},null,null,null,null,null,null,null,null,null,null,null,1,null,8,null,null,null,null,null,null,6]
["Masculino","-42",4,148517,{"$f":"COUNTIF(D:D,D9)","v":1},"O'Neil Melo",2002,"Lisboa","Academia de Judo da Amadora",{"$f":"SUM(L9:AW9)","v":7},{"$f":"COUNT(L9:AW9)","v":3},null,null,null,null,null,null,null,null,null,null,null,null,1,4,null,null,null,null,null,null,2]
["Masculino","-42",5,116004,{"$f":"COUNTIF(D:D,D10)","v":1},"Duarte Lufinha",2001,"Lisboa","Colégio Marista de Carcavelos",{"$f":"SUM(L10:AW10)","v":6},{"$f":"COUNT(L10:AW10)","v":1},6]
["Masculino","-42",6,133425,{"$f":"COUNTIF(D:D,D11)","v":1},"Rui Pereira",2002,"Lisboa","Sport Algés e Dafundo",{"$f":"SUM(L11:AW11)","v":6},{"$f":"COUNT(L11:AW11)","v":1},null,null,null,null,null,null,null,null,null,null,null,null,null,6]
["Masculino","-42",7,126073,{"$f":"COUNTIF(D:D,D12)","v":1},"Mykyta Fuklyev",2002,"Lisboa","Judo Clube Lisboa",{"$f":"SUM(L12:AW12)","v":5},{"$f":"COUNT(L12:AW12)","v":2},null,null,null,null,null,null,null,null,1,null,null,null,4]
["Masculino","-42",8,137761,{"$f":"COUNTIF(D:D,D13)","v":1},"Nuno Soares",2002,"I. Terceira","Judo Clube São Carlos",{"$f":"SUM(L13:AW13)","v":4},{"$f":"COUNT(L13:AW13)","v":1},null,null,null,null,null,null,null,null,null,null,null,null,null,null,null,null,null,null,null,null,4]
["Masculino","-42",9,143461,{"$f":"COUNTIF(D:D,D14)","v":1},"Rafael Duarte",2002,"Lisboa","Casa do Povo do Conc3elho do Cadaval",{"$f":"SUM(L14:AW14)","v":2},{"$f":"COUNT(L14:AW14)","v":1},null,null,null,null,null,null,null,null,null,null,null,null,null,2]
["Masculino","-42",10,132749,{"$f":"COUNTIF(D:D,D15)","v":1},"João Fonseca",2001,"C.Branco","Academia de Judo de Castelo Branco",{"$f":"SUM(L15:AW15)","v":1},{"$f":"COUNT(L15:AW15)","v":1},null,1]
["Masculino","-42",11,145988,{"$f":"COUNTIF(D:D,D16)","v":1},"Bruno Bicas",2001,"Beja","Associação Bombeiros Voluntários de Beja",{"$f":"SUM(L16:AW16)","v":1},{"$f":"COUNT(L16:AW16)","v":1},1]
["Masculino","-42",12,151119,1,"Ricardo Marques",2002,"Lisboa","Sport Lisboa e Benfica",{"$f":"SUM(L17:AW17)","v":1},{"$f":"COUNT(L17:AW17)","v":1},null,null,null,null,null,null,null,null,null,null,null,null,null,1]
["Masculino","-42",13,118563,{"$f":"COUNTIF(D:D,D18)","v":1},"Pedro Alves",2002,"C.Branco","Escola de Judo Ana Hormigo",{"$f":"SUM(L18:AW18)","v":1},{"$f":"COUNT(L18:AW18)","v":1},null,null,null,null,null,null,null,null,null,null,null,null,null,null,null,null,null,null,null,null,1]
["Masculino","-42",14,null,{"$f":"COUNTIF(D:D,D19)","v":0},null,null,null,null,{"$f":"SUM(L19:AW19)","v":0},{"$f":"COUNT(L19:AW19)","v":0}]
["Masculino","-42",15,null,0,null,null,null,null,0,0]
["Masculino","-42",16,null,0,null,null,null,null,0,0]
["Masculino","-42",17,null,0,null,null,null,null,0,0]
["Masculino","-42",18,null,0,null,null,null,null,0,0]
["Masculino","-42",19,null,0,null,null,null,null,0,0]
["Masculino","-42",20,null,0,null,null,null,null,0,0]
["Masculino","-42",21,null,0,null,null,null,null,0,0]
["Masculino","-42",22,null,0,null,null,null,null,0,0]
["Masculino","-42",23,null,0,null,null,null,null,0,0]
["Masculino","-42",24,null,0,null,null,null,null,0,0]
["Masculino","-42",25,null,0,null,null,null,null,0,0]
["Masculino","-42",26,null,0,null,null,null,null,0,0]
["Masculino","-42",27,null,0,null,null,null,null,0,0]
[null,null,null,null,null,null,null,null,null,0,0]

{"sheet":"-46","index":2,"n_rows":62,"n_cols":45,"rows_kept":62,"cut":false,"hidden":false,"merged":[]}
[null,null,null,null,null,null,null,null,"CADETES"]
[null,null,null,null,null,null,null,null,"-46",null,null,"LISBOA","CASTELO BRANCO","COIMBRA","SETÚBAL","VIANA CASTELO","I.TERCEIRA","COIMBRA","SANTARÉM","LISBOA","MADEIRA","AÇORES","SETÚBAL","COIMBRA","LISBOA","MADEIRA","C.BRANCO","SETÚBAL","VISEU","SANTARÉM","AÇORES","FPJ","Leiria","Lisboa","Castelo Branco","Coimbra","Leiria","Setúbal","Coimbra","V. Castelo","Santarém","Lisboa","Madeira","Setúbal","Coimbra"]
[null,null,null,null,null,null,null,null,null,null,null,"2016-04-09","2016-04-17","2016-04-30","2016-04-30","2016-06-18","2016-06-25","2016-06-26","2016-07-03","2016-10-22","2016-11-12","2016-11-19","2016-11-19","2016-12-17","2017-01-14","2017-01-14","2017-01-21","2017-01-21","2017-01-21","2017-01-21","2017-01-21","2017-02-11","2017-02-18","2017-04-01","2017-04-22","2017-04-29","2017-04-29","2017-05-13","2017-06-17","2017-06-17","2017-07-02","2017-11-11","2017-11-11","2017-11-18","2017-12-16"]
["Género","Categoria",null,"LF",null,"NOME","Ano de Nascimento","Associação","CLUBE","Somatório de pontos","Número de provas","OPEN CADETES","OPEN MESTRE ANTONIO MORAIS","OPEN INT. CIDADE BARCELOS","OPEN MONTIJO CADETES","OPEN INT. CIDADE DE VALENÇA","TORNEIO DE SÃO JOÃO","TAÇA ANTONIO ALEIXO","OPEN INT. ADJ SANTARÉM","OPEN CADETES","OPEN CADETES","OPEN PONTA DELGADA","OPEN PRAGAL","OPEN CADETES","Zonal de Cadetes","Zonal de Cadetes","Zonal de Cadetes","Zonal de Cadetes","Zonal de Cadetes","Zonal de Cadetes","Zonal de Cadetes","Camp.Nac. Cadetes","Torneio Associativo","Open Cadetes","Open Cadetes \"Mestre António Morais\"","OPEN INT. CIDADE BARCELOS","Torneio Associativo","Taça Cidade do Montijo","V Taça António Lopes Aleixo","III Open Int. Eurocidade Valença Tui","V Open Int. Cadetes","Open Cadetes","Open Cadetes","Torneio Aniversário JC Pragal","Open Cadetes"]
[]
["Masculino","-46",1,123496,{"$f":"COUNTIF(D:D,D6)","v":1},"Bernardo Ribeiro",2001,"Santarém","Sport Clube Operário Cem Soldos",{"$f":"SUM(L6:AW6)","v":27},{"$f":"COUNT(L6:AW6)","v":4},5,6,null,10,null,null,6]
["Masculino","-46",2,139830,{"$f":"COUNTIF(D:D,D7)","v":1},"Daniel Damásio",2002,"Santarém","Sociedade Filarmonia Gualdim Pais",{"$f":"SUM(L7:AW7)","v":26},{"$f":"COUNT(L7:AW7)","v":5},null,null,null,null,null,null,null,null,7,null,null,4,6,null,null,null,null,null,6,null,3]
["Masculino","-46",3,131817,{"$f":"COUNTIF(D:D,D8)","v":1},"Guilherme Alves",2002,"Lisboa","Oficinas São José",{"$f":"SUM(L8:AW8)","v":24},{"$f":"COUNT(L8:AW8)","v":3},null,null,null,null,null,null,null,null,9,null,null,8,null,null,null,null,null,null,null,null,7]
["Masculino","-46",4,123135,{"$f":"COUNTIF(D:D,D9)","v":1},"Ricardo Pires",2002,"Setúbal","Judo Clube Pinhal Novo",{"$f":"SUM(L9:AW9)","v":22},{"$f":"COUNT(L9:AW9)","v":4},null,null,null,null,null,null,null,null,4,null,null,6,null,null,null,null,6,null,null,null,6]
["Masculino","-46",5,116004,{"$f":"COUNTIF(D:D,D10)","v":1},"Duarte Lufinha",2001,"Lisboa","Colégio Marista de Carcavelos",{"$f":"SUM(L10:AW10)","v":18},{"$f":"COUNT(L10:AW10)","v":4},null,null,null,null,null,null,null,null,3,null,null,1,null,5,null,null,null,null,null,null,9]
["Masculino","-46",6,145001,{"$f":"COUNTIF(D:D,D11)","v":1},"Daniel Jesus",2002,"Algarve","Judo Clube de Portimão",{"$f":"SUM(L11:AW11)","v":17},{"$f":"COUNT(L11:AW11)","v":2},null,null,null,null,null,null,null,null,null,null,null,null,null,null,null,null,4,null,null,null,13]
["Masculino","-46",7,114599,{"$f":"COUNTIF(D:D,D12)","v":1},"João Maximo",2002,"Lisboa","Judo Clubede Sintra",{"$f":"SUM(L12:AW12)","v":10},{"$f":"COUNT(L12:AW12)","v":2},null,null,null,null,null,null,null,null,null,null,null,null,null,6,null,null,null,null,null,null,4]
["Masculino","-46",8,143359,{"$f":"COUNTIF(D:D,D13)","v":1},"José Lebre",2002,"Santarém","Sociedade Filarmonia Gualdim Pais",{"$f":"SUM(L13:AW13)","v":10},{"$f":"COUNT(L13:AW13)","v":5},null,null,null,null,null,null,null,null,1,null,null,2,1,null,null,null,null,null,4,null,2]
["Masculino","-46",9,131214,{"$f":"COUNTIF(D:D,D14)","v":1},"Vicente Santos",2001,"Lisboa","Ginásio Clube Portugues",{"$f":"SUM(L14:AW14)","v":7},{"$f":"COUNT(L14:AW14)","v":2},1,null,null,null,null,6]
["Masculino","-46",10,134438,{"$f":"COUNTIF(D:D,D15)","v":1},"Gonçalo Ventura",2000,"Setúbal","CCD-Clube Judo Montijo",{"$f":"SUM(L15:AW15)","v":6},{"$f":"COUNT(L15:AW15)","v":1},null,null,null,6]
["Masculino","-46",11,128480,{"$f":"COUNTIF(D:D,D16)","v":1},"Miguel Nogueira",2001,"Setúbal","CCD-Clube Judo Montijo",{"$f":"SUM(L16:AW16)","v":5},{"$f":"COUNT(L16:AW16)","v":2},null,1,null,4]
["Masculino","-46",12,132172,{"$f":"COUNTIF(D:D,D17)","v":1},"Henrique Leitão",2002,"Lisboa","Judo Clube de Portugal",{"$f":"SUM(L17:AW17)","v":5},{"$f":"COUNT(L17:AW17)","v":2},null,null,null,null,null,null,null,null,null,null,null,null,null,4,null,null,null,null,null,null,1]
["Masculino","-46",13,111741,{"$f":"COUNTIF(D:D,D18)","v":1},"Filinto Carvalho",2000,"Açores","Clube Escolar Desp. Escola Basica de Arrifes",{"$f":"SUM(L18:AW18)","v":4},{"$f":"COUNT(L18:AW18)","v":1},null,null,null,null,null,4]
["Masculino","-46",14,120184,{"$f":"COUNTIF(D:D,D19)","v":1},"José Bentes",2002,"Lisboa","Colégio Moderno",{"$f":"SUM(L19:AW19)","v":4},{"$f":"COUNT(L19:AW19)","v":1},null,null,null,null,null,null,null,null,null,null,null,null,4]
["Masculino","-46",15,131932,{"$f":"COUNTIF(D:D,D20)","v":1},"João Ildefonso",2001,"Algarve","Judo Clube de Lagos",{"$f":"SUM(L20:AW20)","v":3},{"$f":"COUNT(L20:AW20)","v":1},null,null,null,3]
["Masculino","-46",16,145111,{"$f":"COUNTIF(D:D,D21)","v":1},"Gustavo Guerreiro",2001,"Algarve","Academia Chushin Associação",{"$f":"SUM(L21:AW21)","v":2},{"$f":"COUNT(L21:AW21)","v":2},null,null,null,1,null,null,null,null,null,null,null,null,null,null,null,null,null,null,null,null,1]
["Masculino","-46",17,138244,{"$f":"COUNTIF(D:D,D22)","v":1},"Gonçalo Franco",2001,"Lisboa","Judo Clube Lisboa",{"$f":"SUM(L22:AW22)","v":1},{"$f":"COUNT(L22:AW22)","v":1},null,null,null,null,null,null,1]
["Masculino","-46",18,133688,{"$f":"COUNTIF(D:D,D23)","v":1},"Pedro Fernandes",2001,"I.Terceira","Clube de Judo Praia da Vitória",{"$f":"SUM(L23:AW23)","v":1},{"$f":"COUNT(L23:AW23)","v":1},null,null,null,null,null,1]
["Masculino","-46",19,130870,{"$f":"COUNTIF(D:D,D24)","v":1},"Bruno Bidarra",2001,"Lisboa","Grupo Recreativo Gonçalvinhense",{"$f":"SUM(L24:AW24)","v":1},{"$f":"COUNT(L24:AW24)","v":1},null,null,null,1]
["Masculino","-46",20,149503,{"$f":"COUNTIF(D:D,D25)","v":1},"Rafael Rosa",2000,"Santarém","Judo Clube Salvaterra de Magos",{"$f":"SUM(L25:AW25)","v":1},{"$f":"COUNT(L25:AW25)","v":1},null,null,null,null,null,null,null,null,1]
["Masculino","-46",21,126073,{"$f":"COUNTIF(D:D,D26)","v":1},"Mykyta Fuhlyev",2002,"Lisboa","Judo Clube de Lisboa",{"$f":"SUM(L26:AW26)","v":1},{"$f":"COUNT(L26:AW26)","v":1},null,null,null,null,null,null,null,null,null,null,null,null,null,1]
["Masculino","-46",22,137761,{"$f":"COUNTIF(D:D,D27)","v":1},"Nuno Soares",2002,"I.Terceira","Judo Clube de São Carlos",{"$f":"SUM(L27:AW27)","v":1},{"$f":"COUNT(L27:AW27)","v":1},null,null,null,null,null,null,null,null,null,null,null,null,null,null,null,null,null,null,null,1]
["Masculino","-46",23,118563,{"$f":"COUNTIF(D:D,D28)","v":1},"Pedro Alves",2002,"C.Branco","Associação Escola Judo Ana Hormigo",{"$f":"SUM(L28:AW28)","v":1},{"$f":"COUNT(L28:AW28)","v":1},null,null,null,null,null,null,null,null,null,null,null,null,null,null,null,1]
["Masculino","-46",24,137589,{"$f":"COUNTIF(D:D,D29)","v":1},"Gonçalo Simão",2001,"Leiria","Escola de Judo de Pombal",{"$f":"SUM(L29:AW29)","v":1},{"$f":"COUNT(L29:AW29)","v":1},null,null,null,null,null,null,null,null,null,null,null,null,null,null,null,null,null,null,1]
["Masculino","-46",25,150758,{"$f":"COUNTIF(D:D,D30)","v":1},"Luis Dedeiras",2000,"Setúbal","Ginásio Clube do Sul",{"$f":"SUM(L30:AW30)","v":1},{"$f":"COUNT(L30:AW30)","v":1},null,null,null,null,null,null,null,null,null,null,null,null,null,null,null,null,1]
["Masculino","-46",26,133425,{"$f":"COUNTIF(D:D,D31)","v":1},"Rui Pereira",2002,"Lisboa","Sport Algés e Dafundo",{"$f":"SUM(L31:AW31)","v":1},{"$f":"COUNT(L31:AW31)","v":1},null,null,null,null,null,null,null,null,null,null,null,null,null,null,null,null,null,null,null,null,1]
["Masculino","-46",27,128745,{"$f":"COUNTIF(D:D,D32)","v":1},"Marcio Lavandeira",2002,"Braga","ARCAP - Associação Recreativa e Cultural \"Amigos da Ponte\"",{"$f":"SUM(L32:AW32)","v":1},{"$f":"COUNT(L32:AW32)","v":1},null,null,null,null,null,null,null,null,null,null,null,null,null,null,null,null,null,null,null,null,1]
["Masculino","-46",28,113282,{"$f":"COUNTIF(D:D,D33)","v":1},"Filipe Sobrinho",2000,"Lisboa","Oficinas São José",{"$f":"SUM(L33:AW33)","v":0},{"$f":"COUNT(L33:AW33)","v":0}]
["Masculino","-46",29,122477,{"$f":"COUNTIF(D:D,D34)","v":1},"Gonçalo Oliveira",2001,"Lisboa","Judo Clube de Lisboa",{"$f":"SUM(L34:AW34)","v":0},{"$f":"COUNT(L34:AW34)","v":0}]
["Masculino","-46",30,122698,{"$f":"COUNTIF(D:D,D35)","v":1},"Tomás Ezequiel",2001,"Lisboa","Judo Clube Portugal",{"$f":"SUM(L35:AW35)","v":0},{"$f":"COUNT(L35:AW35)","v":0}]
["Masculino","-46",31,127973,{"$f":"COUNTIF(D:D,D36)","v":1},"Wilson Tavares",2000,"Lisboa","Sport Lisboa e Benfica",{"$f":"SUM(L36:AW36)","v":0},{"$f":"COUNT(L36:AW36)","v":0}]
["Masculino","-46",32,129975,{"$f":"COUNTIF(D:D,D37)","v":1},"Emanuel Lemos",2001,"Porto","Escola Secundária Fontes Pereira de Melo",{"$f":"SUM(L37:AW37)","v":0},{"$f":"COUNT(L37:AW37)","v":0}]
["Masculino","-46",33,113421,{"$f":"COUNTIF(D:D,D38)","v":1},"Tiago Guerra",2001,"Lisboa","Assoc. Desp. Cul. Encarnação e Olivais",{"$f":"SUM(L38:AW38)","v":0},{"$f":"COUNT(L38:AW38)","v":0}]
["Masculino","-46",34,139769,{"$f":"COUNTIF(D:D,D39)","v":1},"Henrique Gonçalves",2001,"Lisboa","Academia de Judo da Amadora",{"$f":"SUM(L39:AW39)","v":0},{"$f":"COUNT(L39:AW39)","v":0}]
["Masculino","-46",35,139240,{"$f":"COUNTIF(D:D,D40)","v":1},"Ricardo Mendes",2001,"Setúbal","Vitória Futebol Clube",{"$f":"SUM(L40:AW40)","v":0},{"$f":"COUNT(L40:AW40)","v":0}]
["Masculino","-46",36,137546,{"$f":"COUNTIF(D:D,D41)","v":1},"Manuel Ferreira",2001,"Açores","Judo Clube Ponta Delgada",{"$f":"SUM(L41:AW41)","v":0},{"$f":"COUNT(L41:AW41)","v":0}]
["Masculino","-46",37,139561,{"$f":"COUNTIF(D:D,D42)","v":1},"Tomás Ribeiro",2001,"Lisboa","Sport Algés e Dafundo",{"$f":"SUM(L42:AW42)","v":0},{"$f":"COUNT(L42:AW42)","v":0}]
["Masculino","-46",38,123343,{"$f":"COUNTIF(D:D,D43)","v":1},"Bernardo Pires",2000,"Guarda","Sporting Clube Sabugal",{"$f":"SUM(L43:AW43)","v":0},{"$f":"COUNT(L43:AW43)","v":0}]
["Masculino","-46",39,null,{"$f":"COUNTIF(D:D,D44)","v":0},null,null,null,null,{"$f":"SUM(L44:AW44)","v":0},{"$f":"COUNT(L44:AW44)","v":0}]
["Masculino","-46",40,null,{"$f":"COUNTIF(D:D,D45)","v":0},null,null,null,null,{"$f":"SUM(L45:AW45)","v":0},{"$f":"COUNT(L45:AW45)","v":0}]
["Masculino","-46",41,null,{"$f":"COUNTIF(D:D,D46)","v":0},null,null,null,null,{"$f":"SUM(L46:AW46)","v":0},{"$f":"COUNT(L46:AW46)","v":0}]
["Masculino","-46",42,null,{"$f":"COUNTIF(D:D,D47)","v":0},null,null,null,null,{"$f":"SUM(L47:AW47)","v":0},{"$f":"COUNT(L47:AW47)","v":0}]
["Masculino","-46",43,null,{"$f":"COUNTIF(D:D,D48)","v":0},null,null,null,null,{"$f":"SUM(L48:AW48)","v":0},{"$f":"COUNT(L48:AW48)","v":0}]
["Masculino","-46",44,null,{"$f":"COUNTIF(D:D,D49)","v":0},null,null,null,null,{"$f":"SUM(L49:AW49)","v":0},{"$f":"COUNT(L49:AW49)","v":0}]
["Masculino","-46",45,null,{"$f":"COUNTIF(D:D,D50)","v":0},null,null,null,null,{"$f":"SUM(L50:AW50)","v":0},{"$f":"COUNT(L50:AW50)","v":0}]
["Masculino","-46",46,null,{"$f":"COUNTIF(D:D,D51)","v":0},null,null,null,null,{"$f":"SUM(L51:AW51)","v":0},{"$f":"COUNT(L51:AW51)","v":0}]
["Masculino","-46",47,null,{"$f":"COUNTIF(D:D,D52)","v":0},null,null,null,null,{"$f":"SUM(L52:AW52)","v":0},{"$f":"COUNT(L52:AW52)","v":0}]
["Masculino","-46",48,null,{"$f":"COUNTIF(D:D,D53)","v":0},null,null,null,null,{"$f":"SUM(L53:AW53)","v":0},{"$f":"COUNT(L53:AW53)","v":0}]
["Masculino","-46",49,null,{"$f":"COUNTIF(D:D,D54)","v":0},null,null,null,null,{"$f":"SUM(L54:AW54)","v":0},{"$f":"COUNT(L54:AW54)","v":0}]
["Masculino","-46",50,null,0,null,null,null,null,0,0]
["Masculino","-46",51,null,0,null,null,null,null,0,0]
["Masculino","-46",52,null,0,null,null,null,null,0,0]
["Masculino","-46",53,null,0,null,null,null,null,0,0]
["Masculino","-46",54,null,0,null,null,null,null,0,0]
["Masculino","-46",55,null,0,null,null,null,null,0,0]
["Masculino","-46",56,null,0,null,null,null,null,0,0]
["Masculino","-46",57,null,0,null,null,null,null,0,0]

{"sheet":"-50","index":3,"n_rows":77,"n_cols":45,"rows_kept":77,"cut":false,"hidden":false,"merged":[]}
[null,null,null,null,null,null,null,null,"CADETES"]
[null,null,null,null,null,null,null,null,"-50KG ",null,null,"LISBOA","CASTELO BRANCO","COIMBRA","SETÚBAL","VIANA CASTELO","I.TERCEIRA","COIMBRA","SANTARÉM","LISBOA","MADEIRA","AÇORES","SETÚBAL","COIMBRA","LISBOA","MADEIRA","C.BRANCO","SETÚBAL","VISEU","SANTARÉM","AÇORES","FPJ","Leiria","Lisboa","Castelo Branco","Coimbra","Leiria","Setúbal","Coimbra","V. Castelo","Santarém","Lisboa","Madeira","Setúbal","Coimbra"]
[null,null,null,null,null,null,null,null,null,null,null,"2016-04-09","2016-04-17","2016-04-30","2016-04-30","2016-06-18","2016-06-25","2016-06-26","2016-07-03","2016-10-22","2016-11-12","2016-11-19","2016-11-19","2016-12-17","2017-01-14","2017-01-14","2017-01-21","2017-01-21","2017-01-21","2017-01-21","2017-01-21","2017-02-11","2017-02-18","2017-04-01","2017-04-22","2017-04-29","2017-04-29","2017-05-13","2017-06-17","2017-06-17","2017-07-02","2017-11-11","2017-11-11","2017-11-18","2017-12-16"]
["Género","Categoria",null,"LF",null,"NOME","Ano de Nascimento","Associação","CLUBE","Somatório de pontos","Número de provas","OPEN CADETES","OPEN MESTRE ANTONIO MORAIS","OPEN INT. CIDADE BARCELOS","OPEN MONTIJO CADETES","OPEN INT. CIDADE DE VALENÇA","TORNEIO DE SÃO JOÃO","TAÇA ANTONIO ALEIXO","OPEN INT. ADJ SANTARÉM","OPEN CADETES","OPEN CADETES","OPEN PONTA DELGADA","OPEN PRAGAL","OPEN CADETES","Zonal de Cadetes","Zonal de Cadetes","Zonal de Cadetes","Zonal de Cadetes","Zonal de Cadetes","Zonal de Cadetes","Zonal de Cadetes","Camp.Nac. Cadetes","Torneio Associativo","Open Cadetes","Open Cadetes \"Mestre António Morais\"","OPEN INT. CIDADE BARCELOS","Torneio Associativo","Taça Cidade do Montijo","V Taça António Lopes Aleixo","III Open Int. Eurocidade Valença Tui","V Open Int. Cadetes","Open Cadetes","Open Cadetes","Torneio Aniversário JC Pragal","Open Cadetes"]
[]
["Masculino","-50",1,113282,{"$f":"COUNTIF(D:D,D6)","v":1},"Filipe Sobrinho",2000,"Lisboa","Oficinas São José",{"$f":"SUM(L6:AW6)","v":49},{"$f":"COUNT(L6:AG6)","v":5},5,null,null,null,null,null,null,7,null,null,null,12,null,12,null,null,null,null,null,null,13]
["Masculino","-50",2,118770,{"$f":"COUNTIF(D:D,D7)","v":1},"Francisco Soares",2002,"Viseu","Judo Clube de Viseu",{"$f":"SUM(L7:AW7)","v":46},{"$f":"COUNT(L7:AG7)","v":4},null,null,null,null,null,null,null,null,10,null,null,null,12,null,null,null,null,7,null,null,17]
["Masculino","-50",3,123496,{"$f":"COUNTIF(D:D,D8)","v":1},"Bernardo Ribeiro",2001,"Santarém","Sport Clube Operário Cem Soldos",{"$f":"SUM(L8:AW8)","v":36},{"$f":"COUNT(L8:AG8)","v":4},null,null,null,null,null,null,null,null,12,null,null,null,6,null,null,null,null,null,8,null,10]
["Masculino","-50",4,122477,{"$f":"COUNTIF(D:D,D9)","v":1},"Gonçalo Oliveira",2001,"Lisboa","Judo Clube de Lisboa",{"$f":"SUM(L9:AW9)","v":35},{"$f":"COUNT(L9:AG9)","v":3},12,null,null,13,null,null,10]
["Masculino","-50",5,149185,{"$f":"COUNTIF(D:D,D10)","v":1},"Gonçalo Silva",2001,"Setúbal","CCD-Clube Judo Montijo",{"$f":"SUM(L10:AW10)","v":31},{"$f":"COUNT(L10:AG10)","v":5},null,null,null,null,null,null,null,1,6,null,null,7,null,null,null,null,10,null,null,null,7]
["Masculino","-50",6,138244,{"$f":"COUNTIF(D:D,D11)","v":1},"Gonçalo Franco",2001,"Lisboa","Judo Clube Lisboa",{"$f":"SUM(L11:AW11)","v":26},{"$f":"COUNT(L11:AG11)","v":4},10,3,null,6,null,null,null,7]
["Masculino","-50",7,129975,{"$f":"COUNTIF(D:D,D12)","v":1},"Emanuel Lemos",2001,"Porto","Escola Secundária Fontes Pereira de Melo",{"$f":"SUM(L12:AW12)","v":25},{"$f":"COUNT(L12:AG12)","v":4},null,null,1,null,null,null,null,null,null,null,null,null,9,null,null,null,null,5,null,null,10]
["Masculino","-50",8,113421,{"$f":"COUNTIF(D:D,D13)","v":1},"Tiago Guerra",2001,"Lisboa","Assoc. Desp. Cul. Encarnação e Olivais",{"$f":"SUM(L13:AW13)","v":23},{"$f":"COUNT(L13:AG13)","v":6},4,null,null,1,null,null,null,null,6,null,null,3,null,7,null,null,null,null,null,null,2]
["Masculino","-50",9,144349,{"$f":"COUNTIF(D:D,D14)","v":1},"Kaleb Silva",2001,"Lisboa","Escola de Judo Nuno Delgado",{"$f":"SUM(L14:AW14)","v":22},{"$f":"COUNT(L14:AG14)","v":3},null,7,null,6,null,null,null,9]
["Masculino","-50",10,140805,{"$f":"COUNTIF(D:D,D15)","v":1},"Daniel Costa",2001,"Coimbra","Judo Clube Coimbra",{"$f":"SUM(L15:AW15)","v":21},{"$f":"COUNT(L15:AG15)","v":3},null,11,null,null,null,null,7,3]
["Masculino","-50",11,120599,{"$f":"COUNTIF(D:D,D16)","v":1},"Duarte Lopes",2002,"Lisboa","Sporting Clube de Portugal",{"$f":"SUM(L16:AW16)","v":16},{"$f":"COUNT(L16:AG16)","v":2},null,null,null,null,null,null,null,null,null,null,null,null,null,10,null,null,null,null,null,null,6]
["Masculino","-50",12,139769,{"$f":"COUNTIF(D:D,D17)","v":1},"Henrique Gonçalves",2001,"Lisboa","Judo clubede Portugal",{"$f":"SUM(L17:AW17)","v":16},{"$f":"COUNT(L17:AG17)","v":5},4,null,null,3,null,null,null,null,null,null,null,1,null,7,null,null,null,null,null,null,1]
["Masculino","-50",13,128480,{"$f":"COUNTIF(D:D,D18)","v":1},"Miguel Nogueira",2001,"Setúbal","CCD-Clube Judo Montijo",{"$f":"SUM(L18:AW18)","v":13},{"$f":"COUNT(L18:AG18)","v":3},null,null,null,null,null,null,null,1,3,null,null,9]
["Masculino","-50",14,120279,{"$f":"COUNTIF(D:D,D19)","v":1},"Vicente Sousa",2002,"Lisboa","Universidade Lusofona de Humanidades de Tecnologias",{"$f":"SUM(L19:AW19)","v":10},{"$f":"COUNT(L19:AG19)","v":4},null,null,null,null,null,null,null,null,3,null,null,3,null,1,null,null,null,null,null,null,3]
["Masculino","-50",15,145555,{"$f":"COUNTIF(D:D,D20)","v":1},"Miguel Cunha",2001,"Açores","Clube de Judo de Angra do Heroísmo",{"$f":"SUM(L20:AW20)","v":9},{"$f":"COUNT(L20:AG20)","v":2},null,null,null,null,null,null,null,null,null,null,null,null,null,null,null,null,null,null,null,6,3]
["Masculino","-50",16,116339,{"$f":"COUNTIF(D:D,D21)","v":1},"Duarte Diniz",2002,"Santarém","Casa do Povo de Rio Maior",{"$f":"SUM(L21:AW21)","v":8},{"$f":"COUNT(L21:AG21)","v":2},null,null,null,null,null,null,null,null,null,null,null,null,null,null,null,null,null,null,6,null,2]
["Masculino","-50",17,131214,{"$f":"COUNTIF(D:D,D22)","v":1},"Vicente Santos",2001,"Lisboa","Ginásio Clube Portugues",{"$f":"SUM(L22:AW22)","v":7},{"$f":"COUNT(L22:AG22)","v":1},null,null,null,null,null,null,null,null,null,null,null,null,7]
["Masculino","-50",18,134044,{"$f":"COUNTIF(D:D,D23)","v":1},"Luis Veiga",2002,"Algarve","Judo Clube de Portuimão",{"$f":"SUM(L23:AW23)","v":7},{"$f":"COUNT(L23:AG23)","v":2},null,null,null,null,null,null,null,null,null,null,null,null,null,null,null,null,6,null,null,null,1]
["Masculino","-50",19,112730,{"$f":"COUNTIF(D:D,D24)","v":1},"André Diogo",2001,"Coimbra","Judo Clube Coimbra",{"$f":"SUM(L24:AW24)","v":6},{"$f":"COUNT(L24:AG24)","v":1},null,null,6]
["Masculino","-50",20,147476,{"$f":"COUNTIF(D:D,D25)","v":1},"Gilberto Domingos",2002,"Lisboa","Escola de Judo Nuno Delgado",{"$f":"SUM(L25:AW25)","v":6},{"$f":"COUNT(L25:AG25)","v":1},null,null,null,null,null,null,null,null,null,null,null,6]
["Masculino","-50",21,117597,{"$f":"COUNTIF(D:D,D26)","v":1},"Miguel Batista",2000,"Lisboa","ISJudo Associação",{"$f":"SUM(L26:AW26)","v":6},{"$f":"COUNT(L26:AG26)","v":2},null,4,null,null,null,null,2]
["Masculino","-50",22,136266,{"$f":"COUNTIF(D:D,D27)","v":1},"Francisco Martins",2002,"Setúbal","Vitória Futebol Clube",{"$f":"SUM(L27:AW27)","v":6},{"$f":"COUNT(L27:AG27)","v":2},null,null,null,null,null,null,null,null,null,null,null,null,null,null,null,null,3,null,null,null,3]
["Masculino","-50",23,125121,{"$f":"COUNTIF(D:D,D28)","v":1},"Tiago Bento",2000,"Lisboa","Assoc. Desp. Cul. Encarnação e Olivais",{"$f":"SUM(L28:AW28)","v":6},{"$f":"COUNT(L28:AG28)","v":5},1,null,null,1,null,null,null,null,1,null,null,null,null,2,null,null,null,null,null,null,1]
["Masculino","-50",24,112634,{"$f":"COUNTIF(D:D,D29)","v":1},"Tiago Lopes",2001,"Coimbra","Escola de Judo de Coimbra",{"$f":"SUM(L29:AW29)","v":5},{"$f":"COUNT(L29:AG29)","v":1},null,null,null,null,null,null,5]
["Masculino","-50",25,149153,{"$f":"COUNTIF(D:D,D30)","v":1},"Pedro Pereira",2001,"Setúbal","Clube Recrativo Charnequense",{"$f":"SUM(L30:AW30)","v":5},{"$f":"COUNT(L30:AG30)","v":2},null,null,null,4,null,null,1]
["Masculino","-50",26,131932,{"$f":"COUNTIF(D:D,D31)","v":1},"João Ildefonso",2001,"Algarve","Judo Clube de Lagos",{"$f":"SUM(L31:AW31)","v":5},{"$f":"COUNT(L31:AG31)","v":2},1,null,null,null,null,null,null,null,null,null,null,null,null,null,null,null,4]
["Masculino","-50",27,137652,{"$f":"COUNTIF(D:D,D32)","v":1},"Guilherme Pereira",2002,"Santarém","Sporting Clube de Tomar",{"$f":"SUM(L32:AW32)","v":5},{"$f":"COUNT(L32:AG32)","v":2},null,null,null,null,null,null,null,null,null,null,null,null,1,null,null,null,null,null,4]
["Masculino","-50",28,139561,{"$f":"COUNTIF(D:D,D33)","v":1},"Tomás Ribeiro",2001,"Lisboa","Sport Algés e Dafundo",{"$f":"SUM(L33:AW33)","v":5},{"$f":"COUNT(L33:AG33)","v":3},1,1,null,null,null,null,null,3]
["Masculino","-50",29,131817,{"$f":"COUNTIF(D:D,D34)","v":1},"Guilherme Alves",2002,"Lisboa","Oficinas São José",{"$f":"SUM(L34:AW34)","v":4},{"$f":"COUNT(L34:AG34)","v":1},null,null,null,null,null,null,null,null,null,null,null,null,null,4]
["Masculino","-50",30,132171,{"$f":"COUNTIF(D:D,D35)","v":1},"Duarte Leitão",2002,"Lisboa","Judo Clube de Portugal",{"$f":"SUM(L35:AW35)","v":4},{"$f":"COUNT(L35:AG35)","v":1},null,null,null,null,null,null,null,null,null,null,null,null,null,4]
["Masculino","-50",31,115242,{"$f":"COUNTIF(D:D,D36)","v":1},"Afonso Esteves",2001,"Lisboa","Colégio Marista de Carcavelos",{"$f":"SUM(L36:AW36)","v":4},{"$f":"COUNT(L36:AG36)","v":2},2,null,null,null,null,null,null,null,2]
["Masculino","-50",32,119382,{"$f":"COUNTIF(D:D,D37)","v":1},"Francisco Santos",2002,"Setúbal","St. Peters School",{"$f":"SUM(L37:AW37)","v":4},{"$f":"COUNT(L37:AG37)","v":2},null,null,null,null,null,null,null,null,null,null,null,null,null,null,null,null,1,null,null,null,3]
["Masculino","-50",33,130870,{"$f":"COUNTIF(D:D,D38)","v":1},"Bruno Bidarra",2001,"Lisboa","Grupo Recreativo Gonçalvinhense",{"$f":"SUM(L38:AW38)","v":4},{"$f":"COUNT(L38:AG38)","v":3},null,null,null,null,null,null,1,null,null,null,null,null,null,1,null,null,null,null,null,null,2]
["Masculino","-50",34,149914,{"$f":"COUNTIF(D:D,D39)","v":1},"Daniel Duarte",2001,"Coimbra","Montanha Clube",{"$f":"SUM(L39:AW39)","v":3},{"$f":"COUNT(L39:AG39)","v":1},null,null,null,null,null,null,null,null,null,null,null,null,3]
["Masculino","-50",35,131600,{"$f":"COUNTIF(D:D,D40)","v":1},"Gonçalo Monteiro",2002,"Viseu","Dinamo Clube Estação",{"$f":"SUM(L40:AW40)","v":3},{"$f":"COUNT(L40:AG40)","v":1},null,null,null,null,null,null,null,null,null,null,null,null,null,null,null,null,null,3]
["Masculino","-50",36,122698,{"$f":"COUNTIF(D:D,D41)","v":1},"Tomás Ezequiel",2001,"Lisboa","Judo Clube Portugal",{"$f":"SUM(L41:AW41)","v":3},{"$f":"COUNT(L41:AG41)","v":2},1,2]
["Masculino","-50",37,131217,{"$f":"COUNTIF(D:D,D42)","v":1},"Guilherme Venâncio",2002,"Lisboa","Ginásio clube Português",{"$f":"SUM(L42:AW42)","v":3},{"$f":"COUNT(L42:AG42)","v":2},null,null,null,null,null,null,null,null,null,null,null,null,null,2,null,null,null,null,null,null,1]
["Masculino","-50",38,142694,{"$f":"COUNTIF(D:D,D43)","v":1},"Luis Salvador",2001,"Coimbra","Associação Académica de Coimbra",{"$f":"SUM(L43:AW43)","v":3},{"$f":"COUNT(L43:AG43)","v":2},null,null,null,null,null,null,null,null,null,null,null,null,null,null,null,null,null,null,2,null,1]
["Masculino","-50",39,122344,{"$f":"COUNTIF(D:D,D44)","v":1},"João Lopes",2001,"Coimbra","Associação Cristã da Mocidade Coimbra",{"$f":"SUM(L44:AW44)","v":2},{"$f":"COUNT(L44:AG44)","v":1},null,null,null,null,null,null,2]
["Masculino","-50",40,110607,{"$f":"COUNTIF(D:D,D45)","v":1},"Ricardo Ceia",2002,"Lisboa","Escola de Judo Nuno Delgado",{"$f":"SUM(L45:AW45)","v":2},{"$f":"COUNT(L45:AG45)","v":2},null,null,null,null,null,null,null,null,1,null,null,1]
["Masculino","-50",41,148518,{"$f":"COUNTIF(D:D,D46)","v":1},"Sandro Couto",2002,"Lisboa","Academia de Judo da Amadora",{"$f":"SUM(L46:AW46)","v":2},{"$f":"COUNT(L46:AG46)","v":2},null,null,null,null,null,null,null,null,null,null,null,null,1,1]
["Masculino","-50",42,144759,{"$f":"COUNTIF(D:D,D47)","v":1},"Samuel Machado",2002,"Coimbra","Escola de Judo de Coimbra",{"$f":"SUM(L47:AW47)","v":2},{"$f":"COUNT(L47:AG47)","v":2},null,null,null,null,null,null,null,null,null,null,null,null,1,null,null,null,null,null,null,null,1]
["Masculino","-50",43,129939,{"$f":"COUNTIF(D:D,D48)","v":1},"Tomás Monteiro",2002,"Viseu","Dinamo Clube Estação",{"$f":"SUM(L48:AW48)","v":2},{"$f":"COUNT(L48:AG48)","v":2},null,null,null,null,null,null,null,null,null,null,null,null,null,null,null,null,null,1,null,null,1]
["Masculino","-50",44,126745,{"$f":"COUNTIF(D:D,D49)","v":1},"António Luís",2001,"Madeira","Grupo Desportivo APEL",{"$f":"SUM(L49:AW49)","v":1},{"$f":"COUNT(L49:AG49)","v":1},null,null,null,1]
["Masculino","-50",45,132017,{"$f":"COUNTIF(D:D,D50)","v":1},"José Barreira",2002,"Lisboa","Escola de Judo Nuno Delgado",{"$f":"SUM(L50:AW50)","v":1},{"$f":"COUNT(L50:AG50)","v":1},null,null,null,null,null,null,null,null,null,null,null,1]
["Masculino","-50",46,133770,{"$f":"COUNTIF(D:D,D51)","v":1},"Luís Leite",2002,"Porto","Escola Secundária Fontes Pereira de Melo",{"$f":"SUM(L51:AW51)","v":1},{"$f":"COUNT(L51:AG51)","v":1},null,null,null,null,null,null,null,null,null,null,null,null,1]
["Masculino","-50",47,125703,{"$f":"COUNTIF(D:D,D52)","v":1},"Keegan Lowe",2000,"Lisboa","Grupo Recreativo Gonçalvinhense",{"$f":"SUM(L52:AW52)","v":1},{"$f":"COUNT(L52:AG52)","v":1},null,null,null,null,null,null,null,null,null,null,null,null,null,1]
["Masculino","-50",48,137686,{"$f":"COUNTIF(D:D,D53)","v":1},"Alexandre Mantúa",2002,"Açores","JUDOLAG - Judo Clube Lagoa",{"$f":"SUM(L53:AW53)","v":1},{"$f":"COUNT(L53:AG53)","v":1},null,null,null,null,null,null,null,null,null,null,null,null,null,null,null,null,null,null,null,1]
["Masculino","-50",49,137884,{"$f":"COUNTIF(D:D,D54)","v":1},"Vicente Sanches",2001,"Setúbal","Sociedade Filarmónica União Artistica Piedense",{"$f":"SUM(L54:AW54)","v":1},{"$f":"COUNT(L54:AG54)","v":1},null,null,null,null,null,null,null,null,null,null,null,null,null,null,null,null,1]
["Masculino","-50",50,149978,{"$f":"COUNTIF(D:D,D55)","v":1},"Murilo Oliveira",2001,"Leiria","Escola de Judo de Pombal",{"$f":"SUM(L55:AW55)","v":1},{"$f":"COUNT(L55:AG55)","v":1},null,null,null,null,null,null,null,null,null,null,null,null,null,null,null,null,null,null,1]
["Masculino","-50",51,122463,{"$f":"COUNTIF(D:D,D56)","v":1},"Daniel Santos",2000,"Lisboa","Sport Lisboa e Benfica",{"$f":"SUM(L56:AW56)","v":0},{"$f":"COUNT(L56:AG56)","v":0}]
["Masculino","-50",52,132029,{"$f":"COUNTIF(D:D,D57)","v":1},"Rui Nobre",2000,"Lisboa","Escola de Judo Nuno Delgado",{"$f":"SUM(L57:AW57)","v":0},{"$f":"COUNT(L57:AG57)","v":0}]
["Masculino","-50",53,132021,{"$f":"COUNTIF(D:D,D58)","v":1},"Lucas Catarino",2000,"Lisboa","Escola de Judo Nuno Delgado",{"$f":"SUM(L58:AW58)","v":0},{"$f":"COUNT(L58:AG58)","v":0}]
["Masculino","-50",54,134138,{"$f":"COUNTIF(D:D,D59)","v":1},"Diogo Guerreiro",2001,"Algarve","Judo Clube do Algarve",{"$f":"SUM(L59:AW59)","v":0},{"$f":"COUNT(L59:AG59)","v":0}]
["Masculino","-50",55,125733,{"$f":"COUNTIF(D:D,D60)","v":1},"Pedro Coelho",2000,"Braga","Associação Desportiva e Cultural Manhente",{"$f":"SUM(L60:AW60)","v":0},{"$f":"COUNT(L60:AG60)","v":0}]
["Masculino","-50",56,144212,{"$f":"COUNTIF(D:D,D61)","v":1},"Leonardo Mateus",2000,"Algarve","Associação Cultural e Desportiva de Ferragudo",{"$f":"SUM(L61:AW61)","v":0},{"$f":"COUNT(L61:AG61)","v":0}]
["Masculino","-50",57,139442,{"$f":"COUNTIF(D:D,D62)","v":1},"Nuno Figueira",2000,"Algarve","BEJUDO - Clube",{"$f":"SUM(L62:AW62)","v":0},{"$f":"COUNT(L62:AG62)","v":0}]
["Masculino","-50",58,127835,{"$f":"COUNTIF(D:D,D63)","v":1},"José Folhadela",2000,"Porto","Escola Secundária Fontes Pereira de Melo",{"$f":"SUM(L63:AW63)","v":0},{"$f":"COUNT(L63:AG63)","v":0}]
["Masculino","-50",59,130177,{"$f":"COUNTIF(D:D,D64)","v":1},"Tiago Machado",2001,"Açores","Clube Escolar Desp. Escola Basica de Arrifes",{"$f":"SUM(L64:AW64)","v":0},{"$f":"COUNT(L64:AG64)","v":0}]
["Masculino","-50",60,119325,{"$f":"COUNTIF(D:D,D65)","v":1},"Pedro Fonte",2000,"Setúbal","Judo Clube Pragal",{"$f":"SUM(L65:AW65)","v":0},{"$f":"COUNT(L65:AG65)","v":0}]
["Masculino","-50",61,111393,{"$f":"COUNTIF(D:D,D66)","v":1},"António Candeias",2001,"Açores","Clube de Judo Angra do Heroismo",{"$f":"SUM(L66:AW66)","v":0},{"$f":"COUNT(L66:AG66)","v":0}]
["Masculino","-50",62,117592,{"$f":"COUNTIF(D:D,D67)","v":1},"Jonas Mendonça",2000,"Lisboa","ISJudo Associação",{"$f":"SUM(L67:AW67)","v":0},{"$f":"COUNT(L67:AG67)","v":0}]
["Masculino","-50",63,129466,{"$f":"COUNTIF(D:D,D68)","v":1},"Lourenço Miguel",2001,"Santarém","Sporting Clube Tomar",{"$f":"SUM(L68:AW68)","v":0},{"$f":"COUNT(L68:AG68)","v":0}]
["Masculino","-50",64,126701,{"$f":"COUNTIF(D:D,D69)","v":1},"Jorge Caldeira",2001,"Porto","Escola Secundária Fontes Pereira de Melo",{"$f":"SUM(L69:AW69)","v":0},{"$f":"COUNT(L69:AG69)","v":0}]
["Masculino","-50",65,null,{"$f":"COUNTIF(D:D,D70)","v":0},null,null,null,null,{"$f":"SUM(L70:AW70)","v":0},{"$f":"COUNT(L70:AG70)","v":0}]
["Masculino","-50",66,null,{"$f":"COUNTIF(D:D,D71)","v":0},null,null,null,null,{"$f":"SUM(L71:AW71)","v":0},{"$f":"COUNT(L71:AG71)","v":0}]
["Masculino","-50",67,null,0,null,null,null,null,0,0]
["Masculino","-50",68,null,0,null,null,null,null,0,0]
["Masculino","-50",69,null,0,null,null,null,null,0,0]
["Masculino","-50",70,null,0,null,null,null,null,0,0]
["Masculino","-50",71,null,0,null,null,null,null,0,0]
["Masculino","-50",72,null,0,null,null,null,null,0,0]

{"sheet":"-55","index":4,"n_rows":106,"n_cols":45,"rows_kept":106,"cut":false,"hidden":false,"merged":[]}
[null,null,null,null,null,null,null,null,"CADETES"]
[null,null,null,null,null,null,null,null,"-55KG ",null,null,"LISBOA","CASTELO BRANCO","COIMBRA","SETÚBAL","VIANA CASTELO","I.TERCEIRA","COIMBRA","SANTARÉM","LISBOA","MADEIRA","AÇORES","SETÚBAL","COIMBRA","LISBOA","MADEIRA","C.BRANCO","SETÚBAL","VISEU","SANTARÉM","AÇORES","FPJ","Leiria","Lisboa","Castelo Branco","Coimbra","Leiria","Setúbal","Coimbra","V. Castelo","Santarém","Lisboa","Madeira","Setúbal","Coimbra"]
[null,null,null,null,null,null,null,null,null,null,null,"2016-04-09","2016-04-17","2016-04-30","2016-04-30","2016-06-18","2016-06-25","2016-06-26","2016-07-03","2016-10-22","2016-11-12","2016-11-19","2016-11-19","2016-12-17","2017-01-14","2017-01-14","2017-01-21","2017-01-21","2017-01-21","2017-01-21","2017-01-21","2017-02-11","2017-02-18","2017-04-01","2017-04-22","2017-04-29","2017-04-29","2017-05-13","2017-06-17","2017-06-17","2017-07-02","2017-11-11","2017-11-11","2017-11-18","2017-12-16"]
["Género","Categoria",null,"LF",null,"NOME","Ano de Nascimento","Associação","CLUBE","Somatório de pontos","Número de provas","OPEN CADETES","OPEN MESTRE ANTONIO MORAIS","OPEN INT. CIDADE BARCELOS","OPEN MONTIJO CADETES","OPEN INT. CIDADE DE VALENÇA","TORNEIO DE SÃO JOÃO","TAÇA ANTONIO ALEIXO","OPEN INT. ADJ SANTARÉM","OPEN CADETES","OPEN CADETES","OPEN PONTA DELGADA","OPEN PRAGAL","OPEN CADETES","Zonal de Cadetes","Zonal de Cadetes","Zonal de Cadetes","Zonal de Cadetes","Zonal de Cadetes","Zonal de Cadetes","Zonal de Cadetes","Camp.Nac. Cadetes","Torneio Associativo","Open Cadetes","Open Cadetes \"Mestre António Morais\"","OPEN INT. CIDADE BARCELOS","Torneio Associativo","Taça Cidade do Montijo","V Taça António Lopes Aleixo","III Open Int. Eurocidade Valença Tui","V Open Int. Cadetes","Open Cadetes","Open Cadetes","Torneio Aniversário JC Pragal","Open Cadetes"]
[]
["Masculino","-55",1,122463,{"$f":"COUNTIF(D:D,D6)","v":1},"Daniel Santos",2000,"Lisboa","Sport Lisboa e Benfica",{"$f":"SUM(L6:AW6)","v":97},{"$f":"COUNT(L6:AW6)","v":7},13,13,null,13,null,null,null,13,17,null,null,11,17]
["Masculino","-55",2,132021,{"$f":"COUNTIF(D:D,D7)","v":1},"Lucas Catarino",2000,"Lisboa","Escola de Judo Nuno Delgado",{"$f":"SUM(L7:AW7)","v":97},{"$f":"COUNT(L7:AW7)","v":8},11,10,null,8,null,null,null,7,10,null,null,17,null,17,null,null,null,null,null,null,17]
["Masculino","-55",3,122477,{"$f":"COUNTIF(D:D,D8)","v":1},"Gonçalo Oliveira",2001,"Lisboa","Judo Clube de Lisboa",{"$f":"SUM(L8:AW8)","v":66},{"$f":"COUNT(L8:AW8)","v":6},null,null,null,null,null,null,null,3,13,null,null,10,13,14,null,null,null,null,null,null,13]
["Masculino","-55",4,132029,{"$f":"COUNTIF(D:D,D9)","v":1},"Rui Nobre",2000,"Lisboa","Escola de Judo Nuno Delgado",{"$f":"SUM(L9:AW9)","v":49},{"$f":"COUNT(L9:AW9)","v":7},7,8,null,4,null,null,null,7,1,null,null,null,null,11,null,null,null,null,null,null,11]
["Masculino","-55",5,119245,{"$f":"COUNTIF(D:D,D10)","v":1},"Bruno Bento",2000,"Setúbal","Clube Recreativo Charnequense",{"$f":"SUM(L10:AW10)","v":47},{"$f":"COUNT(L10:AW10)","v":8},4,null,null,1,null,null,4,5,7,null,null,4,11,null,null,null,11]
["Masculino","-55",6,140178,{"$f":"COUNTIF(D:D,D11)","v":1},"Vasco Pimenta",2001,"Lisboa","Sport Lisboa e Benfica",{"$f":"SUM(L11:AW11)","v":37},{"$f":"COUNT(L11:AW11)","v":5},7,7,6,null,null,null,null,null,10,null,null,7]
["Masculino","-55",7,120454,{"$f":"COUNTIF(D:D,D12)","v":1},"David Barros",2002,"Lisboa","Judo Clube de Lisboa",{"$f":"SUM(L12:AW12)","v":30},{"$f":"COUNT(L12:AW12)","v":4},null,null,null,null,null,null,null,null,3,null,null,13,null,2,null,null,null,null,null,null,12]
["Masculino","-55",8,112730,{"$f":"COUNTIF(D:D,D13)","v":1},"André Diogo",2001,"Coimbra","Judo Clube de Coimbra",{"$f":"SUM(L13:AW13)","v":24},{"$f":"COUNT(L13:AW13)","v":3},null,null,null,null,null,null,null,null,null,null,null,null,11,null,null,null,null,null,12,null,1]
["Masculino","-55",9,120899,{"$f":"COUNTIF(D:D,D14)","v":1},"Duarte Santos",2002,"Coimbra","Judo Clube de Coimbra",{"$f":"SUM(L14:AW14)","v":19},{"$f":"COUNT(L14:AW14)","v":3},null,null,null,null,null,null,null,null,null,null,null,null,8,null,null,null,null,null,9,null,2]
["Masculino","-55",10,144349,{"$f":"COUNTIF(D:D,D15)","v":1},"Kaleb Silva",2001,"Lisboa","Escola de Judo Nuno Delgado",{"$f":"SUM(L15:AW15)","v":19},{"$f":"COUNT(L15:AW15)","v":4},null,null,null,null,null,null,null,null,4,null,null,1,null,11,null,null,null,null,null,null,3]
["Masculino","-55",11,126951,{"$f":"COUNTIF(D:D,D16)","v":1},"Daniel Almeida",2001,"Setúbal","Externato Frei Luis de Sousa",{"$f":"SUM(L16:AW16)","v":18},{"$f":"COUNT(L16:AW16)","v":2},11,null,null,7]
["Masculino","-55",12,140805,{"$f":"COUNTIF(D:D,D17)","v":1},"Daniel Costa",2001,"Coimbra","Judo Clube de Coimbra",{"$f":"SUM(L17:AW17)","v":18},{"$f":"COUNT(L17:AW17)","v":3},null,null,null,null,null,null,null,null,null,null,null,null,4,null,null,null,null,null,6,null,8]
["Masculino","-55",13,117597,{"$f":"COUNTIF(D:D,D18)","v":1},"Miguel Batista",2000,"Lisboa","Judo Clube de Portugal",{"$f":"SUM(L18:AW18)","v":18},{"$f":"COUNT(L18:AW18)","v":8},1,null,null,2,null,null,null,1,6,null,null,1,2,4,null,null,null,null,null,null,1]
["Masculino","-55",14,143706,{"$f":"COUNTIF(D:D,D19)","v":1},"Alexandrino Gomes",2001,"Lisboa","Sport Lisboa e Benfica",{"$f":"SUM(L19:AW19)","v":16},{"$f":"COUNT(L19:AW19)","v":4},3,null,5,null,null,null,null,null,null,null,null,2,6]
["Masculino","-55",15,119363,{"$f":"COUNTIF(D:D,D20)","v":1},"Nuno Martins",2002,"Setúbal","Judo Clube Pinhal Novo",{"$f":"SUM(L20:AW20)","v":14},{"$f":"COUNT(L20:AW20)","v":4},null,null,null,null,null,null,null,null,2,null,null,2,null,null,null,null,2,null,null,null,8]
["Masculino","-55",16,112634,{"$f":"COUNTIF(D:D,D21)","v":1},"Tiago Lopes",2001,"Coimbra","Escola de Judo de Coimbra",{"$f":"SUM(L21:AW21)","v":13},{"$f":"COUNT(L21:AW21)","v":3},null,null,null,null,null,null,null,null,null,null,null,null,4,null,null,null,null,null,6,null,3]
["Masculino","-55",17,130418,{"$f":"COUNTIF(D:D,D22)","v":1},"Denis Levchuk",2002,"Setúbal","Judo Clube do Pragal",{"$f":"SUM(L22:AW22)","v":12},{"$f":"COUNT(L22:AW22)","v":3},null,null,null,null,null,null,null,null,null,null,null,2,null,null,null,null,7,null,null,null,3]
["Masculino","-55",18,139791,{"$f":"COUNTIF(D:D,D23)","v":1},"Afonso Silva",2001,"Lisboa","Universidade Lusofona de Humanidades de Tecnologias",{"$f":"SUM(L23:AW23)","v":12},{"$f":"COUNT(L23:AW23)","v":4},1,5,null,5,null,null,null,1]
["Masculino","-55",19,125733,{"$f":"COUNTIF(D:D,D24)","v":1},"Pedro Coelho",2000,"Braga","Associação Desportiva e Cultural Manhente",{"$f":"SUM(L24:AW24)","v":12},{"$f":"COUNT(L24:AW24)","v":5},null,null,1,null,8,null,null,1,null,null,null,null,1,null,null,null,null,null,null,null,1]
["Masculino","-55",20,113461,{"$f":"COUNTIF(D:D,D25)","v":1},"João Azevedo",2002,"Lisboa","Escola de Judo Nuno Delgado",{"$f":"SUM(L25:AW25)","v":11},{"$f":"COUNT(L25:AW25)","v":4},null,null,null,null,null,null,null,null,4,null,null,1,null,1,null,null,null,null,null,null,5]
["Masculino","-55",21,123117,{"$f":"COUNTIF(D:D,D26)","v":1},"Gonçalo Mateus",2000,"Setúbal","Clube Recreativo Charnequense",{"$f":"SUM(L26:AW26)","v":11},{"$f":"COUNT(L26:AW26)","v":5},1,null,null,1,null,null,null,null,2,null,null,null,2,null,null,null,5]
["Masculino","-55",22,127835,{"$f":"COUNTIF(D:D,D27)","v":1},"José Folhadela",2000,"Porto","Escola Secundária Fontes Pereira de Melo",{"$f":"SUM(L27:AW27)","v":9},{"$f":"COUNT(L27:AW27)","v":4},null,null,1,null,null,null,null,null,null,null,null,null,1,null,null,null,null,6,null,null,1]
["Masculino","-55",23,134138,{"$f":"COUNTIF(D:D,D28)","v":1},"Diogo Guerreiro",2001,"Algarve","Judo Clube do Algarve",{"$f":"SUM(L28:AW28)","v":8},{"$f":"COUNT(L28:AW28)","v":2},null,null,null,null,null,null,null,null,null,null,null,7,null,null,null,null,null,null,null,null,1]
["Masculino","-55",24,122698,{"$f":"COUNTIF(D:D,D29)","v":1},"Tomás Ezequiel",2001,"Lisboa","Judo Clube de Portugal",{"$f":"SUM(L29:AW29)","v":8},{"$f":"COUNT(L29:AW29)","v":2},null,null,null,null,null,null,null,null,null,null,null,null,null,7,null,null,null,null,null,null,1]
["Masculino","-55",25,137546,{"$f":"COUNTIF(D:D,D30)","v":1},"Manuel Ferreira",2001,"Açores","Judo Clube de PontaDelgada",{"$f":"SUM(L30:AW30)","v":8},{"$f":"COUNT(L30:AW30)","v":2},null,null,null,null,null,null,null,null,null,null,null,null,null,null,null,null,null,null,null,7,1]
["Masculino","-55",26,132412,{"$f":"COUNTIF(D:D,D31)","v":1},"Ricardo Oliveira",2002,"V. Castelo","Associação Desportiva e Cultural Taiki-Budo",{"$f":"SUM(L31:AW31)","v":8},{"$f":"COUNT(L31:AW31)","v":2},null,null,null,null,null,null,null,null,null,null,null,null,null,null,null,null,null,7,null,null,1]
["Masculino","-55",27,120897,{"$f":"COUNTIF(D:D,D32)","v":1},"Carlos Santos",2002,"Coimbra","Judo Clube de Coimbra",{"$f":"SUM(L32:AW32)","v":8},{"$f":"COUNT(L32:AW32)","v":3},null,null,null,null,null,null,null,null,null,null,null,null,2,null,null,null,null,null,4,null,2]
["Masculino","-55",28,115242,{"$f":"COUNTIF(D:D,D33)","v":1},"Afonso Esteves",2001,"Lisboa","Colégio Marista de Carcavelos",{"$f":"SUM(L33:AW33)","v":8},{"$f":"COUNT(L33:AW33)","v":3},null,null,null,null,null,null,null,null,null,null,null,2,null,2,null,null,null,null,null,null,4]
["Masculino","-55",29,111741,{"$f":"COUNTIF(D:D,D34)","v":1},"Filinto Carvalho",2000,"Açores","Clube Escolar Desp. da Escola Basica 2 3 Arrifes",{"$f":"SUM(L34:AW34)","v":7},{"$f":"COUNT(L34:AW34)","v":2},null,null,null,null,null,null,null,null,null,null,null,null,null,null,null,null,null,null,null,6,1]
["Masculino","-55",30,150889,{"$f":"COUNTIF(D:D,D35)","v":1},"Samuel Lourenço",2002,"C.Branco","Atlético Clube Fundanense",{"$f":"SUM(L35:AW35)","v":7},{"$f":"COUNT(L35:AW35)","v":2},null,null,null,null,null,null,null,null,null,null,null,null,null,null,null,6,null,null,null,null,1]
["Masculino","-55",31,127809,{"$f":"COUNTIF(D:D,D36)","v":1},"Guilherme Pereira",2001,"Lisboa","Sport Algés e Dafundo",{"$f":"SUM(L36:AW36)","v":7},{"$f":"COUNT(L36:AW36)","v":4},1,4,null,null,null,null,null,1,null,null,null,null,null,null,null,null,null,null,null,null,1]
["Masculino","-55",32,119839,{"$f":"COUNTIF(D:D,D37)","v":1},"Pedro Pinheiro",2001,"Aveiro","Sport Clube Beira Mar",{"$f":"SUM(L37:AW37)","v":6},{"$f":"COUNT(L37:AW37)","v":1},null,null,null,null,null,null,6]
["Masculino","-55",33,132017,{"$f":"COUNTIF(D:D,D38)","v":1},"José Barreira",2002,"Lisboa","Escola Judo Nuno Delgado",{"$f":"SUM(L38:AW38)","v":6},{"$f":"COUNT(L38:AW38)","v":1},null,null,null,null,null,null,null,null,null,null,null,null,null,6]
["Masculino","-55",34,144212,{"$f":"COUNTIF(D:D,D39)","v":1},"Leonardo Mateus",2000,"Algarve","Associação Cultural e Desportiva de Ferragudo",{"$f":"SUM(L39:AW39)","v":6},{"$f":"COUNT(L39:AW39)","v":2},null,null,null,1,null,null,null,null,null,null,null,5]
["Masculino","-55",35,117592,{"$f":"COUNTIF(D:D,D40)","v":1},"Jonas Mendonça",2000,"Lisboa","ISJudo Associação",{"$f":"SUM(L40:AW40)","v":6},{"$f":"COUNT(L40:AW40)","v":3},2,null,null,null,null,null,2,2]
["Masculino","-55",36,131214,{"$f":"COUNTIF(D:D,D41)","v":1},"Vicente Santos",2001,"Lisboa","Ginásio Clube Portugues",{"$f":"SUM(L41:AW41)","v":6},{"$f":"COUNT(L41:AW41)","v":4},null,null,null,null,null,null,null,null,2,null,null,1,null,1,null,null,null,null,null,null,2]
["Masculino","-55",37,141579,{"$f":"COUNTIF(D:D,D42)","v":1},"Sebastião Holtreman",2002,"Lisboa","Ginásio Clube Portugues",{"$f":"SUM(L42:AW42)","v":6},{"$f":"COUNT(L42:AW42)","v":4},null,null,null,null,null,null,null,null,null,null,null,1,1,2,null,null,null,null,null,null,2]
["Masculino","-55",38,111393,{"$f":"COUNTIF(D:D,D43)","v":1},"António Candeias",2001,"Açores","Clube de Judo de Angra do Heroísmo",{"$f":"SUM(L43:AW43)","v":5},{"$f":"COUNT(L43:AW43)","v":1},null,null,null,null,null,null,null,null,null,null,null,null,null,null,null,null,null,null,null,5]
["Masculino","-55",39,132414,{"$f":"COUNTIF(D:D,D44)","v":1},"Cristian Morari",2002,"Lisboa","Judo Clube de Portugal",{"$f":"SUM(L44:AW44)","v":5},{"$f":"COUNT(L44:AW44)","v":2},null,null,null,null,null,null,null,null,null,null,null,1,null,4]
["Masculino","-55",40,125291,{"$f":"COUNTIF(D:D,D45)","v":1},"Pedro Teles",2002,"Leiria","Judo Clube Marinha Grande",{"$f":"SUM(L45:AW45)","v":5},{"$f":"COUNT(L45:AW45)","v":2},null,null,null,null,null,null,null,null,null,null,null,null,1,null,null,null,null,null,4]
["Masculino","-55",41,139442,{"$f":"COUNTIF(D:D,D46)","v":1},"Nuno Figueira",2000,"Setúbal","BEJUDO - Clube",{"$f":"SUM(L46:AW46)","v":5},{"$f":"COUNT(L46:AW46)","v":2},null,null,null,null,null,null,null,null,null,null,null,null,null,null,null,null,4,null,null,null,1]
["Masculino","-55",42,150888,{"$f":"COUNTIF(D:D,D47)","v":1},"Emanuel Lourenço",2002,"C.Branco","Atlético Clube Fundanense",{"$f":"SUM(L47:AW47)","v":5},{"$f":"COUNT(L47:AW47)","v":2},null,null,null,null,null,null,null,null,null,null,null,null,null,null,null,4,null,null,null,null,1]
["Masculino","-55",43,131138,{"$f":"COUNTIF(D:D,D48)","v":1},"Martim Alves",2001,"Lisboa","Universidade Lusofona de Humanidades de Tecnologias",{"$f":"SUM(L48:AW48)","v":5},{"$f":"COUNT(L48:AW48)","v":3},null,1,null,2,null,null,null,null,2]
["Masculino","-55",44,132416,{"$f":"COUNTIF(D:D,D49)","v":1},"David Paula",2002,"V. Castelo","Associação Desportiva e Cultural Taiki-Budo",{"$f":"SUM(L49:AW49)","v":4},{"$f":"COUNT(L49:AW49)","v":1},null,null,null,null,null,null,null,null,null,null,null,null,null,null,null,null,null,4]
["Masculino","-55",45,115483,{"$f":"COUNTIF(D:D,D50)","v":1},"Gonçalo Mortágua",2001,"Coimbra","Escola de Judo de Coimbra",{"$f":"SUM(L50:AW50)","v":4},{"$f":"COUNT(L50:AW50)","v":2},null,1,null,null,null,null,3]
["Masculino","-55",46,133770,{"$f":"COUNTIF(D:D,D51)","v":1},"Luis Leite",2002,"Porto","Escola Secundária de Fontes Pereira de Melo",{"$f":"SUM(L51:AW51)","v":4},{"$f":"COUNT(L51:AW51)","v":2},null,null,null,null,null,null,null,null,null,null,null,null,null,null,null,null,null,3,null,null,1]
["Masculino","-55",47,119239,{"$f":"COUNTIF(D:D,D52)","v":1},"João Matos",2000,"Setúbal","Grupo de Amigos da Costa da Caparica",{"$f":"SUM(L52:AW52)","v":4},{"$f":"COUNT(L52:AW52)","v":3},null,1,null,2,null,null,null,1]
["Masculino","-55",48,132980,{"$f":"COUNTIF(D:D,D53)","v":1},"Marco Guedes",2000,"Braga","Associação Desportiva e Cultural Manhente",{"$f":"SUM(L53:AW53)","v":3},{"$f":"COUNT(L53:AW53)","v":2},null,null,2,null,1]
["Masculino","-55",49,131600,{"$f":"COUNTIF(D:D,D54)","v":1},"Gonçalo Monteiro",2002,"Viseu","Dinamo Clube Estação",{"$f":"SUM(L54:AW54)","v":3},{"$f":"COUNT(L54:AW54)","v":2},null,null,null,null,null,null,null,null,1,null,null,null,null,null,null,null,null,null,null,null,2]
["Masculino","-55",50,124229,{"$f":"COUNTIF(D:D,D55)","v":1},"Maxim Guneniuc",2001,"Lisboa","Clube Atletico da Alta de Lisboa",{"$f":"SUM(L55:AW55)","v":3},{"$f":"COUNT(L55:AW55)","v":3},null,1,null,1,null,null,1]
["Masculino","-55",51,139561,{"$f":"COUNTIF(D:D,D56)","v":1},"Tomás Ribeiro",2001,"Lisboa","Sport Algés e Dafundo",{"$f":"SUM(L56:AW56)","v":3},{"$f":"COUNT(L56:AW56)","v":3},null,null,null,null,null,null,null,null,1,null,null,1,null,1]
["Masculino","-55",52,135371,{"$f":"COUNTIF(D:D,D57)","v":1},"Guilherme Mourão",2001,"Lisboa","Colégio Marista de Carcavelos",{"$f":"SUM(L57:AW57)","v":2},{"$f":"COUNT(L57:AW57)","v":1},2]
["Masculino","-55",53,144636,{"$f":"COUNTIF(D:D,D58)","v":1},"Ricardo Dias",2002,"Coimbra","Associação Recreativa de São Miguel",{"$f":"SUM(L58:AW58)","v":2},{"$f":"COUNT(L58:AW58)","v":1},null,null,null,null,null,null,null,null,null,null,null,null,2]
["Masculino","-55",54,114825,{"$f":"COUNTIF(D:D,D59)","v":1},"José Ramos",2002,"Açores","Judo clube de Ponta delgada",{"$f":"SUM(L59:AW59)","v":2},{"$f":"COUNT(L59:AW59)","v":1},null,null,null,null,null,null,null,null,null,null,null,null,null,null,null,null,null,null,null,2]
["Masculino","-55",55,147893,{"$f":"COUNTIF(D:D,D60)","v":1},"Tomás Rosário",2002,"Beja","Associacao Bombeiros Voluntarios de Beja",{"$f":"SUM(L60:AW60)","v":2},{"$f":"COUNT(L60:AW60)","v":1},null,null,null,null,null,null,null,null,null,null,null,null,null,null,null,null,2]
["Masculino","-55",56,141832,{"$f":"COUNTIF(D:D,D61)","v":1},"Alexandre Gitanu",2001,"Setúbal","Externato Frei Luis de Sousa",{"$f":"SUM(L61:AW61)","v":2},{"$f":"COUNT(L61:AW61)","v":2},1,null,null,1]
["Masculino","-55",57,127797,{"$f":"COUNTIF(D:D,D62)","v":1},"Diogo Silva",2002,"Lisboa","Judo Clube de Lisboa",{"$f":"SUM(L62:AW62)","v":2},{"$f":"COUNT(L62:AW62)","v":2},null,null,null,null,null,null,null,null,1,null,null,null,1]
["Masculino","-55",58,145698,{"$f":"COUNTIF(D:D,D63)","v":1},"Miguel Antunes",2000,"C.Branco","Atlético Clube Fundanense",{"$f":"SUM(L63:AW63)","v":2},{"$f":"COUNT(L63:AW63)","v":2},null,1,null,null,null,null,null,null,null,null,null,null,null,null,null,1]
["Masculino","-55",59,138772,{"$f":"COUNTIF(D:D,D64)","v":1},"Gonçalo Torre",2002,"Lisboa","Colégio Marista de Carcavelos",{"$f":"SUM(L64:AW64)","v":2},{"$f":"COUNT(L64:AW64)","v":2},null,null,null,null,null,null,null,null,null,null,null,1,null,1]
["Masculino","-55",60,141544,{"$f":"COUNTIF(D:D,D65)","v":1},"Rafael Santos",2002,"Coimbra","Montanha Clube",{"$f":"SUM(L65:AW65)","v":2},{"$f":"COUNT(L65:AW65)","v":2},null,null,null,null,null,null,null,null,null,null,null,null,1,null,null,null,null,null,1]
["Masculino","-55",61,121957,{"$f":"COUNTIF(D:D,D66)","v":1},"Américo Gomes",2001,"Madeira","Judo Clube Madeira",{"$f":"SUM(L66:AW66)","v":2},{"$f":"COUNT(L66:AW66)","v":2},null,null,null,null,null,null,null,null,null,1,null,null,null,null,1]
["Masculino","-55",62,145014,{"$f":"COUNTIF(D:D,D67)","v":1},"Filipe Antunes",2001,"C.Branco","Sport Tortosendo e Benfica",{"$f":"SUM(L67:AW67)","v":1},{"$f":"COUNT(L67:AW67)","v":1},null,1]
["Masculino","-55",63,112300,{"$f":"COUNTIF(D:D,D68)","v":1},"João Costa",2001,"Madeira","Judo Clube Madeira",{"$f":"SUM(L68:AW68)","v":1},{"$f":"COUNT(L68:AW68)","v":1},1]
["Masculino","-55",64,118884,{"$f":"COUNTIF(D:D,D69)","v":1},"José Vieira",2001,"I. Terceira","Judo Clube Praia da Vitória",{"$f":"SUM(L69:AW69)","v":1},{"$f":"COUNT(L69:AW69)","v":1},null,null,null,null,null,1]
["Masculino","-55",65,134567,{"$f":"COUNTIF(D:D,D70)","v":1},"João Silva",2000,"Leiria","Associação Humanitária Bombeiros Voluntários do Bombarral",{"$f":"SUM(L70:AW70)","v":1},{"$f":"COUNT(L70:AW70)","v":1},null,null,null,null,null,null,null,null,null,null,null,null,null,null,null,null,null,null,1]
["Masculino","-55",66,145989,{"$f":"COUNTIF(D:D,D71)","v":1},"Roberto Silva",2001,"Beja","Associação Bombeiros Voluntários de Beja",{"$f":"SUM(L71:AW71)","v":1},{"$f":"COUNT(L71:AW71)","v":1},1]
["Masculino","-55",67,130177,{"$f":"COUNTIF(D:D,D72)","v":1},"Tiago Machado",2001,"Açores","Clube Escolar Desp. Escola Basica de Arrifes",{"$f":"SUM(L72:AW72)","v":1},{"$f":"COUNT(L72:AW72)","v":1},null,null,null,null,null,1]
["Masculino","-55",68,116174,{"$f":"COUNTIF(D:D,D73)","v":1},"Ricardo Silva",2001,"Lisboa","Clube Atlético de Campo de Ourique",{"$f":"SUM(L73:AW73)","v":1},{"$f":"COUNT(L73:AW73)","v":1},null,null,null,null,null,null,null,null,1]
["Masculino","-55",69,139769,{"$f":"COUNTIF(D:D,D74)","v":1},"Henrique Gonçalves",2001,"Lisboa","Academia de Judo da Amadora",{"$f":"SUM(L74:AW74)","v":1},{"$f":"COUNT(L74:AW74)","v":1},null,null,null,null,null,null,null,null,1]
["Masculino","-55",70,129939,{"$f":"COUNTIF(D:D,D75)","v":1},"Tomás Monteiro",2002,"Viseu","Dinamo Clube Estação",{"$f":"SUM(L75:AW75)","v":1},{"$f":"COUNT(L75:AW75)","v":1},null,null,null,null,null,null,null,null,1]
["Masculino","-55",71,145421,{"$f":"COUNTIF(D:D,D76)","v":1},"Maksym Boronchuk",2002,"Lisboa","Sporting Clube Portugal",{"$f":"SUM(L76:AW76)","v":1},{"$f":"COUNT(L76:AW76)","v":1},null,null,null,null,null,null,null,null,null,null,null,1]
["Masculino","-55",72,140773,{"$f":"COUNTIF(D:D,D77)","v":1},"André Lopes",2002,"Santarém","Sporting Clube de Tomar",{"$f":"SUM(L77:AW77)","v":1},{"$f":"COUNT(L77:AW77)","v":1},null,null,null,null,null,null,null,null,null,null,null,null,1]
["Masculino","-55",73,129470,{"$f":"COUNTIF(D:D,D78)","v":1},"Luís Pereira",2002,"Braga","Associação Desportiva e Cultural Manhente",{"$f":"SUM(L78:AW78)","v":1},{"$f":"COUNT(L78:AW78)","v":1},null,null,null,null,null,null,null,null,null,null,null,null,1]
["Masculino","-55",74,120828,{"$f":"COUNTIF(D:D,D79)","v":1},"Rúben Coutinho",2002,"Braga","Casa do Povo de Ronfe",{"$f":"SUM(L79:AW79)","v":1},{"$f":"COUNT(L79:AW79)","v":1},null,null,null,null,null,null,null,null,null,null,null,null,1]
["Masculino","-55",75,139507,{"$f":"COUNTIF(D:D,D80)","v":1},"Tomás Antunes",2000,"Lisboa","Clube de Judo da Lourinhã",{"$f":"SUM(L80:AW80)","v":1},{"$f":"COUNT(L80:AW80)","v":1},null,null,null,null,null,null,null,null,null,null,null,null,null,1]
["Masculino","-55",76,144348,{"$f":"COUNTIF(D:D,D81)","v":1},"Jonatas Silva",2002,"Lisboa","Escola de Judo Nuno Delgado",{"$f":"SUM(L81:AW81)","v":1},{"$f":"COUNT(L81:AW81)","v":1},null,null,null,null,null,null,null,null,null,null,null,null,null,1]
["Masculino","-55",77,122122,{"$f":"COUNTIF(D:D,D82)","v":1},"João Marques",2001,"Lisboa","Grupo Recreativo Gonçalvinhense",{"$f":"SUM(L82:AW82)","v":1},{"$f":"COUNT(L82:AW82)","v":1},null,null,null,null,null,null,null,null,null,null,null,null,null,1]
["Masculino","-55",78,145858,{"$f":"COUNTIF(D:D,D83)","v":1},"Hugo Godinho",2001,"Lisboa","Clube Atlético de Campo de Ourique",{"$f":"SUM(L83:AW83)","v":1},{"$f":"COUNT(L83:AW83)","v":1},null,null,null,null,null,null,null,null,null,null,null,null,null,1]
["Masculino","-55",79,131023,{"$f":"COUNTIF(D:D,D84)","v":1},"António Mendonça",2001,"Açores","Clube de Judo de Angra do Heroísmo",{"$f":"SUM(L84:AW84)","v":1},{"$f":"COUNT(L84:AW84)","v":1},null,null,null,null,null,null,null,null,null,null,null,null,null,null,null,null,null,null,null,1]
["Masculino","-55",80,129717,{"$f":"COUNTIF(D:D,D85)","v":1},"Dorin Batca",2000,"Algarve","Judo Clube de Portimão",{"$f":"SUM(L85:AW85)","v":1},{"$f":"COUNT(L85:AW85)","v":1},null,null,null,null,null,null,null,null,null,null,null,null,null,null,null,null,1]
["Masculino","-55",81,146987,{"$f":"COUNTIF(D:D,D86)","v":1},"Duarte Silva",2002,"Setúbal","Centro Cultural e Recreativo do Alto do Moinho",{"$f":"SUM(L86:AW86)","v":1},{"$f":"COUNT(L86:AW86)","v":1},null,null,null,null,null,null,null,null,null,null,null,null,null,null,null,null,1]
["Masculino","-55",82,122396,{"$f":"COUNTIF(D:D,D87)","v":1},"Gaspar Domingues",2002,"Leiria","Escola de Judo de Pombal",{"$f":"SUM(L87:AW87)","v":1},{"$f":"COUNT(L87:AW87)","v":1},null,null,null,null,null,null,null,null,null,null,null,null,null,null,null,null,null,null,1]
["Masculino","-55",83,131361,{"$f":"COUNTIF(D:D,D88)","v":1},"Guilherme Carvalho",2002,"Leiria","Escola de judo de Pombal",{"$f":"SUM(L88:AW88)","v":1},{"$f":"COUNT(L88:AW88)","v":1},null,null,null,null,null,null,null,null,null,null,null,null,null,null,null,null,null,null,1]
["Masculino","-55",84,133162,{"$f":"COUNTIF(D:D,D89)","v":1},"Henrique Pereira",2001,"V. Castelo","Judo Clube de Caminha",{"$f":"SUM(L89:AW89)","v":1},{"$f":"COUNT(L89:AW89)","v":1},null,null,null,null,null,null,null,null,null,null,null,null,null,null,null,null,null,1]
["Masculino","-55",85,114740,{"$f":"COUNTIF(D:D,D90)","v":1},"Guilherme Souza",2001,"Setúbal","Vitória Futebol Clube",{"$f":"SUM(L90:AW90)","v":0},{"$f":"COUNT(L90:AW90)","v":0}]
["Masculino","-55",86,133642,{"$f":"COUNTIF(D:D,D91)","v":1},"Bruno Barros",2001,"Santarém","Sport Clube Operário Cem Soldos",{"$f":"SUM(L91:AW91)","v":0},{"$f":"COUNT(L91:AW91)","v":0}]
["Masculino","-55",87,126701,{"$f":"COUNTIF(D:D,D92)","v":1},"Jorge Caldeira",2001,"Porto","Escola Secundária Fontes Pereira de Melo",{"$f":"SUM(L92:AW92)","v":0},{"$f":"COUNT(L92:AW92)","v":0}]
["Masculino","-55",88,136842,{"$f":"COUNTIF(D:D,D93)","v":1},"Diogo Santos",2000,"Porto","Escola Básica Dr. Costa Matos",{"$f":"SUM(L93:AW93)","v":0},{"$f":"COUNT(L93:AW93)","v":0}]
["Masculino","-55",89,137622,{"$f":"COUNTIF(D:D,D94)","v":1},"João Lopes",2001,"Porto","Boavista Futebol Clube",{"$f":"SUM(L94:AW94)","v":0},{"$f":"COUNT(L94:AW94)","v":0}]
["Masculino","-55",90,127568,{"$f":"COUNTIF(D:D,D95)","v":1},"Álvaro Almeida",2000,"Santarém","Associação de Marinheiros de Ferreira de Zêzere",{"$f":"SUM(L95:AW95)","v":0},{"$f":"COUNT(L95:AW95)","v":0}]
["Masculino","-55",91,137760,{"$f":"COUNTIF(D:D,D96)","v":1},"João Fernandes",2000,"I. Terceira","Judo Clube São Carlos",{"$f":"SUM(L96:AW96)","v":0},{"$f":"COUNT(L96:AW96)","v":0}]
["Masculino","-55",92,139602,{"$f":"COUNTIF(D:D,D97)","v":1},"Bruno Rego",2000,"Porto","Boavista Futebol Clube",{"$f":"SUM(L97:AW97)","v":0},{"$f":"COUNT(L97:AW97)","v":0}]
["Masculino","-55",93,134391,{"$f":"COUNTIF(D:D,D98)","v":1},"Daniel Fino",2001,"Setúbal","Vitória Futebol Clube",{"$f":"SUM(L98:AW98)","v":0},{"$f":"COUNT(L98:AW98)","v":0}]
["Masculino","-55",94,116835,{"$f":"COUNTIF(D:D,D99)","v":1},"Tiago Barreiros",2001,"Leiria","Judo Clube Marinha Grande",{"$f":"SUM(L99:AW99)","v":0},{"$f":"COUNT(L99:AW99)","v":0}]
["Masculino","-55",95,116178,{"$f":"COUNTIF(D:D,D100)","v":1},"Frederico Santo",2001,"Lisboa","Sport Algés e Dafundo",{"$f":"SUM(L100:AW100)","v":0},{"$f":"COUNT(L100:AW100)","v":0}]
["Masculino","-55",96,122995,{"$f":"COUNTIF(D:D,D101)","v":1},"Pedro Sousa",2000,"Viseu","Judo Clube Viseu",{"$f":"SUM(L101:AW101)","v":0},{"$f":"COUNT(L101:AW101)","v":0}]
["Masculino","-55",97,118910,{"$f":"COUNTIF(D:D,D102)","v":1},"Gonçalo Costa",2001,"Coimbra","Judo Clube de Barcelos - JUBA",{"$f":"SUM(L102:AW102)","v":0},{"$f":"COUNT(L102:AW102)","v":0}]
["Masculino","-55",98,120756,{"$f":"COUNTIF(D:D,D103)","v":1},"Gonçalo Rodrigues",2001,"Coimbra","Judo Clube de Barcelos - JUBA",{"$f":"SUM(L103:AW103)","v":0},{"$f":"COUNT(L103:AW103)","v":0}]
["Masculino","-55",99,120701,{"$f":"COUNTIF(D:D,D104)","v":1},"Rodrigo Carita",2001,"C.Branco","Escola de Judo Ana Hormigo",{"$f":"SUM(L104:AW104)","v":0},{"$f":"COUNT(L104:AW104)","v":0}]
["Masculino","-55",100,123370,{"$f":"COUNTIF(D:D,D105)","v":1},"Tomás Mendes",2001,"Santarém","Clube de Judo Riachos",{"$f":"SUM(L105:AW105)","v":0},{"$f":"COUNT(L105:AW105)","v":0}]
["Masculino","-55",101,119495,{"$f":"COUNTIF(D:D,D106)","v":1},"Rui Jorge",2001,"Coimbra","Associação Académica de Coimbra",{"$f":"SUM(L106:AW106)","v":0},{"$f":"COUNT(L106:AW106)","v":0}]

{"sheet":"-60","index":5,"n_rows":128,"n_cols":45,"rows_kept":128,"cut":false,"hidden":false,"merged":[]}
[null,null,null,null,null,null,null,null,"CADETES"]
[null,null,null,null,null,null,null,null,"-60KG ",null,null,"LISBOA","CASTELO BRANCO","COIMBRA","SETÚBAL","VIANA CASTELO","I.TERCEIRA","COIMBRA","SANTARÉM","LISBOA","MADEIRA","AÇORES","SETÚBAL","COIMBRA","LISBOA","MADEIRA","C.BRANCO","SETÚBAL","VISEU","SANTARÉM","AÇORES","FPJ","Leiria","Lisboa","Castelo Branco","Coimbra","Leiria","Setúbal","Coimbra","V. Castelo","Santarém","Lisboa","Madeira","Setúbal","Coimbra"]
[null,null,null,null,null,null,null,null,null,null,null,"2016-04-09","2016-04-17","2016-04-30","2016-04-30","2016-06-18","2016-06-25","2016-06-26","2016-07-03","2016-10-22","2016-11-12","2016-11-19","2016-11-19","2016-12-17","2017-01-14","2017-01-14","2017-01-21","2017-01-21","2017-01-21","2017-01-21","2017-01-21","2017-02-11","2017-02-18","2017-04-01","2017-04-22","2017-04-29","2017-04-29","2017-05-13","2017-06-17","2017-06-17","2017-07-02","2017-11-11","2017-11-11","2017-11-18","2017-12-16"]
["Género","Categoria",null,"LF",null,"NOME","Ano de Nascimento","Associação","CLUBE","Somatório Pontos","Número de provas","OPEN CADETES","OPEN MESTRE ANTONIO MORAIS","OPEN INT. CIDADE BARCELOS","OPEN MONTIJO CADETES","OPEN INT. CIDADE DE VALENÇA","TORNEIO DE SÃO JOÃO","TAÇA ANTONIO ALEIXO","OPEN INT. ADJ SANTARÉM","OPEN CADETES","OPEN CADETES","OPEN PONTA DELGADA","OPEN PRAGAL","OPEN CADETES","Zonal de Cadetes","Zonal de Cadetes","Zonal de Cadetes","Zonal de Cadetes","Zonal de Cadetes","Zonal de Cadetes","Zonal de Cadetes","Camp.Nac. Cadetes","Torneio Associativo","Open Cadetes","Open Cadetes \"Mestre António Morais\"","OPEN INT. CIDADE BARCELOS","Torneio Associativo","Taça Cidade do Montijo","V Taça António Lopes Aleixo","III Open Int. Eurocidade Valença Tui","V Open Int. Cadetes","Open Cadetes","Open Cadetes","Torneio Aniversário JC Pragal","Open Cadetes"]
[]
["Masculino","-60",2,133642,{"$f":"COUNTIF(D:D,D6)","v":1},"Bruno Barros",2001,"Santarém","Sport Clube Operário Cem Soldos",{"$f":"SUM(L6:AW6)","v":128},{"$f":"COUNT(L6:AW6)","v":9},14,17,null,14,null,null,10,11,14,null,null,null,14,null,null,null,null,null,13,null,21]
["Masculino","-60",1,115383,{"$f":"COUNTIF(D:D,D7)","v":1},"André Cravo",2000,"Lisboa","Universidade Lusofona de Humanidades de Tecnologias",{"$f":"SUM(L7:AW7)","v":110},{"$f":"COUNT(L7:AW7)","v":7},null,null,null,18,null,null,null,11,17,null,null,17,17,13,null,null,null,null,null,null,17]
["Masculino","-60",3,122694,{"$f":"COUNTIF(D:D,D8)","v":1},"Daniel Stern Rosa",2000,"Lisboa","Judo Clube Lisboa",{"$f":"SUM(L8:AW8)","v":52},{"$f":"COUNT(L8:AW8)","v":6},6,null,null,11,null,null,13,2,null,null,null,5,null,null,null,null,null,null,null,null,15]
["Masculino","-60",4,123066,{"$f":"COUNTIF(D:D,D9)","v":1},"Rafael Chambel",2002,"Setúbal","Judo Clube Pinhal Novo",{"$f":"SUM(L9:AW9)","v":38},{"$f":"COUNT(L9:AW9)","v":4},null,null,null,null,null,null,null,null,7,null,null,11,null,null,null,null,13,null,null,null,7]
["Masculino","-60",5,126908,{"$f":"COUNTIF(D:D,D10)","v":1},"Diogo Oliveira",2000,"Setúbal","Clube Recreativo Charnequense",{"$f":"SUM(L10:AW10)","v":34},{"$f":"COUNT(L10:AW10)","v":7},null,null,null,3,null,null,6,4,5,null,null,null,8,null,null,null,7,null,null,null,1]
["Masculino","-60",6,111656,{"$f":"COUNTIF(D:D,D11)","v":1},"José Farias",2000,"C.Branco","Academia de Judo de Castelo Branco",{"$f":"SUM(L11:AW11)","v":33},{"$f":"COUNT(L11:AW11)","v":5},null,7,null,null,null,null,null,2,null,null,null,null,11,null,null,11,null,null,null,null,2]
["Masculino","-60",7,106720,{"$f":"COUNTIF(D:D,D12)","v":1},"Jan Gleid",2000,"Setúbal","Judo Clube Pinhal Novo",{"$f":"SUM(L12:AW12)","v":31},{"$f":"COUNT(L12:AW12)","v":6},2,9,null,null,null,null,7,1,11,null,null,1]
["Masculino","-60",8,137760,{"$f":"COUNTIF(D:D,D13)","v":1},"João Fernandes",2000,"I. Terceira","Judo Clube São Carlos",{"$f":"SUM(L13:AW13)","v":30},{"$f":"COUNT(L13:AW13)","v":4},null,null,null,null,null,7,null,null,null,null,null,7,null,null,null,null,null,null,null,15,1]
["Masculino","-60",9,133069,{"$f":"COUNTIF(D:D,D14)","v":1},"Tomás Fernandes",2001,"Lisboa","Sporting Clube de Portugal",{"$f":"SUM(L14:AW14)","v":30},{"$f":"COUNT(L14:AW14)","v":4},null,null,null,null,null,null,null,null,7,null,null,1,null,8,null,null,null,null,null,null,14]
["Masculino","-60",10,128958,{"$f":"COUNTIF(D:D,D15)","v":1},"Francisco Carmo",2002,"Lisboa","Universidade Lusofona de Humanidades de Tecnologias",{"$f":"SUM(L15:AW15)","v":30},{"$f":"COUNT(L15:AW15)","v":5},null,null,null,null,null,null,null,null,1,null,null,13,7,7,null,null,null,null,null,null,2]
["Masculino","-60",11,116835,{"$f":"COUNTIF(D:D,D16)","v":1},"Tiago Barreiros",2001,"Leiria","Judo Clube Marinha Grande",{"$f":"SUM(L16:AW16)","v":27},{"$f":"COUNT(L16:AW16)","v":5},null,null,null,1,null,null,null,3,null,null,null,null,11,null,null,null,null,null,10,null,2]
["Masculino","-60",12,136842,{"$f":"COUNTIF(D:D,D17)","v":1},"Diogo Santos",2000,"Porto","Escola Secundária Fontes Pereira de Melo",{"$f":"SUM(L17:AW17)","v":26},{"$f":"COUNT(L17:AW17)","v":4},null,null,9,null,7,null,null,1,null,null,null,null,null,null,null,null,null,9]
["Masculino","-60",13,114876,{"$f":"COUNTIF(D:D,D18)","v":1},"Gonçalo Pascoal",2000,"Coimbra","Judo Clube Coimbra",{"$f":"SUM(L18:AW18)","v":25},{"$f":"COUNT(L18:AW18)","v":6},null,null,6,null,6,null,1,1,null,null,null,null,4,null,null,null,null,null,7]
["Masculino","-60",14,126951,{"$f":"COUNTIF(D:D,D19)","v":1},"Daniel Almeida",2001,"Setúbal","Externato Frei Luis de Sousa",{"$f":"SUM(L19:AW19)","v":24},{"$f":"COUNT(L19:AW19)","v":4},null,null,null,null,null,null,null,null,2,null,null,11,null,null,null,null,7,null,null,null,4]
["Masculino","-60",15,112300,{"$f":"COUNTIF(D:D,D20)","v":1},"João Costa",2001,"Madeira","Judo Clube Madeira",{"$f":"SUM(L20:AW20)","v":19},{"$f":"COUNT(L20:AW20)","v":3},null,null,null,null,null,null,null,null,null,6,null,null,null,null,6,null,null,null,null,null,7]
["Masculino","-60",16,127809,{"$f":"COUNTIF(D:D,D21)","v":1},"Guilherme Pereira",2001,"Lisboa","Sport Algés e Dafundo",{"$f":"SUM(L21:AW21)","v":19},{"$f":"COUNT(L21:AW21)","v":4},null,null,null,null,null,null,null,null,11,null,null,1,null,5,null,null,null,null,null,null,2]
["Masculino","-60",17,123691,{"$f":"COUNTIF(D:D,D22)","v":1},"Ricardo Afonso",2000,"Setúbal","Associação para o Desenvolvimento da Quinta do Chiado",{"$f":"SUM(L22:AW22)","v":17},{"$f":"COUNT(L22:AW22)","v":2},null,null,null,null,null,null,null,null,null,null,null,7,null,null,null,null,10]
["Masculino","-60",18,139791,{"$f":"COUNTIF(D:D,D23)","v":1},"Afonso Silva",2001,"Lisboa","Universidade Lusofona de Humanidades de Tecnologias",{"$f":"SUM(L23:AW23)","v":15},{"$f":"COUNT(L23:AW23)","v":3},null,null,null,null,null,null,null,null,null,null,null,null,4,10,null,null,null,null,null,null,1]
["Masculino","-60",19,143706,{"$f":"COUNTIF(D:D,D24)","v":1},"Alexandrino Gomes",2001,"Lisboa","Sport Lisboa e Benfica",{"$f":"SUM(L24:AW24)","v":14},{"$f":"COUNT(L24:AW24)","v":3},null,null,null,null,null,null,null,null,1,null,null,null,null,1,null,null,null,null,null,null,12]
["Masculino","-60",20,111392,{"$f":"COUNTIF(D:D,D25)","v":1},"António Ventura",2002,"Açores","Clube de Judo de Angra do Heroísmo",{"$f":"SUM(L25:AW25)","v":12},{"$f":"COUNT(L25:AW25)","v":2},null,null,null,null,null,null,null,null,null,null,null,null,null,null,null,null,null,null,null,11,1]
["Masculino","-60",21,134004,{"$f":"COUNTIF(D:D,D26)","v":1},"João Patricio",2001,"Setúbal","CCD-Clube Judo Montijo",{"$f":"SUM(L26:AW26)","v":11},{"$f":"COUNT(L26:AW26)","v":2},null,10,null,1]
["Masculino","-60",22,129538,{"$f":"COUNTIF(D:D,D27)","v":1},"Diogo Alves",2001,"Lisboa","Escola de Judo Nuno Delgado",{"$f":"SUM(L27:AW27)","v":11},{"$f":"COUNT(L27:AW27)","v":3},7,3,null,1]
["Masculino","-60",23,115483,{"$f":"COUNTIF(D:D,D28)","v":1},"Gonçalo Mortágua",2001,"Coimbra","Escola de Judo de Coimbra",{"$f":"SUM(L28:AW28)","v":10},{"$f":"COUNT(L28:AW28)","v":3},null,null,null,null,null,null,null,null,null,null,null,null,2,null,null,null,null,null,7,null,1]
["Masculino","-60",24,145729,{"$f":"COUNTIF(D:D,D29)","v":1},"João Gregório",2002,"C.Branco","Escola de Judo Ana Hormigo",{"$f":"SUM(L29:AW29)","v":10},{"$f":"COUNT(L29:AW29)","v":3},null,null,null,null,null,null,null,null,null,null,null,null,1,null,null,8,null,null,null,null,1]
["Masculino","-60",25,122995,{"$f":"COUNTIF(D:D,D30)","v":1},"Pedro Sousa",2000,"Viseu","Dinamo Clube Estação",{"$f":"SUM(L30:AW30)","v":10},{"$f":"COUNT(L30:AW30)","v":3},null,null,null,null,null,null,null,null,3,null,null,null,null,null,null,null,null,4,null,null,3]
["Masculino","-60",26,123531,{"$f":"COUNTIF(D:D,D31)","v":1},"Manuel Barbosa",2001,"Viseu","Clube de Judo de Viseu",{"$f":"SUM(L31:AW31)","v":10},{"$f":"COUNT(L31:AW31)","v":4},null,1,3,null,4,null,2]
["Masculino","-60",27,112302,{"$f":"COUNTIF(D:D,D32)","v":1},"Mauro Faria",2002,"Madeira","Clube Naval do Funchal",{"$f":"SUM(L32:AW32)","v":10},{"$f":"COUNT(L32:AW32)","v":4},null,null,null,null,null,null,null,null,3,1,null,null,null,null,4,null,null,null,null,null,2]
["Masculino","-60",28,104205,{"$f":"COUNTIF(D:D,D33)","v":1},"Gonçalo Silva",2000,"Lisboa","Clube Judo Total",{"$f":"SUM(L33:AW33)","v":10},{"$f":"COUNT(L33:AW33)","v":4},null,null,null,1,null,null,null,null,4,null,null,null,null,1,null,null,null,null,null,null,4]
["Masculino","-60",29,119245,{"$f":"COUNTIF(D:D,D34)","v":1},"Bruno Bento",2000,"Setúbal","Clube Recreativo Charnequense",{"$f":"SUM(L34:AW34)","v":9},{"$f":"COUNT(L34:AW34)","v":1},null,null,null,null,null,null,null,null,null,null,null,null,null,null,null,null,null,null,null,null,9]
["Masculino","-60",30,116178,{"$f":"COUNTIF(D:D,D35)","v":1},"Frederico Espirito Santo",2001,"Lisboa","Sport Algés e Dafundo",{"$f":"SUM(L35:AW35)","v":9},{"$f":"COUNT(L35:AW35)","v":3},1,7,null,null,null,null,null,1]
["Masculino","-60",31,134391,{"$f":"COUNTIF(D:D,D36)","v":1},"Daniel Fino",2001,"Setúbal","Vitória Futebol Clube",{"$f":"SUM(L36:AW36)","v":9},{"$f":"COUNT(L36:AW36)","v":3},null,null,null,5,null,null,null,null,null,null,null,null,null,null,null,null,3,null,null,null,1]
["Masculino","-60",32,117592,{"$f":"COUNTIF(D:D,D37)","v":1},"Jonas Mendonça",2000,"Lisboa","Judo Clube de Portugal",{"$f":"SUM(L37:AW37)","v":9},{"$f":"COUNT(L37:AW37)","v":4},null,null,null,null,null,null,null,null,1,null,null,null,1,4,null,null,null,null,null,null,3]
["Masculino","-60",33,124229,{"$f":"COUNTIF(D:D,D38)","v":1},"Maxim Guneniuc",2001,"Lisboa","Sport Lisboa e Benfica",{"$f":"SUM(L38:AW38)","v":9},{"$f":"COUNT(L38:AW38)","v":5},null,null,null,null,null,null,null,null,1,null,null,4,1,1,null,null,null,null,null,null,2]
["Masculino","-60",34,122371,{"$f":"COUNTIF(D:D,D39)","v":1},"Joaquim Oliveira",2000,"Açores","Clube de Judo de Angra do Heroísmo",{"$f":"SUM(L39:AW39)","v":8},{"$f":"COUNT(L39:AW39)","v":2},null,null,null,null,null,null,null,null,null,null,null,null,null,null,null,null,null,null,null,7,1]
["Masculino","-60",35,139602,{"$f":"COUNTIF(D:D,D40)","v":1},"Bruno Rego",2000,"Porto","Boavista Futebol Clube",{"$f":"SUM(L40:AW40)","v":8},{"$f":"COUNT(L40:AW40)","v":3},null,null,6,null,1,null,null,1]
["Masculino","-60",36,125942,{"$f":"COUNTIF(D:D,D41)","v":1},"João Sanches",2000,"Lisboa","Sport Algés e Dafundo",{"$f":"SUM(L41:AW41)","v":8},{"$f":"COUNT(L41:AW41)","v":3},3,3,null,null,null,null,null,2]
["Masculino","-60",37,137622,{"$f":"COUNTIF(D:D,D42)","v":1},"João Lopes",2001,"Porto","Boavista Futebol Clube",{"$f":"SUM(L42:AW42)","v":8},{"$f":"COUNT(L42:AW42)","v":3},null,null,3,null,null,null,null,null,null,null,null,null,null,null,null,null,null,4,null,null,1]
["Masculino","-60",38,140816,{"$f":"COUNTIF(D:D,D43)","v":1},"Diogo Silva",2000,"Porto","Boavista Futebol Clube",{"$f":"SUM(L43:AW43)","v":8},{"$f":"COUNT(L43:AW43)","v":4},null,null,1,null,1,null,null,null,null,null,null,null,null,null,null,null,null,5,null,null,1]
["Masculino","-60",39,119839,{"$f":"COUNTIF(D:D,D44)","v":1},"Pedro Pinheiro",2001,"Aveiro","Sport Clube Beira Mar",{"$f":"SUM(L44:AW44)","v":8},{"$f":"COUNT(L44:AW44)","v":5},1,4,null,null,1,null,null,1,null,null,null,null,null,null,null,null,null,null,null,null,1]
["Masculino","-60",40,123565,{"$f":"COUNTIF(D:D,D45)","v":1},"João Egea",2002,"Açores","Judo Clube de Ponta Delgada",{"$f":"SUM(L45:AW45)","v":7},{"$f":"COUNT(L45:AW45)","v":2},null,null,null,null,null,null,null,null,null,null,null,null,null,null,null,null,null,null,null,6,1]
["Masculino","-60",41,142406,{"$f":"COUNTIF(D:D,D46)","v":1},"Filinto Carvalho",2000,"Açores","Clube Escolar Desp. da Escola Basica 2 3 Arrifes",{"$f":"SUM(L46:AW46)","v":5},{"$f":"COUNT(L46:AW46)","v":1},null,null,null,null,null,null,null,null,null,null,5]
["Masculino","-60",42,113228,{"$f":"COUNTIF(D:D,D47)","v":1},"João Ramalho",2000,"Lisboa","Assc.Ed Fis.Deso Torres Vedras",{"$f":"SUM(L47:AW47)","v":4},{"$f":"COUNT(L47:AW47)","v":1},4]
["Masculino","-60",43,113104,{"$f":"COUNTIF(D:D,D48)","v":1},"Jorge Costa",2001,"Portalegre","Centro Popular Trab. Bairro da Boa Fé",{"$f":"SUM(L48:AW48)","v":4},{"$f":"COUNT(L48:AW48)","v":1},null,null,null,null,null,null,null,null,null,null,null,null,null,null,null,4]
["Masculino","-60",44,110298,{"$f":"COUNTIF(D:D,D49)","v":1},"Guilherme Rodrigres",2001,"Portalegre","Eléctrico Futebol Clube",{"$f":"SUM(L49:AW49)","v":4},{"$f":"COUNT(L49:AW49)","v":1},null,null,null,null,null,null,null,null,null,null,null,null,null,null,null,4]
["Masculino","-60",45,127582,{"$f":"COUNTIF(D:D,D50)","v":1},"Pedro Gonçalves",2000,"Algarve","Judo Clube Albufeira",{"$f":"SUM(L50:AW50)","v":4},{"$f":"COUNT(L50:AW50)","v":2},2,null,null,2]
["Masculino","-60",46,117570,{"$f":"COUNTIF(D:D,D51)","v":1},"Sebastião Oliveira",2001,"Lisboa","Sport Algés e Dafundo",{"$f":"SUM(L51:AW51)","v":4},{"$f":"COUNT(L51:AW51)","v":2},1,null,null,null,null,null,null,3]
["Masculino","-60",47,132175,{"$f":"COUNTIF(D:D,D52)","v":1},"Martim Guibert",2002,"Lisboa","Judo Clube Portugal",{"$f":"SUM(L52:AW52)","v":4},{"$f":"COUNT(L52:AW52)","v":2},null,null,null,null,null,null,null,null,null,null,null,2,null,2]
["Masculino","-60",48,120736,{"$f":"COUNTIF(D:D,D53)","v":1},"André Morgado",2002,"Santarém","Clube de Judo de Riachos",{"$f":"SUM(L53:AW53)","v":4},{"$f":"COUNT(L53:AW53)","v":2},null,null,null,null,null,null,null,null,null,null,null,null,1,null,null,null,null,null,3]
["Masculino","-60",49,136912,{"$f":"COUNTIF(D:D,D54)","v":1},"Renato Palhinhas",2000,"Lisboa","Academia de Judo da Amadora",{"$f":"SUM(L54:AW54)","v":4},{"$f":"COUNT(L54:AW54)","v":3},null,null,null,null,null,null,null,null,1,null,null,1,null,2]
["Masculino","-60",50,116969,{"$f":"COUNTIF(D:D,D55)","v":1},"Manuel Mega",2002,"C.Branco","Academia de Judo de Castelo Branco",{"$f":"SUM(L55:AW55)","v":4},{"$f":"COUNT(L55:AW55)","v":3},null,null,null,null,null,null,null,null,null,null,null,null,1,null,null,2,null,null,null,null,1]
["Masculino","-60",51,122672,{"$f":"COUNTIF(D:D,D56)","v":1},"João Santos",2001,"Lisboa","Judo Clube Lisboa",{"$f":"SUM(L56:AW56)","v":3},{"$f":"COUNT(L56:AW56)","v":1},null,null,null,3]
["Masculino","-60",52,119495,{"$f":"COUNTIF(D:D,D57)","v":1},"Rui Jorge",2001,"Coimbra","Associação Académica de Coimbra",{"$f":"SUM(L57:AW57)","v":3},{"$f":"COUNT(L57:AW57)","v":1},null,null,null,null,null,null,3]
["Masculino","-60",53,135257,{"$f":"COUNTIF(D:D,D58)","v":1},"Miguel Louzeiro",2000,"Lisboa","Ginásio Clube Portugues",{"$f":"SUM(L58:AW58)","v":3},{"$f":"COUNT(L58:AW58)","v":1},null,null,null,null,null,3]
["Masculino","-60",54,131138,{"$f":"COUNTIF(D:D,D59)","v":1},"Martim Alves",2001,"Lisboa","Universidade Lusofona de Humanidades de Tecnologias",{"$f":"SUM(L59:AW59)","v":3},{"$f":"COUNT(L59:AW59)","v":1},null,null,null,null,null,null,null,null,null,null,null,null,null,3]
["Masculino","-60",55,149074,{"$f":"COUNTIF(D:D,D60)","v":1},"Rafael Vieira",2002,"Açores","Judo Clube de Ponta Delgada",{"$f":"SUM(L60:AW60)","v":3},{"$f":"COUNT(L60:AW60)","v":1},null,null,null,null,null,null,null,null,null,null,null,null,null,null,null,null,null,null,null,3]
["Masculino","-60",56,141543,{"$f":"COUNTIF(D:D,D61)","v":1},"Marco Borralho",2002,"Beja","Associacao Bombeiros Voluntarios de Beja",{"$f":"SUM(L61:AW61)","v":3},{"$f":"COUNT(L61:AW61)","v":1},null,null,null,null,null,null,null,null,null,null,null,null,null,null,null,null,3]
["Masculino","-60",57,115085,{"$f":"COUNTIF(D:D,D62)","v":1},"Diogo Cabreiro",2002,"Santarém","Sporting Clube de Tomar",{"$f":"SUM(L62:AW62)","v":3},{"$f":"COUNT(L62:AW62)","v":1},null,null,null,null,null,null,null,null,null,null,null,null,null,null,null,null,null,null,3]
["Masculino","-60",58,146696,{"$f":"COUNTIF(D:D,D63)","v":1},"Francisco Amaral",2001,"C.Branco","Sport Tortosendo e Benfica",{"$f":"SUM(L63:AW63)","v":3},{"$f":"COUNT(L63:AW63)","v":2},null,1,null,null,null,null,null,null,null,null,null,null,null,null,null,2]
["Masculino","-60",59,110652,{"$f":"COUNTIF(D:D,D64)","v":1},"Leonardo Coelho",2001,"Lisboa","Ginásio Clube Portugues",{"$f":"SUM(L64:AW64)","v":3},{"$f":"COUNT(L64:AW64)","v":2},2,null,null,null,null,1]
["Masculino","-60",60,118910,{"$f":"COUNTIF(D:D,D65)","v":1},"Gonçalo Costa",2001,"Coimbra","Judo Clube de Barcelos - JUBA",{"$f":"SUM(L65:AW65)","v":3},{"$f":"COUNT(L65:AW65)","v":2},2,null,1]
["Masculino","-60",61,139562,{"$f":"COUNTIF(D:D,D66)","v":1},"Manuel Esteves",2001,"Lisboa","Sport Algés e Dafundo",{"$f":"SUM(L66:AW66)","v":3},{"$f":"COUNT(L66:AW66)","v":3},1,1,null,null,null,null,null,1]
["Masculino","-60",62,131767,{"$f":"COUNTIF(D:D,D67)","v":1},"Francisco Gil",2001,"Lisboa","Grupo Desportivo Gonçalvinhense",{"$f":"SUM(L67:AW67)","v":3},{"$f":"COUNT(L67:AW67)","v":3},null,null,null,1,null,null,1,null,null,null,null,null,null,1]
["Masculino","-60",63,114740,{"$f":"COUNTIF(D:D,D68)","v":1},"Guilherme Souza",2001,"Setúbal","Vitória Futebol Clube",{"$f":"SUM(L68:AW68)","v":2},{"$f":"COUNT(L68:AW68)","v":1},null,null,null,null,null,null,null,2]
["Masculino","-60",64,144514,{"$f":"COUNTIF(D:D,D69)","v":1},"Nuno Gomes",2001,"Aveiro","Clube Desportivo Feirense",{"$f":"SUM(L69:AW69)","v":2},{"$f":"COUNT(L69:AW69)","v":1},null,null,null,null,null,null,null,null,null,null,null,null,2]
["Masculino","-60",65,109407,{"$f":"COUNTIF(D:D,D70)","v":1},"Diogo Luis",2000,"Setúbal","Judo Clube Pinhal Novo",{"$f":"SUM(L70:AW70)","v":2},{"$f":"COUNT(L70:AW70)","v":1},null,null,null,null,null,null,null,null,null,null,null,2]
["Masculino","-60",66,137546,{"$f":"COUNTIF(D:D,D71)","v":1},"Manuel Ferreira",2001,"Açores","Judo Clube Ponta Delgada",{"$f":"SUM(L71:AW71)","v":2},{"$f":"COUNT(L71:AW71)","v":1},null,null,null,null,null,null,null,null,null,null,2]
["Masculino","-60",67,143429,{"$f":"COUNTIF(D:D,D72)","v":1},"Luis Araújo",2002,"Braga","Casa do Povo de Ronfe",{"$f":"SUM(L72:AW72)","v":2},{"$f":"COUNT(L72:AW72)","v":1},null,null,null,null,null,null,null,null,null,null,null,null,2]
["Masculino","-60",68,141574,{"$f":"COUNTIF(D:D,D73)","v":1},"Rodrigo Cordeiro",2000,"Açores ","Judo Clube de Ponta Delgada",{"$f":"SUM(L73:AW73)","v":2},{"$f":"COUNT(L73:AW73)","v":1},null,null,null,null,null,null,null,null,null,null,null,null,null,null,null,null,null,null,null,2]
["Masculino","-60",69,128483,{"$f":"COUNTIF(D:D,D74)","v":1},"Vitor Condelipes",2002,"Setúbal","Clube de Judo Montijo",{"$f":"SUM(L74:AW74)","v":2},{"$f":"COUNT(L74:AW74)","v":1},null,null,null,null,null,null,null,null,null,null,null,null,null,null,null,null,2]
["Masculino","-60",70,128666,{"$f":"COUNTIF(D:D,D75)","v":1},"Cosmin Pidghirnii",2002,"Algarve","Unbreakable Force - Associação Desportiva e Cultural",{"$f":"SUM(L75:AW75)","v":2},{"$f":"COUNT(L75:AW75)","v":1},null,null,null,null,null,null,null,null,null,null,null,null,null,null,null,null,2]
["Masculino","-60",71,123117,{"$f":"COUNTIF(D:D,D76)","v":1},"Gonçalo Mateus",2000,"Setúbal","Clube Recreativo Charnequense",{"$f":"SUM(L76:AW76)","v":2},{"$f":"COUNT(L76:AW76)","v":1},null,null,null,null,null,null,null,null,null,null,null,null,null,null,null,null,null,null,null,null,2]
["Masculino","-60",72,122550,{"$f":"COUNTIF(D:D,D77)","v":1},"Hugo Galamba",2001,"Lisboa","Sport Lisboa e Benfica",{"$f":"SUM(L77:AW77)","v":2},{"$f":"COUNT(L77:AW77)","v":2},1,1]
["Masculino","-60",73,120756,{"$f":"COUNTIF(D:D,D78)","v":1},"Gonçalo Rodrigues",2001,"Coimbra","Judo Clube de Barcelos - JUBA",{"$f":"SUM(L78:AW78)","v":2},{"$f":"COUNT(L78:AW78)","v":2},null,null,1,null,null,null,null,null,null,null,null,null,null,null,null,null,null,null,1]
["Masculino","-60",74,129183,{"$f":"COUNTIF(D:D,D79)","v":1},"Miguel Martins",2001,"Lisboa","Colégio Moderno",{"$f":"SUM(L79:AW79)","v":2},{"$f":"COUNT(L79:AW79)","v":2},1,null,null,1]
["Masculino","-60",75,145205,{"$f":"COUNTIF(D:D,D80)","v":1},"João Pinto",2000,"Setúbal","Academia Chushin Associação",{"$f":"SUM(L80:AW80)","v":2},{"$f":"COUNT(L80:AW80)","v":2},null,1,null,1]
["Masculino","-60",76,147173,{"$f":"COUNTIF(D:D,D81)","v":1},"Antonio Murias",2001,"Lisboa","Academia de Judo da Amadora",{"$f":"SUM(L81:AW81)","v":2},{"$f":"COUNT(L81:AW81)","v":2},null,null,null,null,null,null,null,null,1,null,null,1]
["Masculino","-60",77,141832,{"$f":"COUNTIF(D:D,D82)","v":1},"Alexandre Gitanu",2001,"Setúbal","Externato Frei Luis de Sousa",{"$f":"SUM(L82:AW82)","v":2},{"$f":"COUNT(L82:AW82)","v":2},null,null,null,null,null,null,null,null,1,null,null,1]
["Masculino","-60",78,144439,{"$f":"COUNTIF(D:D,D83)","v":1},"Pedro Costa",2002,"Lisboa","Judo Clube de Lisboa",{"$f":"SUM(L83:AW83)","v":2},{"$f":"COUNT(L83:AW83)","v":2},null,null,null,null,null,null,null,null,1,null,null,null,null,1]
["Masculino","-60",79,145350,{"$f":"COUNTIF(D:D,D84)","v":1},"Tomás Gonçalves",2002,"Setúbal","Grupo Desportivo Fabril do Barreiro",{"$f":"SUM(L84:AW84)","v":2},{"$f":"COUNT(L84:AW84)","v":2},null,null,null,null,null,null,null,null,null,null,null,1,null,null,null,null,1]
["Masculino","-60",80,124821,{"$f":"COUNTIF(D:D,D85)","v":1},"Bernardo Vasconcelos",2002,"Santarém","Sporting Clube de Tomar",{"$f":"SUM(L85:AW85)","v":2},{"$f":"COUNT(L85:AW85)","v":2},null,null,null,null,null,null,null,null,null,null,null,null,1,null,null,null,null,null,null,null,1]
["Masculino","-60",81,132980,{"$f":"COUNTIF(D:D,D86)","v":1},"Marco Guedes",2000,"Braga","Associação Desportiva e Cultural Manhente",{"$f":"SUM(L86:AW86)","v":2},{"$f":"COUNT(L86:AW86)","v":2},null,null,null,null,null,null,null,null,null,null,null,null,1,null,null,null,null,null,null,null,1]
["Masculino","-60",82,124387,{"$f":"COUNTIF(D:D,D87)","v":1},"Simão Pereira",2001,"Leiria","Judo Clube Marinha Grande",{"$f":"SUM(L87:AW87)","v":1},{"$f":"COUNT(L87:AW87)","v":1},1]
["Masculino","-60",83,139485,{"$f":"COUNTIF(D:D,D88)","v":1},"Candido Rocha",2000,"Açores","Clube de Judo Ramo Grande",{"$f":"SUM(L88:AW88)","v":1},{"$f":"COUNT(L88:AW88)","v":1},null,null,null,1]
["Masculino","-60",84,141956,{"$f":"COUNTIF(D:D,D89)","v":1},"Manuel Brandão",2000,"Portalegre","Casa do Povo de Castelo de Vide",{"$f":"SUM(L89:AW89)","v":1},{"$f":"COUNT(L89:AW89)","v":1},null,1]
["Masculino","-60",85,130380,{"$f":"COUNTIF(D:D,D90)","v":1},"André Mira",2001,"Setúbal","Vitoria Futebol Clube",{"$f":"SUM(L90:AW90)","v":1},{"$f":"COUNT(L90:AW90)","v":1},null,null,null,1]
["Masculino","-60",86,114851,{"$f":"COUNTIF(D:D,D91)","v":1},"Rafael Matos",2001,"Lisboa","Judo Clube Sintra",{"$f":"SUM(L91:AW91)","v":1},{"$f":"COUNT(L91:AW91)","v":1},null,null,null,null,null,null,null,null,1]
["Masculino","-60",87,131546,{"$f":"COUNTIF(D:D,D92)","v":1},"Pedro Navalhas",2001,"Lisboa","Academia de Judo da Amadora",{"$f":"SUM(L92:AW92)","v":1},{"$f":"COUNT(L92:AW92)","v":1},1]
["Masculino","-60",88,133421,{"$f":"COUNTIF(D:D,D93)","v":1},"Pedro Rocha",2001,"C.Branco","Atlético Clube Fundanense",{"$f":"SUM(L93:AW93)","v":1},{"$f":"COUNT(L93:AW93)","v":1},null,1]
["Masculino","-60",89,145987,{"$f":"COUNTIF(D:D,D94)","v":1},"Diogo Sobral",2000,"Beja","Associação Bombeiros Voluntários de Beja",{"$f":"SUM(L94:AW94)","v":1},{"$f":"COUNT(L94:AW94)","v":1},1]
["Masculino","-60",90,119239,{"$f":"COUNTIF(D:D,D95)","v":1},"João Matos",2000,"Setúbal","Grupo de Amigos da Costa da Caparica",{"$f":"SUM(L95:AW95)","v":1},{"$f":"COUNT(L95:AW95)","v":1},null,null,null,null,1]
["Masculino","-60",91,120199,{"$f":"COUNTIF(D:D,D96)","v":1},"João Garcês",2002,"Lisboa","Universidade Lusofona de Humanidades de Tecnologias",{"$f":"SUM(L96:AW96)","v":1},{"$f":"COUNT(L96:AW96)","v":1},null,null,null,null,null,null,null,null,1]
["Masculino","-60",92,127433,{"$f":"COUNTIF(D:D,D97)","v":1},"Luis Aldeia",2000,"Lisboa","Oficinas São José",{"$f":"SUM(L97:AW97)","v":1},{"$f":"COUNT(L97:AW97)","v":1},null,null,null,null,null,null,null,null,1]
["Masculino","-60",93,134138,{"$f":"COUNTIF(D:D,D98)","v":1},"Diogo Guerreiro",2001,"Algarve","Judo Clube do Algarve",{"$f":"SUM(L98:AW98)","v":1},{"$f":"COUNT(L98:AW98)","v":1},null,null,null,null,null,null,null,null,null,null,null,1]
["Masculino","-60",94,120262,{"$f":"COUNTIF(D:D,D99)","v":1},"Pedro Lopes",2002,"Lisboa","Colégio de Santo André",{"$f":"SUM(L99:AW99)","v":1},{"$f":"COUNT(L99:AW99)","v":1},null,null,null,null,null,null,null,null,null,null,null,null,1]
["Masculino","-60",95,148267,{"$f":"COUNTIF(D:D,D100)","v":1},"Luiz Ferreira",2000,"Lisboa","Universidade Lusofona de Humanidades de Tecnologias",{"$f":"SUM(L100:AW100)","v":1},{"$f":"COUNT(L100:AW100)","v":1},null,null,null,null,null,null,null,null,null,null,null,null,1]
["Masculino","-60",96,141770,{"$f":"COUNTIF(D:D,D101)","v":1},"Marcelo Caetano",2002,"Coimbra","Associação Académica de Coimbra",{"$f":"SUM(L101:AW101)","v":1},{"$f":"COUNT(L101:AW101)","v":1},null,null,null,null,null,null,null,null,null,null,null,null,1]
["Masculino","-60",97,127797,{"$f":"COUNTIF(D:D,D102)","v":1},"Diogo Silva",2002,"Lisboa","Judo Clube de Lisboa",{"$f":"SUM(L102:AW102)","v":1},{"$f":"COUNT(L102:AW102)","v":1},null,null,null,null,null,null,null,null,null,null,null,null,null,1]
["Masculino","-60",98,147391,{"$f":"COUNTIF(D:D,D103)","v":1},"Guilherme Cepeda",2001,"Lisboa","Sport Algés e Dafundo",{"$f":"SUM(L103:AW103)","v":1},{"$f":"COUNT(L103:AW103)","v":1},null,null,null,null,null,null,null,null,null,null,null,null,null,1]
["Masculino","-60",99,107025,{"$f":"COUNTIF(D:D,D104)","v":1},"Pedro Abreu",2000,"Madeira","Clube de Judo Brava",{"$f":"SUM(L104:AW104)","v":1},{"$f":"COUNT(L104:AW104)","v":1},null,null,null,null,null,null,null,null,null,null,null,null,null,null,1]
["Masculino","-60",100,141644,{"$f":"COUNTIF(D:D,D105)","v":1},"Francisco Miúde",2001,"Açores","Judo Clube de Ponta Delgada",{"$f":"SUM(L105:AW105)","v":1},{"$f":"COUNT(L105:AW105)","v":1},null,null,null,null,null,null,null,null,null,null,null,null,null,null,null,null,null,null,null,1]
["Masculino","-60",101,137688,{"$f":"COUNTIF(D:D,D106)","v":1},"Henrique Carreiro",2002,"Açores","JUDOLAG - Judo Clube Lagoa",{"$f":"SUM(L106:AW106)","v":1},{"$f":"COUNT(L106:AW106)","v":1},null,null,null,null,null,null,null,null,null,null,null,null,null,null,null,null,null,null,null,1]
["Masculino","-60",102,149091,{"$f":"COUNTIF(D:D,D107)","v":1},"Rui Palma",2002,"Beja","Associacao Bombeiros Voluntarios de Beja",{"$f":"SUM(L107:AW107)","v":1},{"$f":"COUNT(L107:AW107)","v":1},null,null,null,null,null,null,null,null,null,null,null,null,null,null,null,null,1]
["Masculino","-60",103,149893,{"$f":"COUNTIF(D:D,D108)","v":1},"Paulo Chá",2000,"Beja","Judo Clube Alvito",{"$f":"SUM(L108:AW108)","v":1},{"$f":"COUNT(L108:AW108)","v":1},null,null,null,null,null,null,null,null,null,null,null,null,null,null,null,null,1]
["Masculino","-60",104,137886,{"$f":"COUNTIF(D:D,D109)","v":1},"Danilo Prforov",2002,"Setúbal","Sociedade filarmónica união Artistica Piedense",{"$f":"SUM(L109:AW109)","v":1},{"$f":"COUNT(L109:AW109)","v":1},null,null,null,null,null,null,null,null,null,null,null,null,null,null,null,null,1]
["Masculino","-60",105,123536,{"$f":"COUNTIF(D:D,D110)","v":1},"Miguel Azevedo",2001,"Portalegre","Eléctrico Futebol Clube",{"$f":"SUM(L110:AW110)","v":1},{"$f":"COUNT(L110:AW110)","v":1},null,null,null,null,null,null,null,null,null,null,null,null,null,null,null,1]
["Masculino","-60",106,144636,{"$f":"COUNTIF(D:D,D111)","v":1},"Ricardo Dias",2002,"Coimbra","Associação Recreativa de São Miguel",{"$f":"SUM(L111:AW111)","v":1},{"$f":"COUNT(L111:AW111)","v":1},null,null,null,null,null,null,null,null,null,null,null,null,null,null,null,null,null,null,1]
["Masculino","-60",107,141340,{"$f":"COUNTIF(D:D,D112)","v":1},"Rodrigo Silvestre",2002,"Santarém","Grupo Recreativo 1º Outubro",{"$f":"SUM(L112:AW112)","v":1},{"$f":"COUNT(L112:AW112)","v":1},null,null,null,null,null,null,null,null,null,null,null,null,null,null,null,null,null,null,1]
["Masculino","-60",108,137060,{"$f":"COUNTIF(D:D,D113)","v":1},"Bruno Rodrigues",2001,"Coimbra","Associação Recreativa de São Miguel",{"$f":"SUM(L113:AW113)","v":1},{"$f":"COUNT(L113:AW113)","v":1},null,null,null,null,null,null,null,null,null,null,null,null,null,null,null,null,null,null,1]
["Masculino","-60",109,145234,{"$f":"COUNTIF(D:D,D114)","v":1},"João Cerquido",2001,"V.Castelo","Judo Clube de Caminha",{"$f":"SUM(L114:AW114)","v":1},{"$f":"COUNT(L114:AW114)","v":1},null,null,null,null,null,null,null,null,null,null,null,null,null,null,null,null,null,1]
["Masculino","-60",110,142502,{"$f":"COUNTIF(D:D,D115)","v":1},"Remi Mouta",2001,"Braga","Judo Clube de Braga",{"$f":"SUM(L115:AW115)","v":1},{"$f":"COUNT(L115:AW115)","v":1},null,null,null,null,null,null,null,null,null,null,null,null,null,null,null,null,null,1]
["Masculino","-60",111,142324,{"$f":"COUNTIF(D:D,D116)","v":1},"Bruno Esteves",2001,"V.Castelo","Centro Social e Paroquial de Alvarães",{"$f":"SUM(L116:AW116)","v":1},{"$f":"COUNT(L116:AW116)","v":1},null,null,null,null,null,null,null,null,null,null,null,null,null,null,null,null,null,1]
["Masculino","-60",112,128741,{"$f":"COUNTIF(D:D,D117)","v":1},"Nelson Almeida",null,"Braga","ARCAP - Associação Recreativa e Cultural \"Amigos da Ponte\"",{"$f":"SUM(L117:AW117)","v":1},{"$f":"COUNT(L117:AW117)","v":1},null,null,null,null,null,null,null,null,null,null,null,null,null,null,null,null,null,null,null,null,1]
["Masculino","-60",113,140006,{"$f":"COUNTIF(D:D,D118)","v":1},"Fábio Borges",2000,"Lisboa","Sport Lisboa e Benfica",{"$f":"SUM(L118:AW118)","v":0},{"$f":"COUNT(L118:AW118)","v":0}]
["Masculino","-60",114,125775,{"$f":"COUNTIF(D:D,D119)","v":1},"Diogo Mendonça",2000,"Viseu","Judo Clube Viseu",{"$f":"SUM(L119:AW119)","v":0},{"$f":"COUNT(L119:AW119)","v":0}]
["Masculino","-60",115,126706,{"$f":"COUNTIF(D:D,D120)","v":1},"Ricardo Santos",2000,"Porto","Escola Secundária Fontes Pereira de Melo",{"$f":"SUM(L120:AW120)","v":0},{"$f":"COUNT(L120:AW120)","v":0}]
["Masculino","-60",116,null,{"$f":"COUNTIF(D:D,D121)","v":0},null,null,null,null,{"$f":"SUM(L121:AW121)","v":0},{"$f":"COUNT(L121:AW121)","v":0}]
["Masculino","-60",117,null,0,null,null,null,null,0,0]
["Masculino","-60",118,null,0,null,null,null,null,0,0]
["Masculino","-60",119,null,0,null,null,null,null,0,0]
["Masculino","-60",120,null,0,null,null,null,null,0,0]
["Masculino","-60",121,null,0,null,null,null,null,0,0]
["Masculino","-60",122,null,0,null,null,null,null,0,0]
["Masculino","-60",123,null,0,null,null,null,null,0,0]

{"sheet":"-66","index":6,"n_rows":129,"n_cols":45,"rows_kept":129,"cut":false,"hidden":false,"merged":[]}
[null,null,null,null,null,null,null,null,"CADETES"]
[null,null,null,null,null,null,null,null,"-66KG ",null,null,"LISBOA","CASTELO BRANCO","COIMBRA","SETÚBAL","VIANA CASTELO","I.TERCEIRA","COIMBRA","SANTARÉM","LISBOA","MADEIRA","AÇORES","SETÚBAL","COIMBRA","LISBOA","MADEIRA","C.BRANCO","SETÚBAL","VISEU","SANTARÉM","AÇORES","FPJ","Leiria","Lisboa","Castelo Branco","Coimbra","Leiria","Setúbal","Coimbra","V. Castelo","Santarém","Lisboa","Madeira","Setúbal","Coimbra"]
[null,null,null,null,null,null,null,null,null,null,null,"2016-04-09","2016-04-17","2016-04-30","2016-04-30","2016-06-18","2016-06-25","2016-06-26","2016-07-03","2016-10-22","2016-11-12","2016-11-19","2016-11-19","2016-12-17","2017-01-14","2017-01-14","2017-01-21","2017-01-21","2017-01-21","2017-01-21","2017-01-21","2017-02-11","2017-02-18","2017-04-01","2017-04-22","2017-04-29","2017-04-29","2017-05-13","2017-06-17","2017-06-17","2017-07-02","2017-11-11","2017-11-11","2017-11-18","2017-12-16"]
["Género","Categoria",null,"LF",null,"NOME","Ano de Nascimento","Associação","CLUBE","Somatório Pontos","Número de provas","OPEN CADETES","OPEN MESTRE ANTONIO MORAIS","OPEN INT. CIDADE BARCELOS","OPEN MONTIJO CADETES","OPEN INT. CIDADE DE VALENÇA","TORNEIO DE SÃO JOÃO","TAÇA ANTONIO ALEIXO","OPEN INT. ADJ SANTARÉM","OPEN CADETES","OPEN CADETES","OPEN PONTA DELGADA","OPEN PRAGAL","OPEN CADETES","Zonal de Cadetes","Zonal de Cadetes","Zonal de Cadetes","Zonal de Cadetes","Zonal de Cadetes","Zonal de Cadetes","Zonal de Cadetes","Camp.Nac. Cadetes","Torneio Associativo","Open Cadetes","Open Cadetes \"Mestre António Morais\"","OPEN INT. CIDADE BARCELOS","Torneio Associativo","Taça Cidade do Montijo","V Taça António Lopes Aleixo","III Open Int. Eurocidade Valença Tui","V Open Int. Cadetes","Open Cadetes","Open Cadetes","Torneio Aniversário JC Pragal","Open Cadetes"]
[]
["Masculino","-66",1,113256,{"$f":"COUNTIF(D:D,D6)","v":1},"Gonçalo Lopes",2000,"Lisboa","Universidade Lusofona de Humanidades de Tecnologias",{"$f":"SUM(L6:AW6)","v":109},{"$f":"COUNT(L6:AW6)","v":9},2,17,null,18,null,null,null,18,1,null,null,2,17,17,null,null,null,null,null,null,17]
["Masculino","-66",2,112253,{"$f":"COUNTIF(D:D,D7)","v":1},"Jaques Rico",2001,"Lisboa","Judo Clube Lisboa",{"$f":"SUM(L7:AW7)","v":85},{"$f":"COUNT(L7:AW7)","v":10},1,6,null,1,null,null,13,1,14,null,null,14,7,14,null,null,null,null,null,null,14]
["Masculino","-66",3,140006,{"$f":"COUNTIF(D:D,D8)","v":1},"Fábio Borges",2000,"Lisboa","Sport Lisboa e Benfica",{"$f":"SUM(L8:AW8)","v":70},{"$f":"COUNT(L8:AW8)","v":4},null,null,null,null,null,null,null,null,18,null,null,18,13,null,null,null,null,null,null,null,21]
["Masculino","-66",4,117758,{"$f":"COUNTIF(D:D,D9)","v":1},"Pedro Costa",2000,"Lisboa","Universidade Lusofona de Humanidades de Tecnologias",{"$f":"SUM(L9:AW9)","v":47},{"$f":"COUNT(L9:AW9)","v":7},2,null,null,null,null,null,null,1,11,null,null,2,11,10,null,null,null,null,null,null,10]
["Masculino","-66",5,125942,{"$f":"COUNTIF(D:D,D10)","v":1},"João Sanches",2000,"Lisboa","Sport Algés e Dafundo",{"$f":"SUM(L10:AW10)","v":34},{"$f":"COUNT(L10:AW10)","v":4},null,null,null,null,null,null,null,null,2,null,null,11,null,6,null,null,null,null,null,null,15]
["Masculino","-66",6,135257,{"$f":"COUNTIF(D:D,D11)","v":1},"Miguel Louzeiro",2000,"Lisboa","Ginásio Clube Portugues",{"$f":"SUM(L11:AW11)","v":30},{"$f":"COUNT(L11:AW11)","v":4},3,null,null,7,null,null,null,null,8,null,null,null,12]
["Masculino","-66",7,140085,{"$f":"COUNTIF(D:D,D12)","v":1},"Bernardo Lopes",2001,"Setúbal","Clube Recreativo Charnequense",{"$f":"SUM(L12:AW12)","v":30},{"$f":"COUNT(L12:AW12)","v":6},1,null,null,5,null,null,3,5,5,null,null,11]
["Masculino","-66",8,112792,{"$f":"COUNTIF(D:D,D13)","v":1},"Manuel Rodrigues",2000,"Setúbal","Judo Clube do Pragal",{"$f":"SUM(L13:AW13)","v":25},{"$f":"COUNT(L13:AW13)","v":2},null,null,null,14,null,null,null,11]
["Masculino","-66",9,108074,{"$f":"COUNTIF(D:D,D14)","v":1},"Francisco Rovira",2001,"Coimbra","Associação Academica de Coimbra",{"$f":"SUM(L14:AW14)","v":24},{"$f":"COUNT(L14:AW14)","v":4},1,null,13,null,null,null,8,2]
["Masculino","-66",10,132177,{"$f":"COUNTIF(D:D,D15)","v":1},"Pedro Raposo",2002,"Lisboa","Sport Lisboa e Benfica",{"$f":"SUM(L15:AW15)","v":23},{"$f":"COUNT(L15:AW15)","v":5},null,null,null,null,null,null,null,null,3,null,null,4,2,1,null,null,null,null,null,null,13]
["Masculino","-66",11,127126,{"$f":"COUNTIF(D:D,D16)","v":1},"André Gonçalves",2000,"C.Branco","Escola de Judo Ana Hormigo",{"$f":"SUM(L16:AW16)","v":20},{"$f":"COUNT(L16:AW16)","v":4},null,4,null,null,null,null,null,6,null,null,null,null,null,null,null,8,null,null,null,null,2]
["Masculino","-66",12,133090,{"$f":"COUNTIF(D:D,D17)","v":1},"Bruno Costa",2001,"Braga","Associação Desportiva e Cultural Manhente",{"$f":"SUM(L17:AW17)","v":18},{"$f":"COUNT(L17:AW17)","v":4},null,null,1,null,7,null,null,3,null,null,null,null,null,null,null,null,null,null,null,null,7]
["Masculino","-66",13,106720,{"$f":"COUNTIF(D:D,D18)","v":1},"Jan Glied",2000,"Setúbal","Judo clube de Pinhal Novo",{"$f":"SUM(L18:AW18)","v":16},{"$f":"COUNT(L18:AW18)","v":2},null,null,null,null,null,null,null,null,null,null,null,null,null,null,null,null,12,null,null,null,4]
["Masculino","-66",14,113258,{"$f":"COUNTIF(D:D,D19)","v":1},"Ricardo Venâncio",2002,"Lisboa","Sporting Clube de Portugal",{"$f":"SUM(L19:AW19)","v":16},{"$f":"COUNT(L19:AW19)","v":4},null,null,null,null,null,null,null,null,null,null,null,6,2,7,null,null,null,null,null,null,1]
["Masculino","-66",15,114520,{"$f":"COUNTIF(D:D,D20)","v":1},"João Camara",2000,"Lisboa","Universidade Lusofona de Humanidades de Tecnologias",{"$f":"SUM(L20:AW20)","v":15},{"$f":"COUNT(L20:AW20)","v":2},5,10]
["Masculino","-66",16,127588,{"$f":"COUNTIF(D:D,D21)","v":1},"Veaceslav Bogdan",2000,"Algarve","Judo Clube de Portimão",{"$f":"SUM(L21:AW21)","v":15},{"$f":"COUNT(L21:AW21)","v":2},null,null,null,null,null,null,null,null,null,null,null,null,null,null,null,null,8,null,null,null,7]
["Masculino","-66",17,137846,{"$f":"COUNTIF(D:D,D22)","v":1},"Tomás Craveiro",2000,"Coimbra","Associação Académica de Coimbra",{"$f":"SUM(L22:AW22)","v":14},{"$f":"COUNT(L22:AW22)","v":2},null,null,null,null,null,null,null,null,null,null,null,null,null,null,null,null,null,null,11,null,3]
["Masculino","-66",18,118230,{"$f":"COUNTIF(D:D,D23)","v":1},"Tomás Góis",2001,"Algarve","Judo Clube do Algarve",{"$f":"SUM(L23:AW23)","v":14},{"$f":"COUNT(L23:AW23)","v":3},null,null,null,null,null,null,null,null,null,null,null,2,null,null,null,null,1,null,null,null,11]
["Masculino","-66",19,126908,{"$f":"COUNTIF(D:D,D24)","v":1},"Diogo Oliveira",2000,"Setúbal","Clube Recreativo Charnequense",{"$f":"SUM(L24:AW24)","v":13},{"$f":"COUNT(L24:AW24)","v":2},null,null,null,null,null,null,null,null,null,null,null,7,6]
["Masculino","-66",20,129538,{"$f":"COUNTIF(D:D,D25)","v":1},"Diogo Alves",2001,"Lisboa","Escola de Judo Nuno Delgado",{"$f":"SUM(L25:AW25)","v":13},{"$f":"COUNT(L25:AW25)","v":2},null,null,null,null,null,null,null,null,null,null,null,null,null,10,null,null,null,null,null,null,3]
["Masculino","-66",21,124387,{"$f":"COUNTIF(D:D,D26)","v":1},"Simão Pereira",2001,"Leiria","Judo Clube Marinha Grande",{"$f":"SUM(L26:AW26)","v":12},{"$f":"COUNT(L26:AW26)","v":4},null,null,null,2,null,null,1,null,null,null,null,null,null,null,null,null,null,null,7,null,2]
["Masculino","-66",22,145594,{"$f":"COUNTIF(D:D,D27)","v":1},"Gonçalo Correia",2001,"Aveiro","Associação Académica da Universidade de Aveiro",{"$f":"SUM(L27:AW27)","v":11},{"$f":"COUNT(L27:AW27)","v":2},null,null,null,null,null,null,null,null,null,null,null,null,null,null,null,null,null,10,null,null,1]
["Masculino","-66",23,111668,{"$f":"COUNTIF(D:D,D28)","v":1},"João Batista",2002,"C.Branco","Atlético clube fundanense",{"$f":"SUM(L28:AW28)","v":11},{"$f":"COUNT(L28:AW28)","v":3},null,null,null,null,null,null,null,null,null,null,null,null,4,null,null,6,null,null,null,null,1]
["Masculino","-66",24,130380,{"$f":"COUNTIF(D:D,D29)","v":1},"André Mira",2001,"Setúbal","Vitoria Futebol Clube",{"$f":"SUM(L29:AW29)","v":11},{"$f":"COUNT(L29:AW29)","v":3},null,null,null,null,null,null,null,2,null,null,null,null,null,null,null,null,7,null,null,null,2]
["Masculino","-66",25,129183,{"$f":"COUNTIF(D:D,D30)","v":1},"Miguel Martins",2001,"Lisboa","Universidade Lusofona de Humanidades de Tecnologias",{"$f":"SUM(L30:AW30)","v":11},{"$f":"COUNT(L30:AW30)","v":4},null,null,null,null,null,null,null,null,1,null,null,null,5,2,null,null,null,null,null,null,3]
["Masculino","-66",26,133078,{"$f":"COUNTIF(D:D,D31)","v":1},"Damian Troianschi",2000,"Lisboa","ISJudo Associação",{"$f":"SUM(L31:AW31)","v":11},{"$f":"COUNT(L31:AW31)","v":5},3,1,null,2,null,null,4,1]
["Masculino","-66",27,130799,{"$f":"COUNTIF(D:D,D32)","v":1},"Francisco Rocha",2001,"V.Castelo","Clube de Judo da Trofa",{"$f":"SUM(L32:AW32)","v":10},{"$f":"COUNT(L32:AW32)","v":1},null,null,10]
["Masculino","-66",28,130378,{"$f":"COUNTIF(D:D,D33)","v":1},"Afonso Ferreira",2002,"Setúbal","Vitória Futebol Clube",{"$f":"SUM(L33:AW33)","v":10},{"$f":"COUNT(L33:AW33)","v":1},null,null,null,null,null,null,null,null,null,null,null,null,null,null,null,null,10]
["Masculino","-66",29,121148,{"$f":"COUNTIF(D:D,D34)","v":1},"Miguel Bettencourt",2000,"Açores","Clube de Judo Angra do Heroismo",{"$f":"SUM(L34:AW34)","v":10},{"$f":"COUNT(L34:AW34)","v":2},null,null,null,null,null,null,null,null,null,null,null,null,null,null,null,null,null,null,null,8,2]
["Masculino","-66",30,125624,{"$f":"COUNTIF(D:D,D35)","v":1},"Afonso Gonçalves",2002,"Madeira","Clube Naval do Funchal",{"$f":"SUM(L35:AW35)","v":10},{"$f":"COUNT(L35:AW35)","v":4},null,null,null,null,null,null,null,null,1,1,null,null,null,null,6,null,null,null,null,null,2]
["Masculino","-66",31,142280,{"$f":"COUNTIF(D:D,D36)","v":1},"Diogo Oliveira",2000,"Braga","Casa do Povo de Ronfe",{"$f":"SUM(L36:AW36)","v":9},{"$f":"COUNT(L36:AW36)","v":3},null,null,2,null,6,null,null,null,null,null,null,null,null,null,null,null,null,null,null,null,1]
["Masculino","-66",32,113899,{"$f":"COUNTIF(D:D,D37)","v":1},"João Vera",2001,"Lisboa","Colégio Marista de Carcavelos",{"$f":"SUM(L37:AW37)","v":9},{"$f":"COUNT(L37:AW37)","v":4},1,null,null,null,null,null,null,null,null,null,null,2,null,4,null,null,null,null,null,null,2]
["Masculino","-66",33,110652,{"$f":"COUNTIF(D:D,D38)","v":1},"Leonardo Coelho",2001,"Lisboa","Ginásio Clube Portugues",{"$f":"SUM(L38:AW38)","v":9},{"$f":"COUNT(L38:AW38)","v":5},null,null,null,1,null,null,null,null,1,null,null,null,3,2,null,null,null,null,null,null,2]
["Masculino","-66",34,119296,{"$f":"COUNTIF(D:D,D39)","v":1},"João Esteves",2001,"V.Castelo","Judo Clube de Valença",{"$f":"SUM(L39:AW39)","v":8},{"$f":"COUNT(L39:AW39)","v":2},null,null,null,null,null,null,null,null,null,null,null,null,null,null,null,null,null,6,null,null,2]
["Masculino","-66",35,143685,{"$f":"COUNTIF(D:D,D40)","v":1},"Vasco Rego",2000,"Braga","Casa do Povo de Ronfe",{"$f":"SUM(L40:AW40)","v":8},{"$f":"COUNT(L40:AW40)","v":4},null,null,2,null,4,null,null,null,null,null,null,null,1,null,null,null,null,null,null,null,1]
["Masculino","-66",36,131860,{"$f":"COUNTIF(D:D,D41)","v":1},"Pedro Medeiros",2001,"Açores","Judo Clube de Ponta Delgada",{"$f":"SUM(L41:AW41)","v":7},{"$f":"COUNT(L41:AW41)","v":2},null,null,null,null,null,null,null,null,null,null,null,null,null,null,null,null,null,null,null,5,2]
["Masculino","-66",37,112940,{"$f":"COUNTIF(D:D,D42)","v":1},"Leandro Monteiro",2001,"Santarém","Clube de Judo Riachos",{"$f":"SUM(L42:AW42)","v":7},{"$f":"COUNT(L42:AW42)","v":3},null,null,null,null,null,null,1,null,null,null,null,null,null,null,null,null,null,null,5,null,1]
["Masculino","-66",38,139485,{"$f":"COUNTIF(D:D,D43)","v":1},"Cândido Rocha",2000,"Açores","Judo Clube Ramo Grande",{"$f":"SUM(L43:AW43)","v":7},{"$f":"COUNT(L43:AW43)","v":3},null,null,null,null,null,null,null,null,null,null,null,1,null,null,null,null,null,null,null,4,2]
["Masculino","-66",39,117570,{"$f":"COUNTIF(D:D,D44)","v":1},"Sebastião Oliveira",2001,"Lisboa","Sport Algés e Dafundo",{"$f":"SUM(L44:AW44)","v":7},{"$f":"COUNT(L44:AW44)","v":4},null,null,null,null,null,null,null,null,1,null,null,3,null,2,null,null,null,null,null,null,1]
["Masculino","-66",40,123531,{"$f":"COUNTIF(D:D,D45)","v":1},"Manuel Barbosa",2001,"Viseu","Clube de Judo de Viseu",{"$f":"SUM(L45:AW45)","v":7},{"$f":"COUNT(L45:AW45)","v":4},null,null,null,null,null,null,null,null,1,null,null,null,1,null,null,null,null,4,null,null,1]
["Masculino","-66",41,117288,{"$f":"COUNTIF(D:D,D46)","v":1},"Pedro Matos",2001,"Lisboa","Sport Algés e Dafundo",{"$f":"SUM(L46:AW46)","v":6},{"$f":"COUNT(L46:AW46)","v":3},null,2,null,null,null,null,null,1,3]
["Masculino","-66",42,141956,{"$f":"COUNTIF(D:D,D47)","v":1},"Manuel Brandão",2000,"Portalegre","Casa do Povo de Castelo de Vide",{"$f":"SUM(L47:AW47)","v":6},{"$f":"COUNT(L47:AW47)","v":3},null,null,null,null,null,null,1,null,null,null,null,null,null,null,null,4,null,null,null,null,1]
["Masculino","-66",43,116178,{"$f":"COUNTIF(D:D,D48)","v":1},"Frederico Espirito Santo",2001,"Lisboa","Sport Algés e Dafundo",{"$f":"SUM(L48:AW48)","v":6},{"$f":"COUNT(L48:AW48)","v":4},null,null,null,null,null,null,null,null,2,null,null,1,null,1,null,null,null,null,null,null,2]
["Masculino","-66",44,140329,{"$f":"COUNTIF(D:D,D49)","v":1},"Gonçalo Gaião",2000,"Algarve","Judo Clube Albufeira",{"$f":"SUM(L49:AW49)","v":5},{"$f":"COUNT(L49:AW49)","v":2},1,null,null,4]
["Masculino","-66",45,131492,{"$f":"COUNTIF(D:D,D50)","v":1},"Diogo Maia",2001,"V.Castelo","Clube de Judo da Trofa",{"$f":"SUM(L50:AW50)","v":5},{"$f":"COUNT(L50:AW50)","v":2},null,null,4,null,1]
["Masculino","-66",46,120774,{"$f":"COUNTIF(D:D,D51)","v":1},"Gustavo Miranda",2002,"Madeira","Clube Naval do Funchal",{"$f":"SUM(L51:AW51)","v":5},{"$f":"COUNT(L51:AW51)","v":2},null,null,null,null,null,null,null,null,1,null,null,null,null,null,4]
["Masculino","-66",47,148267,{"$f":"COUNTIF(D:D,D52)","v":1},"Luiz Ferreira",2000,"Lisboa","Universidade Lusofona de Humanidades de Tecnologias",{"$f":"SUM(L52:AW52)","v":5},{"$f":"COUNT(L52:AW52)","v":3},null,null,null,null,null,null,null,1,2,null,null,2]
["Masculino","-66",48,106786,{"$f":"COUNTIF(D:D,D53)","v":1},"Daniel Silva",2000,"Setúbal","Externato Frei Luis de Sousa",{"$f":"SUM(L53:AW53)","v":5},{"$f":"COUNT(L53:AW53)","v":3},2,null,null,2,null,null,null,null,null,null,null,null,null,null,null,null,1]
["Masculino","-66",49,141629,{"$f":"COUNTIF(D:D,D54)","v":1},"Francisco Querido",2000,"Coimbra","Associação Recreativa de São Miguel",{"$f":"SUM(L54:AW54)","v":5},{"$f":"COUNT(L54:AW54)","v":5},null,1,null,null,1,null,1,null,null,null,null,null,1,null,null,null,null,null,1]
["Masculino","-66",50,119509,{"$f":"COUNTIF(D:D,D55)","v":1},"Francisco Gomes",2001,"Setúbal","Externato Frei Luis de Sousa",{"$f":"SUM(L55:AW55)","v":5},{"$f":"COUNT(L55:AW55)","v":5},1,null,null,1,null,null,null,null,1,null,null,1,null,null,null,null,1]
["Masculino","-66",51,114313,{"$f":"COUNTIF(D:D,D56)","v":1},"João Aguas",2000,"Lisboa","Universidade Lusofona de Humanidades de Tecnologias",{"$f":"SUM(L56:AW56)","v":4},{"$f":"COUNT(L56:AW56)","v":1},null,null,null,null,null,null,null,null,null,null,null,null,null,4]
["Masculino","-66",52,119239,{"$f":"COUNTIF(D:D,D57)","v":1},"João Matos",2000,"Setúbal","Grupo Amigos Costa Caparica",{"$f":"SUM(L57:AW57)","v":4},{"$f":"COUNT(L57:AW57)","v":1},null,null,null,null,null,null,null,null,null,null,null,null,null,null,null,null,4]
["Masculino","-66",53,135779,{"$f":"COUNTIF(D:D,D58)","v":1},"João Claro",2000,"Aalgarve","C.AM.A. - Clube de Artes Marciais de Altura - Associação",{"$f":"SUM(L58:AW58)","v":4},{"$f":"COUNT(L58:AW58)","v":1},null,null,null,null,null,null,null,null,null,null,null,null,null,null,null,null,4]
["Masculino","-66",54,114880,{"$f":"COUNTIF(D:D,D59)","v":1},"João Caetano",2002,"Coimbra","Casa do Povo de Miranda do Corvo",{"$f":"SUM(L59:AW59)","v":4},{"$f":"COUNT(L59:AW59)","v":1},null,null,null,null,null,null,null,null,null,null,null,null,null,null,null,null,null,null,4]
["Masculino","-66",55,122371,{"$f":"COUNTIF(D:D,D60)","v":1},"Rodrigo Camara",2002,"I.Terceira","Clube de Judo da Praia da Vitória",{"$f":"SUM(L60:AW60)","v":4},{"$f":"COUNT(L60:AW60)","v":2},null,null,null,null,null,null,null,null,null,null,null,null,null,null,null,null,null,null,null,3,1]
["Masculino","-66",56,110923,{"$f":"COUNTIF(D:D,D61)","v":1},"Alexandre Loureiro",2000,"Setúbal","Academia de Instrução e Recreio Familiar Almadense",{"$f":"SUM(L61:AW61)","v":4},{"$f":"COUNT(L61:AW61)","v":2},null,null,null,null,null,null,null,null,null,null,null,null,null,null,null,null,2,null,null,null,2]
["Masculino","-66",57,134286,{"$f":"COUNTIF(D:D,D62)","v":1},"Diogo Vitorino",2000,"Setúbal","Sociedade Filarmonica União Agricola",{"$f":"SUM(L62:AW62)","v":4},{"$f":"COUNT(L62:AW62)","v":3},1,2,null,1]
["Masculino","-66",58,113139,{"$f":"COUNTIF(D:D,D63)","v":1},"Diogo Ferreira",2001,"Lisboa","Colégio Marista de Carcavelos",{"$f":"SUM(L63:AW63)","v":4},{"$f":"COUNT(L63:AW63)","v":3},null,null,null,null,null,null,null,null,1,null,null,2,null,1]
["Masculino","-66",59,122311,{"$f":"COUNTIF(D:D,D64)","v":1},"Eduardo Esteves",2000,"Santarém","Ateneu Artístico Cartaxense",{"$f":"SUM(L64:AW64)","v":4},{"$f":"COUNT(L64:AW64)","v":3},null,null,null,null,null,null,null,null,null,null,null,null,1,null,null,null,null,null,2,null,1]
["Masculino","-66",60,136323,{"$f":"COUNTIF(D:D,D65)","v":1},"Maurits Kuipers",2000,"Lisboa","Oficinas São José",{"$f":"SUM(L65:AW65)","v":4},{"$f":"COUNT(L65:AW65)","v":4},1,null,null,1,null,null,null,null,null,null,null,1,null,1]
["Masculino","-66",61,124016,{"$f":"COUNTIF(D:D,D66)","v":1},"Pedro Barreno",2001,"Lisboa","União Mucifalense",{"$f":"SUM(L66:AW66)","v":4},{"$f":"COUNT(L66:AW66)","v":4},null,null,null,1,null,null,null,1,null,null,null,1,null,1]
["Masculino","-66",62,136089,{"$f":"COUNTIF(D:D,D67)","v":1},"Tiago Lima",2001,"V.Castelo","Associação Desportiva e Cultural Taiki-Budo",{"$f":"SUM(L67:AW67)","v":3},{"$f":"COUNT(L67:AW67)","v":1},null,null,null,null,null,null,null,null,null,null,null,null,null,null,null,null,null,3]
["Masculino","-66",63,120327,{"$f":"COUNTIF(D:D,D68)","v":1},"Cristiano Gherman",2002,"Algarve","Judo Clube de Portimão",{"$f":"SUM(L68:AW68)","v":3},{"$f":"COUNT(L68:AW68)","v":1},null,null,null,null,null,null,null,null,null,null,null,null,null,null,null,null,3]
["Masculino","-66",64,115513,{"$f":"COUNTIF(D:D,D69)","v":1},"Henrique Castro",2000,"Coimbra","Judo Clube Coimbra",{"$f":"SUM(L69:AW69)","v":3},{"$f":"COUNT(L69:AW69)","v":2},null,null,null,null,1,null,2]
["Masculino","-66",65,116268,{"$f":"COUNTIF(D:D,D70)","v":1},"Simão Zucchelli",2001,"Lisboa","Colégio Marista de Carcavelos",{"$f":"SUM(L70:AW70)","v":3},{"$f":"COUNT(L70:AW70)","v":2},1,null,null,null,null,null,null,null,2]
["Masculino","-66",66,119561,{"$f":"COUNTIF(D:D,D71)","v":1},"Paulo Cortesão",2001,"Coimbra","Escola de Judo de Coimbra",{"$f":"SUM(L71:AW71)","v":3},{"$f":"COUNT(L71:AW71)","v":2},null,1,null,null,null,null,2]
["Masculino","-66",67,109731,{"$f":"COUNTIF(D:D,D72)","v":1},"João Mendes",2002,"C.Branco","Academia de Judo de Castelo Branco",{"$f":"SUM(L72:AW72)","v":3},{"$f":"COUNT(L72:AW72)","v":2},null,null,null,null,null,null,null,null,null,null,null,null,1,null,null,2]
["Masculino","-66",68,141625,{"$f":"COUNTIF(D:D,D73)","v":1},"Diogo Silva",2000,"Coimbra","Judo Clube Barcelos - JUBA",{"$f":"SUM(L73:AW73)","v":3},{"$f":"COUNT(L73:AW73)","v":3},1,null,1,null,1]
["Masculino","-66",69,114617,{"$f":"COUNTIF(D:D,D74)","v":1},"Tomás Apolinário",2000,"Lisboa","Judo Clube Sintra",{"$f":"SUM(L74:AW74)","v":2},{"$f":"COUNT(L74:AW74)","v":1},null,null,null,null,null,null,null,null,2]
["Masculino","-66",70,108460,{"$f":"COUNTIF(D:D,D75)","v":1},"Marco Geraldes",2000,"Lisboa","Escola de Judo Nuno Delgado",{"$f":"SUM(L75:AW75)","v":2},{"$f":"COUNT(L75:AW75)","v":1},2]
["Masculino","-66",71,139562,{"$f":"COUNTIF(D:D,D76)","v":1},"Manuel Esteves",2001,"Lisboa","Sport Algés e Dafundo",{"$f":"SUM(L76:AW76)","v":2},{"$f":"COUNT(L76:AW76)","v":1},null,null,null,null,null,null,null,null,2]
["Masculino","-66",72,144366,{"$f":"COUNTIF(D:D,D77)","v":1},"Martim Louzeiro",2002,"Lisboa","Ginásio Clube Portugues",{"$f":"SUM(L77:AW77)","v":2},{"$f":"COUNT(L77:AW77)","v":1},null,null,null,null,null,null,null,null,null,null,null,null,2]
["Masculino","-66",73,120199,{"$f":"COUNTIF(D:D,D78)","v":1},"João Garcês",2002,"Lisboa","Universidade Lusofona de Humanidades de Tecnologias",{"$f":"SUM(L78:AW78)","v":2},{"$f":"COUNT(L78:AW78)","v":1},null,null,null,null,null,null,null,null,null,null,null,null,null,2]
["Masculino","-66",74,124106,{"$f":"COUNTIF(D:D,D79)","v":1},"Vicente Ribeiro",2002,"Lisboa","Sporting Clube de Portugal",{"$f":"SUM(L79:AW79)","v":2},{"$f":"COUNT(L79:AW79)","v":1},null,null,null,null,null,null,null,null,null,null,null,null,null,2]
["Masculino","-66",75,139759,{"$f":"COUNTIF(D:D,D80)","v":1},"Miguel Carrera",2002,"Setúbal","Clube de Judo Montijo",{"$f":"SUM(L80:AW80)","v":2},{"$f":"COUNT(L80:AW80)","v":1},null,null,null,null,null,null,null,null,null,null,null,null,null,null,null,null,2]
["Masculino","-66",76,118910,{"$f":"COUNTIF(D:D,D81)","v":1},"Gonçalo Costa",2001,"Coimbra","Judo Clube de Barcelos",{"$f":"SUM(L81:AW81)","v":2},{"$f":"COUNT(L81:AW81)","v":1},null,null,null,null,null,null,null,null,null,null,null,null,null,null,null,null,null,null,2]
["Masculino","-66",77,141265,{"$f":"COUNTIF(D:D,D82)","v":1},"Diogo Fernandes",2001,"Lisboa","Escola de Judo Nuno Delgado",{"$f":"SUM(L82:AW82)","v":2},{"$f":"COUNT(L82:AW82)","v":2},null,null,null,1,null,null,null,1]
["Masculino","-66",78,135240,{"$f":"COUNTIF(D:D,D83)","v":1},"Rodrigo Costa",2001,"Lisboa","Universidade Lusofona de Humanidades de Tecnologias",{"$f":"SUM(L83:AW83)","v":2},{"$f":"COUNT(L83:AW83)","v":2},null,null,null,null,null,null,null,null,1,null,null,null,1]
["Masculino","-66",79,147173,{"$f":"COUNTIF(D:D,D84)","v":1},"António Murias",2001,"Lisboa","Academia de Judo da Amadora",{"$f":"SUM(L84:AW84)","v":2},{"$f":"COUNT(L84:AW84)","v":2},null,null,null,1,null,null,null,null,null,null,null,null,null,1]
["Masculino","-66",80,131546,{"$f":"COUNTIF(D:D,D85)","v":1},"Pedro Navalhas",2001,"Lisboa","Academia de Judo da Amadora",{"$f":"SUM(L85:AW85)","v":2},{"$f":"COUNT(L85:AW85)","v":2},null,null,null,null,null,null,null,null,1,null,null,null,null,1]
["Masculino","-66",81,148139,{"$f":"COUNTIF(D:D,D86)","v":1},"André Soares",2001,"Aveiro","Clube Desportivo Feirense",{"$f":"SUM(L86:AW86)","v":2},{"$f":"COUNT(L86:AW86)","v":2},null,null,null,null,null,null,null,null,null,null,null,null,1,null,null,null,null,1]
["Masculino","-66",82,113414,{"$f":"COUNTIF(D:D,D87)","v":1},"João Bochecha",2000,"Lisboa","Sport Algés e Dafundo",{"$f":"SUM(L87:AW87)","v":1},{"$f":"COUNT(L87:AW87)","v":1},null,1]
["Masculino","-66",83,145016,{"$f":"COUNTIF(D:D,D88)","v":1},"Pedro Ferreira",2001,"C.Branco","Sport Tortosendo e Benfica",{"$f":"SUM(L88:AW88)","v":1},{"$f":"COUNT(L88:AW88)","v":1},null,1]
["Masculino","-66",84,148551,{"$f":"COUNTIF(D:D,D89)","v":1},"Yevhenii Penzenik",2000,"Lisboa","Judo Clube Lisboa",{"$f":"SUM(L89:AW89)","v":1},{"$f":"COUNT(L89:AW89)","v":1},1]
["Masculino","-66",85,143380,{"$f":"COUNTIF(D:D,D90)","v":1},"Diogo Marques",2000,"Guarda","Associação Humanitária Bombeiros Voluntários de Gouveia",{"$f":"SUM(L90:AW90)","v":1},{"$f":"COUNT(L90:AW90)","v":1},null,null,null,null,null,null,1]
["Masculino","-66",86,144854,{"$f":"COUNTIF(D:D,D91)","v":1},"Hildebrando Mendes",2000,"Aveiro","Associação 4Judo Project",{"$f":"SUM(L91:AW91)","v":1},{"$f":"COUNT(L91:AW91)","v":1},null,null,1]
["Masculino","-66",87,136215,{"$f":"COUNTIF(D:D,D92)","v":1},"Miguel Luis",2000,"Santarém","Judo Clube Salvaterra de Magos",{"$f":"SUM(L92:AW92)","v":1},{"$f":"COUNT(L92:AW92)","v":1},null,null,null,null,null,null,null,null,1]
["Masculino","-66",88,134391,{"$f":"COUNTIF(D:D,D93)","v":1},"Daniel Fino",2001,"Setúbal","Vitória Futebol Clube",{"$f":"SUM(L93:AW93)","v":1},{"$f":"COUNT(L93:AW93)","v":1},null,null,null,null,null,null,null,null,1]
["Masculino","-66",89,124070,{"$f":"COUNTIF(D:D,D94)","v":1},"João Gonçalves",2002,"Lisboa","Escola de Judo Nuno Delgado",{"$f":"SUM(L94:AW94)","v":1},{"$f":"COUNT(L94:AW94)","v":1},null,null,null,null,null,null,null,null,1]
["Masculino","-66",90,140994,{"$f":"COUNTIF(D:D,D95)","v":1},"Miguel Moreira",2002,"Lisboa","Escola de Judo Nuno Delgado",{"$f":"SUM(L95:AW95)","v":1},{"$f":"COUNT(L95:AW95)","v":1},null,null,null,null,null,null,null,null,null,null,null,1]
["Masculino","-66",91,144863,{"$f":"COUNTIF(D:D,D96)","v":1},"Rui Martins",2001,"Santarém","Associação Académica e Desportiva de Rio Maior",{"$f":"SUM(L96:AW96)","v":1},{"$f":"COUNT(L96:AW96)","v":1},null,null,null,null,null,null,null,null,null,null,null,null,1]
["Masculino","-66",92,149327,{"$f":"COUNTIF(D:D,D97)","v":1},"João Amado",2000,"Coimbra","Montanha Clube",{"$f":"SUM(L97:AW97)","v":1},{"$f":"COUNT(L97:AW97)","v":1},null,null,null,null,null,null,null,null,null,null,null,null,1]
["Masculino","-66",93,143167,{"$f":"COUNTIF(D:D,D98)","v":1},"Fábio Veríssimo",2002,"Santarém","Grupro Recreativo 1º de Outubro de 1911",{"$f":"SUM(L98:AW98)","v":1},{"$f":"COUNT(L98:AW98)","v":1},null,null,null,null,null,null,null,null,null,null,null,null,1]
["Masculino","-66",94,144862,{"$f":"COUNTIF(D:D,D99)","v":1},"Ricardo Martins",2001,"Santarém","Associação Académica e Desportiva de Rio Maior",{"$f":"SUM(L99:AW99)","v":1},{"$f":"COUNT(L99:AW99)","v":1},null,null,null,null,null,null,null,null,null,null,null,null,1]
["Masculino","-66",95,142352,{"$f":"COUNTIF(D:D,D100)","v":1},"Eduardo Balutelu",2000,"Algarve","Judo Clube Portimão",{"$f":"SUM(L100:AW100)","v":1},{"$f":"COUNT(L100:AW100)","v":1},null,null,null,null,null,null,null,null,null,null,null,null,null,null,null,null,1]
["Masculino","-66",96,117105,{"$f":"COUNTIF(D:D,D101)","v":1},"Francisco Camacho",2001,"Madeira","Grupo Desportivo Apel",{"$f":"SUM(L101:AW101)","v":1},{"$f":"COUNT(L101:AW101)","v":1},null,null,null,null,null,null,null,null,null,null,null,null,null,null,1]
["Masculino","-66",97,137614,{"$f":"COUNTIF(D:D,D102)","v":1},"Bruno Silva",2001,"Açores","Clube de Judo de Angra do Heroismo",{"$f":"SUM(L102:AW102)","v":1},{"$f":"COUNT(L102:AW102)","v":1},null,null,null,null,null,null,null,null,null,null,null,null,null,null,null,null,null,null,null,1]
["Masculino","-66",98,149894,{"$f":"COUNTIF(D:D,D103)","v":1},"Carlos Caipirra",2000,"Beja","Judo Clube de Alvito",{"$f":"SUM(L103:AW103)","v":1},{"$f":"COUNT(L103:AW103)","v":1},null,null,null,null,null,null,null,null,null,null,null,null,null,null,null,null,1]
["Masculino","-66",99,146792,{"$f":"COUNTIF(D:D,D104)","v":1},"Rodrigo Rufo",2002,"Portalegre","Casa do Povo de Castelo de Vide",{"$f":"SUM(L104:AW104)","v":1},{"$f":"COUNT(L104:AW104)","v":1},null,null,null,null,null,null,null,null,null,null,null,null,null,null,null,1]
["Masculino","-66",100,141770,{"$f":"COUNTIF(D:D,D105)","v":1},"Marcelo Caetano",2002,"Coimbra","Associação Académica de Coimbra",{"$f":"SUM(L105:AW105)","v":1},{"$f":"COUNT(L105:AW105)","v":1},null,null,null,null,null,null,null,null,null,null,null,null,null,null,null,null,null,null,1]
["Masculino","-66",101,128619,{"$f":"COUNTIF(D:D,D106)","v":1},"Mário Sá",2002,"V.Castelo","Centro Social e Paroquial de Alvarães",{"$f":"SUM(L106:AW106)","v":1},{"$f":"COUNT(L106:AW106)","v":1},null,null,null,null,null,null,null,null,null,null,null,null,null,null,null,null,null,1]
["Masculino","-66",102,141832,{"$f":"COUNTIF(D:D,D107)","v":1},"Alexandre Gitanu",2001,"Setúbal","Externato Frei Luis de Sousa",{"$f":"SUM(L107:AW107)","v":1},{"$f":"COUNT(L107:AW107)","v":1},null,null,null,null,null,null,null,null,null,null,null,null,null,null,null,null,1]
["Masculino","-66",103,141543,{"$f":"COUNTIF(D:D,D108)","v":1},"Marco Borralho",2002,"Beja","Associacao Bombeiros Voluntarios de Beja",{"$f":"SUM(L108:AW108)","v":1},{"$f":"COUNT(L108:AW108)","v":1},null,null,null,null,null,null,null,null,null,null,null,null,null,null,null,null,null,null,null,null,1]
["Masculino","-66",104,120736,{"$f":"COUNTIF(D:D,D109)","v":1},"André Morgado",2002,"Santarém","Clube de Judo de Riachos",{"$f":"SUM(L109:AW109)","v":1},{"$f":"COUNT(L109:AW109)","v":1},null,null,null,null,null,null,null,null,null,null,null,null,null,null,null,null,null,null,null,null,1]
["Masculino","-66",105,122550,{"$f":"COUNTIF(D:D,D110)","v":1},"Hugo Galamba",2001,"Lisboa","Sport Lisboa e Benfica",{"$f":"SUM(L110:AW110)","v":1},{"$f":"COUNT(L110:AW110)","v":1},null,null,null,null,null,null,null,null,null,null,null,null,null,null,null,null,null,null,null,null,1]
["Masculino","-66",106,114876,{"$f":"COUNTIF(D:D,D111)","v":1},"Gonçalo Pascoal",2000,"Coimbra","Judo Clube Coimbra",{"$f":"SUM(L111:AW111)","v":1},{"$f":"COUNT(L111:AW111)","v":1},null,null,null,null,null,null,null,null,null,null,null,null,null,null,null,null,null,null,null,null,1]
["Masculino","-66",107,123255,{"$f":"COUNTIF(D:D,D112)","v":1},"Diogo Pinto",2002,"Braga","ARCAP - Associação Recreativa e Cultural \"Amigos da Ponte\"",{"$f":"SUM(L112:AW112)","v":0},{"$f":"COUNT(L112:AW112)","v":0}]
["Masculino","-66",108,128267,{"$f":"COUNTIF(D:D,D113)","v":1},"António Tetino",2001,"Lisboa","Escola de Judo Nuno Delgado",{"$f":"SUM(L113:AW113)","v":0},{"$f":"COUNT(L113:AW113)","v":0}]
["Masculino","-66",109,137707,{"$f":"COUNTIF(D:D,D114)","v":1},"Manuel Medeiros",2000,"Açores","Clube de Judo Angra do Heroismo",{"$f":"SUM(L114:AW114)","v":0},{"$f":"COUNT(L114:AW114)","v":0}]
["Masculino","-66",110,140816,{"$f":"COUNTIF(D:D,D115)","v":1},"Diogo Silva",2000,"Porto","Boavista Futebol Clube",{"$f":"SUM(L115:AW115)","v":0},{"$f":"COUNT(L115:AW115)","v":0}]
["Masculino","-66",111,125900,{"$f":"COUNTIF(D:D,D116)","v":1},"Miguel Francisco",2000,"Lisboa","Escola de Judo Nuno Delgado",{"$f":"SUM(L116:AW116)","v":0},{"$f":"COUNT(L116:AW116)","v":0}]
["Masculino","-66",112,null,{"$f":"COUNTIF(D:D,D117)","v":0},null,null,null,null,{"$f":"SUM(L117:AW117)","v":0},{"$f":"COUNT(L117:AW117)","v":0}]
["Masculino","-66",113,null,{"$f":"COUNTIF(D:D,D118)","v":0},null,null,null,null,{"$f":"SUM(L118:AW118)","v":0},{"$f":"COUNT(L118:AW118)","v":0}]
["Masculino","-66",114,null,{"$f":"COUNTIF(D:D,D119)","v":0},null,null,null,null,{"$f":"SUM(L119:AW119)","v":0},{"$f":"COUNT(L119:AW119)","v":0}]
["Masculino","-66",115,null,0,null,null,null,null,0,0]
["Masculino","-66",116,null,0,null,null,null,null,0,0]
["Masculino","-66",117,null,0,null,null,null,null,0,0]
["Masculino","-66",118,null,0,null,null,null,null,0,0]
["Masculino","-66",119,null,0,null,null,null,null,0,0]
["Masculino","-66",120,null,0,null,null,null,null,0,0]
["Masculino","-66",121,null,0,null,null,null,null,0,0]
["Masculino","-66",122,null,0,null,null,null,null,0,0]
["Masculino","-66",123,null,0,null,null,null,null,0,0]
["Masculino","-66",124,null,0,null,null,null,null,0,0]

{"sheet":"-73","index":7,"n_rows":94,"n_cols":45,"rows_kept":94,"cut":false,"hidden":false,"merged":[]}
[null,null,null,null,null,null,null,null,"CADETES"]
[null,null,null,null,null,null,null,null,"-73KG ",null,null,"LISBOA","CASTELO BRANCO","COIMBRA","SETÚBAL","VIANA CASTELO","I.TERCEIRA","COIMBRA","SANTARÉM","LISBOA","MADEIRA","AÇORES","SETÚBAL","COIMBRA","LISBOA","MADEIRA","C.BRANCO","SETÚBAL","VISEU","SANTARÉM","AÇORES","FPJ","Leiria","Lisboa","Castelo Branco","Coimbra","Leiria","Setúbal","Coimbra","V. Castelo","Santarém","Lisboa","Madeira","Setúbal","Coimbra"]
[null,null,null,null,null,null,null,null,null,null,null,"2016-04-09","2016-04-17","2016-04-30","2016-04-30","2016-06-18","2016-06-25","2016-06-26","2016-07-03","2016-10-22","2016-11-12","2016-11-19","2016-11-19","2016-12-17","2017-01-14","2017-01-14","2017-01-21","2017-01-21","2017-01-21","2017-01-21","2017-01-21","2017-02-11","2017-02-18","2017-04-01","2017-04-22","2017-04-29","2017-04-29","2017-05-13","2017-06-17","2017-06-17","2017-07-02","2017-11-11","2017-11-11","2017-11-18","2017-12-16"]
["Género","Categoria",null,"LF",null,"NOME","Ano de Nascimento","Associação","CLUBE","Somatório Pontos","Número de provas","OPEN CADETES","OPEN MESTRE ANTONIO MORAIS","OPEN INT. CIDADE BARCELOS","OPEN MONTIJO CADETES","OPEN INT. CIDADE DE VALENÇA","TORNEIO DE SÃO JOÃO","TAÇA ANTONIO ALEIXO","OPEN INT. ADJ SANTARÉM","OPEN CADETES","OPEN CADETES","OPEN PONTA DELGADA","OPEN PRAGAL","OPEN CADETES","Zonal de Cadetes","Zonal de Cadetes","Zonal de Cadetes","Zonal de Cadetes","Zonal de Cadetes","Zonal de Cadetes","Zonal de Cadetes","Camp.Nac. Cadetes","Torneio Associativo","Open Cadetes","Open Cadetes \"Mestre António Morais\"","OPEN INT. CIDADE BARCELOS","Torneio Associativo","Taça Cidade do Montijo","V Taça António Lopes Aleixo","III Open Int. Eurocidade Valença Tui","V Open Int. Cadetes","Open Cadetes","Open Cadetes","Torneio Aniversário JC Pragal","Open Cadetes"]
[]
["Masculino","-73",1,128267,{"$f":"COUNTIF(D:D,D6)","v":1},"António Tetino",2001,"Lisboa","Escola de Judo Nuno Delgado",{"$f":"SUM(L6:AW6)","v":57},{"$f":"COUNT(L6:AW6)","v":8},6,4,null,5,null,null,null,8,5,null,null,6,null,9,null,null,null,null,null,null,14]
["Masculino","-73",2,118793,{"$f":"COUNTIF(D:D,D7)","v":1},"Rodrigo Boavida",2001,"Viseu","Judo Clube Viseu",{"$f":"SUM(L7:AW7)","v":52},{"$f":"COUNT(L7:AW7)","v":9},null,7,3,null,1,null,7,7,3,null,null,null,6,null,null,null,null,10,null,null,8]
["Masculino","-73",3,133078,{"$f":"COUNTIF(D:D,D8)","v":1},"Damian Troianschi",2000,"Lisboa","Judo Clube de Portugal",{"$f":"SUM(L8:AW8)","v":51},{"$f":"COUNT(L8:AW8)","v":5},null,null,null,null,null,null,null,null,10,null,null,7,10,13,null,null,null,null,null,null,11]
["Masculino","-73",4,112792,{"$f":"COUNTIF(D:D,D9)","v":1},"Manuel Rodrigues",2000,"Setúbal","Judo Clube do Pragal",{"$f":"SUM(L9:AW9)","v":44},{"$f":"COUNT(L9:AW9)","v":3},null,null,null,null,null,null,null,null,null,null,null,13,null,null,null,null,13,null,null,null,18]
["Masculino","-73",5,108074,{"$f":"COUNTIF(D:D,D10)","v":1},"Francisco Rovira",2001,"Coimbra","Associação Academica de Coimbra",{"$f":"SUM(L10:AW10)","v":33},{"$f":"COUNT(L10:AW10)","v":3},null,null,null,null,null,null,null,null,null,null,null,null,12,null,null,null,null,null,10,null,11]
["Masculino","-73",6,124234,{"$f":"COUNTIF(D:D,D11)","v":1},"Ruben Melo",2001,"Lisboa","Sport Lisboa e Benfica",{"$f":"SUM(L11:AW11)","v":27},{"$f":"COUNT(L11:AW11)","v":9},1,1,null,1,null,null,1,1,4,null,null,9,7,null,null,null,null,null,null,null,2]
["Masculino","-73",7,130507,{"$f":"COUNTIF(D:D,D12)","v":1},"Pedro Severo",2000,"Setúbal","Externado Frei Luis de Sousa",{"$f":"SUM(L12:AW12)","v":21},{"$f":"COUNT(L12:AW12)","v":5},1,null,null,6,null,null,null,null,null,null,null,4,null,null,null,null,6,null,null,null,4]
["Masculino","-73",8,112121,{"$f":"COUNTIF(D:D,D13)","v":1},"José Cardoso",2001,"Santarém","Sport Clube Operário Cem Soldos",{"$f":"SUM(L13:AW13)","v":20},{"$f":"COUNT(L13:AW13)","v":2},10,10]
["Masculino","-73",9,123255,{"$f":"COUNTIF(D:D,D14)","v":1},"Diogo Pinto",2002,"Braga","ARCAP - Associação Recreativa e Cultural \"Amigos da Ponte\"",{"$f":"SUM(L14:AW14)","v":17},{"$f":"COUNT(L14:AW14)","v":2},null,null,5,null,12]
["Masculino","-73",10,140085,{"$f":"COUNTIF(D:D,D15)","v":1},"Bernardo Lopes",2001,"Setúbal","Clube Recreativo Charnequense",{"$f":"SUM(L15:AW15)","v":16},{"$f":"COUNT(L15:AW15)","v":2},null,null,null,null,null,null,null,null,null,null,null,null,null,null,null,null,9,null,null,null,7]
["Masculino","-73",11,137621,{"$f":"COUNTIF(D:D,D16)","v":1},"Nuno Oliveira",2001,"Porto","Boavista Futebol Clube",{"$f":"SUM(L16:AW16)","v":15},{"$f":"COUNT(L16:AW16)","v":5},null,null,1,null,4,null,null,1,null,null,null,null,null,null,null,null,null,7,null,null,2]
["Masculino","-73",12,125380,{"$f":"COUNTIF(D:D,D17)","v":1},"Diogo Antunes",2001,"Lisboa","Sport Algés e Dafundo",{"$f":"SUM(L17:AW17)","v":13},{"$f":"COUNT(L17:AW17)","v":4},null,2,null,null,null,null,null,3,null,null,null,null,null,7,null,null,null,null,null,null,1]
["Masculino","-73",13,135257,{"$f":"COUNTIF(D:D,D18)","v":1},"Miguel Louzeiro",2000,"Lisboa","Ginásio clube Português",{"$f":"SUM(L18:AW18)","v":12},{"$f":"COUNT(L18:AW18)","v":2},null,null,null,null,null,null,null,null,null,null,null,null,null,7,null,null,null,null,null,null,5]
["Masculino","-73",14,108075,{"$f":"COUNTIF(D:D,D19)","v":1},"Vicente Rovira",2001,"Coimbra","Associação Académica de Coimbra",{"$f":"SUM(L19:AW19)","v":12},{"$f":"COUNT(L19:AW19)","v":3},null,null,2,null,null,null,9,1]
["Masculino","-73",15,112312,{"$f":"COUNTIF(D:D,D20)","v":1},"Afonso Sarnadas",2000,"Portalegre","Casa do Povo de Castelo de Vide",{"$f":"SUM(L20:AW20)","v":11},{"$f":"COUNT(L20:AW20)","v":2},null,null,null,null,null,null,null,null,null,null,null,null,null,null,null,10,null,null,null,null,1]
["Masculino","-73",16,108191,{"$f":"COUNTIF(D:D,D21)","v":1},"Afonso Carvalho",2000,"Coimbra","Clube de Judo do Porto",{"$f":"SUM(L21:AW21)","v":11},{"$f":"COUNT(L21:AW21)","v":3},null,null,null,4,null,null,null,null,null,null,null,null,null,null,null,null,null,null,6,null,1]
["Masculino","-73",17,114520,{"$f":"COUNTIF(D:D,D22)","v":1},"João Camara",2000,"Lisboa","Universidade Lusofona de Humanidades de Tecnologias",{"$f":"SUM(L22:AW22)","v":11},{"$f":"COUNT(L22:AW22)","v":3},null,null,null,null,null,null,null,null,7,null,null,null,null,3,null,null,null,null,null,null,1]
["Masculino","-73",18,140719,{"$f":"COUNTIF(D:D,D23)","v":1},"Miguel Piedade",2000,"Coimbra","Associação Cristã da Mocidade de Coimbra",{"$f":"SUM(L23:AW23)","v":11},{"$f":"COUNT(L23:AW23)","v":3},null,null,null,null,null,null,null,null,null,null,null,null,4,null,null,null,null,null,4,null,3]
["Masculino","-73",19,137707,{"$f":"COUNTIF(D:D,D24)","v":1},"Manuel Medeiros",2000,"Aaçores","Clube de Judo de Angra do Heroísmo",{"$f":"SUM(L24:AW24)","v":9},{"$f":"COUNT(L24:AW24)","v":2},null,null,null,null,null,null,null,null,null,null,null,null,null,null,null,null,null,null,null,6,3]
["Masculino","-73",20,114291,{"$f":"COUNTIF(D:D,D25)","v":1},"Afonso Silva",2000,"Lisboa","Judo Clube Lisboa",{"$f":"SUM(L25:AW25)","v":9},{"$f":"COUNT(L25:AW25)","v":3},7,null,null,1,null,null,null,null,null,null,null,null,null,null,null,null,null,null,null,null,1]
["Masculino","-73",21,142250,{"$f":"COUNTIF(D:D,D26)","v":1},"Pedro Meneses",2001,"Açores","Judo Clube Ramo Grande",{"$f":"SUM(L26:AW26)","v":9},{"$f":"COUNT(L26:AW26)","v":4},null,null,null,3,null,null,null,null,null,null,null,1,null,null,null,null,null,null,null,4,1]
["Masculino","-73",22,119561,{"$f":"COUNTIF(D:D,D27)","v":1},"Paulo Cortesão",2001,"Coimbra","Escola de judo de Coimbra",{"$f":"SUM(L27:AW27)","v":8},{"$f":"COUNT(L27:AW27)","v":2},null,null,null,null,null,null,null,null,null,null,null,null,null,null,null,null,null,null,5,null,3]
["Masculino","-73",23,119532,{"$f":"COUNTIF(D:D,D28)","v":1},"Simão Batista",2000,"Setúbal","Judo Clube do Pragal",{"$f":"SUM(L28:AW28)","v":8},{"$f":"COUNT(L28:AW28)","v":3},null,null,null,1,null,null,null,null,null,null,null,null,null,null,null,null,6,null,null,null,1]
["Masculino","-73",24,139455,{"$f":"COUNTIF(D:D,D29)","v":1},"Pedro Cavaco",2000,"Setúbal","Clube Recreativo Charnequense",{"$f":"SUM(L29:AW29)","v":8},{"$f":"COUNT(L29:AW29)","v":3},4,null,null,1,null,null,null,null,null,null,null,null,3]
["Masculino","-73",25,115660,{"$f":"COUNTIF(D:D,D30)","v":1},"Francisco Gomes",2000,"Portalegre","Ass. Desp Judo Clube Portalegre",{"$f":"SUM(L30:AW30)","v":7},{"$f":"COUNT(L30:AW30)","v":2},null,null,null,null,null,null,null,null,null,null,null,null,null,null,null,6,null,null,null,null,1]
["Masculino","-73",26,137383,{"$f":"COUNTIF(D:D,D31)","v":1},"Miguel Colesnic",2001,"Algarve","Unbreakable Force - Associação Desportiva e Cultural",{"$f":"SUM(L31:AW31)","v":7},{"$f":"COUNT(L31:AW31)","v":3},null,null,null,null,null,null,null,null,null,null,null,null,2,null,null,null,3,null,null,null,2]
["Masculino","-73",27,131860,{"$f":"COUNTIF(D:D,D32)","v":1},"Pedro Medeiros",2001,"Açores","Judo Clube Ponta Delgada",{"$f":"SUM(L32:AW32)","v":6},{"$f":"COUNT(L32:AW32)","v":1},null,null,null,null,null,null,null,null,null,null,6]
["Masculino","-73",28,135040,{"$f":"COUNTIF(D:D,D33)","v":1},"Rodrigo Santos",2002,"C.Branco","Academia de Judo de Castelo Branco",{"$f":"SUM(L33:AW33)","v":6},{"$f":"COUNT(L33:AW33)","v":3},null,null,null,null,null,null,null,null,null,null,null,null,1,null,null,4,null,null,null,null,1]
["Masculino","-73",29,127155,{"$f":"COUNTIF(D:D,D34)","v":1},"João Novais",2001,"Santarém","Sporting Clube Tomar",{"$f":"SUM(L34:AW34)","v":6},{"$f":"COUNT(L34:AW34)","v":4},2,1,null,null,null,null,null,null,2,null,null,null,1]
["Masculino","-73",30,148796,{"$f":"COUNTIF(D:D,D35)","v":1},"André Barbosa",2000,"V.Castelo","Clube de Judo da Trofa",{"$f":"SUM(L35:AW35)","v":5},{"$f":"COUNT(L35:AW35)","v":2},null,null,4,null,1]
["Masculino","-73",31,140525,{"$f":"COUNTIF(D:D,D36)","v":1},"Diogo Carrapiço",2002,"Setúbal","Clube Recreativo Charnequense",{"$f":"SUM(L36:AW36)","v":5},{"$f":"COUNT(L36:AW36)","v":2},null,null,null,null,null,null,null,null,null,null,null,null,null,null,null,null,4,null,null,null,1]
["Masculino","-73",32,117288,{"$f":"COUNTIF(D:D,D37)","v":1},"Pedro Matos",2001,"Lisboa","Sport Algés e Dafundo",{"$f":"SUM(L37:AW37)","v":5},{"$f":"COUNT(L37:AW37)","v":2},null,null,null,null,null,null,null,null,null,null,null,null,null,3,null,null,null,null,null,null,2]
["Masculino","-73",33,128819,{"$f":"COUNTIF(D:D,D38)","v":1},"Francisco Silva",2002,"Porto","Boavista Futebol clube",{"$f":"SUM(L38:AW38)","v":5},{"$f":"COUNT(L38:AW38)","v":2},null,null,null,null,null,null,null,null,null,null,null,null,null,null,null,null,null,3,null,null,2]
["Masculino","-73",34,116005,{"$f":"COUNTIF(D:D,D39)","v":1},"Gonçalo Correia",2002,"Lisboa","Colégio Marista de Carcavelos",{"$f":"SUM(L39:AW39)","v":4},{"$f":"COUNT(L39:AW39)","v":1},null,null,null,null,null,null,null,null,null,null,null,4]
["Masculino","-73",35,141647,{"$f":"COUNTIF(D:D,D40)","v":1},"Ernesto Antunes",2000,"Açores","Judo Clube Ponta Delgada",{"$f":"SUM(L40:AW40)","v":4},{"$f":"COUNT(L40:AW40)","v":1},null,null,null,null,null,null,null,null,null,null,4]
["Masculino","-73",36,130824,{"$f":"COUNTIF(D:D,D41)","v":1},"José Faria",2001,"Braga","ARCAP - Associação Recreativa e Cultural \"Amigos da Ponte\"",{"$f":"SUM(L41:AW41)","v":4},{"$f":"COUNT(L41:AW41)","v":2},null,null,3,null,null,null,null,null,null,null,null,null,null,null,null,null,null,null,null,null,1]
["Masculino","-73",37,144366,{"$f":"COUNTIF(D:D,D42)","v":1},"Martim Louzeiro",2002,"Lisboa","Ginásio Clube Portugues",{"$f":"SUM(L42:AW42)","v":4},{"$f":"COUNT(L42:AW42)","v":2},null,null,null,null,null,null,null,null,null,null,null,null,null,2,null,null,null,null,null,null,2]
["Masculino","-73",38,107973,{"$f":"COUNTIF(D:D,D43)","v":1},"Paulo Brito",2000,"Madeira","Clube Naval do Funchal",{"$f":"SUM(L43:AW43)","v":4},{"$f":"COUNT(L43:AW43)","v":3},null,null,null,null,null,null,null,null,null,1,null,null,null,null,1,null,null,null,null,null,2]
["Masculino","-73",39,150905,{"$f":"COUNTIF(D:D,D44)","v":1},"Diogo Oliveira",2000,"Portalegre","Casa do Povo de Campo Maior",{"$f":"SUM(L44:AW44)","v":3},{"$f":"COUNT(L44:AW44)","v":1},null,null,null,null,null,null,null,null,null,null,null,null,null,null,null,3]
["Masculino","-73",40,143380,{"$f":"COUNTIF(D:D,D45)","v":1},"Diogo Marques",2000,"Guarda","Associação Humanitária dos Bombeiros Voluntários de Gouveia",{"$f":"SUM(L45:AW45)","v":3},{"$f":"COUNT(L45:AW45)","v":1},null,null,null,null,null,null,null,null,null,null,null,null,null,null,null,null,null,3]
["Masculino","-73",41,113138,{"$f":"COUNTIF(D:D,D46)","v":1},"Eduardo Rodrigues",2002,"Lisboa","Colégio Marista de Carcavelos",{"$f":"SUM(L46:AW46)","v":3},{"$f":"COUNT(L46:AW46)","v":3},null,null,null,null,null,null,null,null,null,null,null,1,null,1,null,null,null,null,null,null,1]
["Masculino","-73",42,120880,{"$f":"COUNTIF(D:D,D47)","v":1},"Geraldo Pinto",2000,"V.Castelo","Judo Clube Valença",{"$f":"SUM(L47:AW47)","v":2},{"$f":"COUNT(L47:AW47)","v":1},null,null,2]
["Masculino","-73",43,144836,{"$f":"COUNTIF(D:D,D48)","v":1},"Nuno Silva",2001,"Setúbal","Externado Frei Luis de Sousa",{"$f":"SUM(L48:AW48)","v":2},{"$f":"COUNT(L48:AW48)","v":1},2]
["Masculino","-73",44,119296,{"$f":"COUNTIF(D:D,D49)","v":1},"João Esteves",2001,"V.Castelo","Judo Clube Valença (Juvalença)",{"$f":"SUM(L49:AW49)","v":2},{"$f":"COUNT(L49:AW49)","v":1},null,null,null,null,2]
["Masculino","-73",45,144508,{"$f":"COUNTIF(D:D,D50)","v":1},"Tomás Ramos",2001,"Coimbra","Associação Académica de Coimbra",{"$f":"SUM(L50:AW50)","v":2},{"$f":"COUNT(L50:AW50)","v":1},null,null,null,null,null,null,null,null,null,null,null,null,null,null,null,null,null,null,2]
["Masculino","-73",46,124933,{"$f":"COUNTIF(D:D,D51)","v":1},"João Afonso",2001,"Lisboa","Sport Algés e Dafundo",{"$f":"SUM(L51:AW51)","v":2},{"$f":"COUNT(L51:AW51)","v":2},1,1]
["Masculino","-73",47,133279,{"$f":"COUNTIF(D:D,D52)","v":1},"Diogo Alves",2001,"Leiria","Judo Clube Marinha Grande",{"$f":"SUM(L52:AW52)","v":2},{"$f":"COUNT(L52:AW52)","v":2},null,null,null,1,null,null,1]
["Masculino","-73",48,135227,{"$f":"COUNTIF(D:D,D53)","v":1},"Vitor Ferreira",2001,"Braga","Casa do Povo de Ronfe",{"$f":"SUM(L53:AW53)","v":2},{"$f":"COUNT(L53:AW53)","v":2},null,null,1,null,1]
["Masculino","-73",49,144863,{"$f":"COUNTIF(D:D,D54)","v":1},"Rui Martins",2001,"Santarém","Associação Académica e Desportiva de Rio Maior",{"$f":"SUM(L54:AW54)","v":2},{"$f":"COUNT(L54:AW54)","v":2},null,null,null,1,null,null,null,null,null,null,null,null,null,null,null,null,null,null,1]
["Masculino","-73",50,147387,{"$f":"COUNTIF(D:D,D55)","v":1},"Dinis Morgado",2002,"Lisboa","Judo clube de Portugal",{"$f":"SUM(L55:AW55)","v":2},{"$f":"COUNT(L55:AW55)","v":2},null,null,null,null,null,null,null,null,null,null,null,1,null,1]
["Masculino","-73",51,148570,{"$f":"COUNTIF(D:D,D56)","v":1},"Christian Fernandes",2000,"Coimbra","Montanha Clube",{"$f":"SUM(L56:AW56)","v":2},{"$f":"COUNT(L56:AW56)","v":2},null,null,null,null,null,null,null,null,null,null,null,null,1,null,null,null,null,null,1]
["Masculino","-73",52,141124,{"$f":"COUNTIF(D:D,D57)","v":1},"Diogo Cortês",2002,"C.Branco","Associação Escola Judo Ana Hormigo",{"$f":"SUM(L57:AW57)","v":2},{"$f":"COUNT(L57:AW57)","v":2},null,null,null,null,null,null,null,null,null,null,null,null,null,null,null,1,null,null,null,null,1]
["Masculino","-73",53,117594,{"$f":"COUNTIF(D:D,D58)","v":1},"André Pinto",2000,"Lisboa","ISJudo Associação",{"$f":"SUM(L58:AW58)","v":1},{"$f":"COUNT(L58:AW58)","v":1},null,null,null,null,null,null,null,null,null,null,null,null,null,null,null,null,null,null,null,null,1]
["Masculino","-73",54,134272,{"$f":"COUNTIF(D:D,D59)","v":1},"Diogo Câmara",2000,"Açores","Clube Escolar Desp. Escola Basica de Arrifes",{"$f":"SUM(L59:AW59)","v":1},{"$f":"COUNT(L59:AW59)","v":1},null,null,null,null,null,null,null,null,null,null,null,null,null,null,null,null,null,null,null,1]
["Masculino","-73",55,147173,{"$f":"COUNTIF(D:D,D60)","v":1},"António Murias",2001,"Lisboa","Academia de Judo da Amadora",{"$f":"SUM(L60:AW60)","v":1},{"$f":"COUNT(L60:AW60)","v":1},1]
["Masculino","-73",56,141893,{"$f":"COUNTIF(D:D,D61)","v":1},"Gonçalo Homem",2001,"Lisboa","Judo Clube de Sintra",{"$f":"SUM(L61:AW61)","v":1},{"$f":"COUNT(L61:AW61)","v":1},1]
["Masculino","-73",57,144862,{"$f":"COUNTIF(D:D,D62)","v":1},"Ricardo Martins",2001,"Santarém","Associação Académica e Desportiva de Rio Maior",{"$f":"SUM(L62:AW62)","v":1},{"$f":"COUNT(L62:AW62)","v":1},null,null,null,1]
["Masculino","-73",58,130799,{"$f":"COUNTIF(D:D,D63)","v":1},"Francisco Rocha",2001,"V.Castelo","Clube de Judo da Trofa",{"$f":"SUM(L63:AW63)","v":1},{"$f":"COUNT(L63:AW63)","v":1},null,null,null,null,1]
["Masculino","-73",59,145857,{"$f":"COUNTIF(D:D,D64)","v":1},"Hugo Batista",2001,"Lisboa","Clube Atlético de Campo de Ourique",{"$f":"SUM(L64:AW64)","v":1},{"$f":"COUNT(L64:AW64)","v":1},null,null,null,null,null,null,null,null,1]
["Masculino","-73",60,110652,{"$f":"COUNTIF(D:D,D65)","v":1},"Leonardo Coelho",2001,"Lisboa","Ginásio Clube Portugues",{"$f":"SUM(L65:AW65)","v":1},{"$f":"COUNT(L65:AW65)","v":1},null,null,null,null,null,null,null,null,null,null,null,1]
["Masculino","-73",61,145546,{"$f":"COUNTIF(D:D,D66)","v":1},"Bruno Carlos",2001,"Açores","Judo Clube Ponta Delgada",{"$f":"SUM(L66:AW66)","v":1},{"$f":"COUNT(L66:AW66)","v":1},null,null,null,null,null,null,null,null,null,null,1]
["Masculino","-73",62,151095,{"$f":"COUNTIF(D:D,D67)","v":1},"Marco Borges",2002,"Lisboa","Sport Algés e Dafundo",{"$f":"SUM(L67:AW67)","v":1},{"$f":"COUNT(L67:AW67)","v":1},null,null,null,null,null,null,null,null,null,null,null,null,null,1]
["Masculino","-73",63,133707,{"$f":"COUNTIF(D:D,D68)","v":1},"Ion Hamoza",2000,"Algarve","Judo Clube de Portimão",{"$f":"SUM(L68:AW68)","v":1},{"$f":"COUNT(L68:AW68)","v":1},null,null,null,null,null,null,null,null,null,null,null,null,null,null,null,null,1]
["Masculino","-73",64,127036,{"$f":"COUNTIF(D:D,D69)","v":1},"Diogo Santos",2002,"Setúbal","Vitória Futebol Clube",{"$f":"SUM(L69:AW69)","v":1},{"$f":"COUNT(L69:AW69)","v":1},null,null,null,null,null,null,null,null,null,null,null,null,null,null,null,null,1]
["Masculino","-73",65,135526,{"$f":"COUNTIF(D:D,D70)","v":1},"Maik Verheij",2002,"Algarve","C.AM.A. - Clube de Artes Marciais de Altura - Associação",{"$f":"SUM(L70:AW70)","v":1},{"$f":"COUNT(L70:AW70)","v":1},null,null,null,null,null,null,null,null,null,null,null,null,null,null,null,null,1]
["Masculino","-73",66,140294,{"$f":"COUNTIF(D:D,D71)","v":1},"Marco Afonso",2002,"C.Branco","Associação Escola Judo Ana Hormigo",{"$f":"SUM(L71:AW71)","v":1},{"$f":"COUNT(L71:AW71)","v":1},null,null,null,null,null,null,null,null,null,null,null,null,null,null,null,1]
["Masculino","-73",67,151176,{"$f":"COUNTIF(D:D,D72)","v":1},"José Oliveira",2000,"Viseu","Dinamo Clube Estação",{"$f":"SUM(L72:AW72)","v":1},{"$f":"COUNT(L72:AW72)","v":1},null,null,null,null,null,null,null,null,null,null,null,null,null,null,null,null,null,1]
["Masculino","-73",68,151175,{"$f":"COUNTIF(D:D,D73)","v":1},"Paulo Oliveira",2000,"Viseu","Dinamo clube Estação",{"$f":"SUM(L73:AW73)","v":1},{"$f":"COUNT(L73:AW73)","v":1},null,null,null,null,null,null,null,null,null,null,null,null,null,null,null,null,null,1]
["Masculino","-73",69,120367,{"$f":"COUNTIF(D:D,D74)","v":1},"Eduardo Silva",2001,"Porto","Boavista Futebol Clube",{"$f":"SUM(L74:AW74)","v":0},{"$f":"COUNT(L74:AW74)","v":0}]
["Masculino","-73",70,120318,{"$f":"COUNTIF(D:D,D75)","v":1},"João André",2000,"Madeira","Grupo Desportivo APEL",{"$f":"SUM(L75:AW75)","v":0},{"$f":"COUNT(L75:AW75)","v":0}]
["Masculino","-73",71,122230,{"$f":"COUNTIF(D:D,D76)","v":1},"Afonso Neves",2001,"Algarve","Judo Clube do Algarve",{"$f":"SUM(L76:AW76)","v":0},{"$f":"COUNT(L76:AW76)","v":0}]
["Masculino","-73",72,113898,{"$f":"COUNTIF(D:D,D77)","v":1},"Pedro Vera",2001,"Lisboa","Colégio Marista de Carcavelos",{"$f":"SUM(L77:AW77)","v":0},{"$f":"COUNT(L77:AW77)","v":0}]
["Masculino","-73",73,137925,{"$f":"COUNTIF(D:D,D78)","v":1},"Gonçalo Almeida",2000,"Lisboa","Judo Clube de Sintra",{"$f":"SUM(L78:AW78)","v":0},{"$f":"COUNT(L78:AW78)","v":0}]
["Masculino","-73",74,148481,{"$f":"COUNTIF(D:D,D79)","v":1},"Filipe Fernandes",2001,"Setúbal","Clube Recreativo Charnequense",{"$f":"SUM(L79:AW79)","v":0},{"$f":"COUNT(L79:AW79)","v":0}]
["Masculino","-73",75,null,{"$f":"COUNTIF(D:D,D80)","v":0},null,null,null,null,{"$f":"SUM(L80:AW80)","v":0},{"$f":"COUNT(L80:AW80)","v":0}]
["Masculino","-73",76,null,0,null,null,null,null,0,0]
["Masculino","-73",77,null,0,null,null,null,null,0,0]
["Masculino","-73",78,null,0,null,null,null,null,0,0]
["Masculino","-73",79,null,0,null,null,null,null,0,0]
["Masculino","-73",80,null,0,null,null,null,null,0,0]
["Masculino","-73",81,null,0,null,null,null,null,0,0]
["Masculino","-73",82,null,0,null,null,null,null,0,0]
["Masculino","-73",83,null,0,null,null,null,null,0,0]
["Masculino","-73",84,null,0,null,null,null,null,0,0]
["Masculino","-73",85,null,0,null,null,null,null,0,0]
["Masculino","-73",86,null,0,null,null,null,null,0,0]
["Masculino","-73",87,null,0,null,null,null,null,0,0]
["Masculino","-73",88,null,0,null,null,null,null,0,0]
["Masculino","-73",89,null,0,null,null,null,null,0,0]

{"sheet":"-81","index":8,"n_rows":51,"n_cols":45,"rows_kept":51,"cut":false,"hidden":false,"merged":[]}
[null,null,null,null,null,null,null,null,"CADETES"]
[null,null,null,null,null,null,null,null,"-81KG ",null,null,"LISBOA","CASTELO BRANCO","COIMBRA","SETÚBAL","VIANA CASTELO","I.TERCEIRA","COIMBRA","SANTARÉM","LISBOA","MADEIRA","AÇORES","SETÚBAL","COIMBRA","LISBOA","MADEIRA","C.BRANCO","SETÚBAL","VISEU","SANTARÉM","AÇORES","FPJ","Leiria","Lisboa","Castelo Branco","Coimbra","Leiria","Setúbal","Coimbra","V. Castelo","Santarém","Lisboa","Madeira","Setúbal","Coimbra"]
[null,null,null,null,null,null,null,null,null,null,null,"2016-04-09","2016-04-17","2016-04-30","2016-04-30","2016-06-18","2016-06-25","2016-06-26","2016-07-03","2016-10-22","2016-11-12","2016-11-19","2016-11-19","2016-12-17","2017-01-14","2017-01-14","2017-01-21","2017-01-21","2017-01-21","2017-01-21","2017-01-21","2017-02-11","2017-02-18","2017-04-01","2017-04-22","2017-04-29","2017-04-29","2017-05-13","2017-06-17","2017-06-17","2017-07-02","2017-11-11","2017-11-11","2017-11-18","2017-12-16"]
["Género","Categoria",null,"LF",null,"NOME","Ano de Nascimento","Associação","CLUBE","Somatório de pontos","Número de provas","OPEN CADETES","OPEN MESTRE ANTONIO MORAIS","OPEN INT. CIDADE BARCELOS","OPEN MONTIJO CADETES","OPEN INT. CIDADE DE VALENÇA","TORNEIO DE SÃO JOÃO","TAÇA ANTONIO ALEIXO","OPEN INT. ADJ SANTARÉM","OPEN CADETES","OPEN CADETES","OPEN PONTA DELGADA","OPEN PRAGAL","OPEN CADETES","Zonal de Cadetes","Zonal de Cadetes","Zonal de Cadetes","Zonal de Cadetes","Zonal de Cadetes","Zonal de Cadetes","Zonal de Cadetes","Camp.Nac. Cadetes","Torneio Associativo","Open Cadetes","Open Cadetes \"Mestre António Morais\"","OPEN INT. CIDADE BARCELOS","Torneio Associativo","Taça Cidade do Montijo","V Taça António Lopes Aleixo","III Open Int. Eurocidade Valença Tui","V Open Int. Cadetes","Open Cadetes","Open Cadetes","Torneio Aniversário JC Pragal","Open Cadetes"]
[]
["Masculino","-81",1,108075,{"$f":"COUNTIF(D:D,D6)","v":1},"Vicente Rovira",2001,"Coimbra","Associação Académica de Coimbra",{"$f":"SUM(L6:AW6)","v":36},{"$f":"COUNT(L6:AW6)","v":3},null,null,null,null,null,null,null,null,null,null,null,null,9,null,null,null,null,null,10,null,17]
["Masculino","-81",2,124933,{"$f":"COUNTIF(D:D,D7)","v":1},"João Afonso",2001,"Lisboa","Sport Algés e Dafundo",{"$f":"SUM(L7:AW7)","v":34},{"$f":"COUNT(L7:AW7)","v":4},null,null,null,null,null,null,null,null,7,null,null,10,null,6,null,null,null,null,null,null,11]
["Masculino","-81",3,125732,{"$f":"COUNTIF(D:D,D8)","v":1},"Vitor Silva",2000,"Braga","Associação Desportiva e Cultural Manhente",{"$f":"SUM(L8:AW8)","v":31},{"$f":"COUNT(L8:AW8)","v":5},null,null,10,null,7,null,null,4,null,null,null,null,6,null,null,null,null,null,null,null,4]
["Masculino","-81",4,112121,{"$f":"COUNTIF(D:D,D9)","v":1},"José Cardoso",2001,"Santarém","Sport Clube Operário Cem Soldos",{"$f":"SUM(L9:AW9)","v":30},{"$f":"COUNT(L9:AW9)","v":4},null,null,null,null,null,null,7,2,null,null,null,null,null,null,null,null,null,null,8,null,13]
["Masculino","-81",5,132782,{"$f":"COUNTIF(D:D,D10)","v":1},"Bruno Pires",2000,"C.Branco","Escola de Judo Ana Hormigo",{"$f":"SUM(L10:AW10)","v":28},{"$f":"COUNT(L10:AW10)","v":4},null,5,null,null,null,null,null,null,null,null,null,null,13,null,null,4,null,null,null,null,6]
["Masculino","-81",6,129640,{"$f":"COUNTIF(D:D,D11)","v":1},"Gustavo Monteiro",2000,"Porto","Boavista Futebol Clube",{"$f":"SUM(L11:AW11)","v":18},{"$f":"COUNT(L11:AW11)","v":2},null,null,null,null,null,null,null,null,null,null,null,null,null,null,null,null,null,8,null,null,10]
["Masculino","-81",7,132681,{"$f":"COUNTIF(D:D,D12)","v":1},"Marcelo Correia",2000,"Lisboa","Sport Lisboa e Benfica",{"$f":"SUM(L12:AW12)","v":17},{"$f":"COUNT(L12:AW12)","v":4},null,null,null,null,null,null,null,null,3,null,null,7,6,null,null,null,null,null,null,null,1]
["Masculino","-81",8,134848,1,"Alexandre Soares",2002,"Coimbra","Associação Cristã da Mocidade de Coimbra",{"$f":"SUM(L13:AW13)","v":14},{"$f":"COUNT(L13:AW13)","v":3},null,null,null,null,null,null,null,null,null,null,null,null,4,null,null,null,null,null,4,null,6]
["Masculino","-81",9,116005,{"$f":"COUNTIF(D:D,D14)","v":1},"Gonçalo Correia",2002,"Lisboa","Colégio Marista de Carcavelos",{"$f":"SUM(L14:AW14)","v":8},{"$f":"COUNT(L14:AW14)","v":2},null,null,null,null,null,null,null,null,null,null,null,null,null,4,null,null,null,null,null,null,4]
["Masculino","-81",10,111356,{"$f":"COUNTIF(D:D,D15)","v":1},"Duarte Isabel",2000,"Santarém","Sporting Clube Tomar",{"$f":"SUM(L15:AW15)","v":7},{"$f":"COUNT(L15:AW15)","v":2},3,4]
["Masculino","-81",11,109995,{"$f":"COUNTIF(D:D,D16)","v":1},"André Araújo",2000,"Açores","Clube de Judo de Angra do Heroísno",{"$f":"SUM(L16:AW16)","v":7},{"$f":"COUNT(L16:AW16)","v":2},null,null,null,null,null,null,null,null,null,null,null,null,null,null,null,null,null,null,null,6,1]
["Masculino","-81",12,130351,{"$f":"COUNTIF(D:D,D17)","v":1},"Guilherme Pereira",2000,"Portalegre","Eléctrico Futebol Clube",{"$f":"SUM(L17:AW17)","v":7},{"$f":"COUNT(L17:AW17)","v":2},null,null,null,null,null,null,null,null,null,null,null,null,null,null,null,6,null,null,null,null,1]
["Masculino","-81",13,149131,{"$f":"COUNTIF(D:D,D18)","v":1},"Yan Ferreira",2001,"V.Castelo","Sport Clube Vianense",{"$f":"SUM(L18:AW18)","v":7},{"$f":"COUNT(L18:AW18)","v":2},null,null,null,null,null,null,null,null,null,null,null,null,null,null,null,null,null,6,null,null,1]
["Masculino","-81",14,115718,1,"António Rebelo",2002,"Leiria","Clube de Judo \"O Dragão\"",{"$f":"SUM(L19:AW19)","v":7},{"$f":"COUNT(L19:AW19)","v":3},null,null,null,null,null,null,null,null,null,null,null,null,3,null,null,null,null,null,2,null,2]
["Masculino","-81",15,134272,{"$f":"COUNTIF(D:D,D20)","v":1},"Diogo Câmara",2000,"Açores","Clube Escolar Desp. Escola Basica de Arrifes",{"$f":"SUM(L20:AW20)","v":6},{"$f":"COUNT(L20:AW20)","v":1},null,null,null,null,null,null,null,null,null,null,6]
["Masculino","-81",16,127155,{"$f":"COUNTIF(D:D,D21)","v":1},"João Novais",2001,"Santarém ","Sporting Clube de tomar",{"$f":"SUM(L21:AW21)","v":6},{"$f":"COUNT(L21:AW21)","v":2},null,null,null,null,null,null,null,null,null,null,null,null,null,null,null,null,null,null,3,null,3]
["Masculino","-81",17,125885,{"$f":"COUNTIF(D:D,D22)","v":1},"Diogo Costa",2001,"V.Castelo","Judo Clube de Valença",{"$f":"SUM(L22:AW22)","v":5},{"$f":"COUNT(L22:AW22)","v":2},null,null,null,null,null,null,null,null,null,null,null,null,null,null,null,null,null,4,null,null,1]
["Masculino","-81",18,119532,{"$f":"COUNTIF(D:D,D23)","v":1},"Simão Batista",2000,"Setúbal","Judo Clube do Pragal",{"$f":"SUM(L23:AW23)","v":4},{"$f":"COUNT(L23:AW23)","v":1},null,null,null,null,null,null,null,null,null,null,null,4]
["Masculino","-81",19,142899,{"$f":"COUNTIF(D:D,D24)","v":1},"Francisco Alves",2000,"V.Castelo","Clube de Judo da Trofa",{"$f":"SUM(L24:AW24)","v":4},{"$f":"COUNT(L24:AW24)","v":2},null,null,3,null,1]
["Masculino","-81",20,119298,{"$f":"COUNTIF(D:D,D25)","v":1},"Hernâni Araújo",2000,"V.Castelo","Judo Clube Valença",{"$f":"SUM(L25:AW25)","v":3},{"$f":"COUNT(L25:AW25)","v":1},null,null,3]
["Masculino","-81",21,120880,{"$f":"COUNTIF(D:D,D26)","v":1},"Geraldo Pinto",2000,"V.Castelo","Judo clube de Valença",{"$f":"SUM(L26:AW26)","v":3},{"$f":"COUNT(L26:AW26)","v":2},null,null,null,null,null,null,null,null,null,null,null,null,null,null,null,null,null,2,null,null,1]
["Masculino","-81",22,111959,{"$f":"COUNTIF(D:D,D27)","v":1},"Ricardo Lopes",2002,"V.Castelo","Judo Clube de Caminha \"Jucaminha\"",{"$f":"SUM(L27:AW27)","v":3},{"$f":"COUNT(L27:AW27)","v":3},null,null,null,null,null,null,null,null,null,null,null,null,1,null,null,null,null,1,null,null,1]
["Masculino","-81",23,122230,{"$f":"COUNTIF(D:D,D28)","v":1},"Afonso Neves",2001,"Algarve","Judo Clube do Algarve",{"$f":"SUM(L28:AW28)","v":2},{"$f":"COUNT(L28:AW28)","v":1},null,null,null,null,null,null,null,null,null,null,null,2]
["Masculino","-81",24,142278,{"$f":"COUNTIF(D:D,D29)","v":1},"Diogo Fernandes",2001,"Braga","Casa do Povo de Ronfe",{"$f":"SUM(L29:AW29)","v":2},{"$f":"COUNT(L29:AW29)","v":2},null,null,1,null,1]
["Masculino","-81",25,147300,{"$f":"COUNTIF(D:D,D30)","v":1},"Diogo Matias",2001,"C.Branco","Sport Tortosendo e Benfica",{"$f":"SUM(L30:AW30)","v":2},{"$f":"COUNT(L30:AW30)","v":2},null,1,null,null,null,null,null,null,null,null,null,null,null,null,null,1]
["Masculino","-81",26,148570,{"$f":"COUNTIF(D:D,D31)","v":1},"Christian Fernandes",2000,"Coimbra","Montanha Clube",{"$f":"SUM(L31:AW31)","v":2},{"$f":"COUNT(L31:AW31)","v":2},null,null,null,null,1,null,1]
["Masculino","-81",27,120318,{"$f":"COUNTIF(D:D,D32)","v":1},"João André",2000,"Madeira","Grupo Desportivo APEL",{"$f":"SUM(L32:AW32)","v":2},{"$f":"COUNT(L32:AW32)","v":2},null,null,null,null,null,null,null,null,null,1,null,null,null,null,1]
["Masculino","-81",28,139971,{"$f":"COUNTIF(D:D,D33)","v":1},"David Domingos",2001,"Santarém","Casa do Povo de Rio Maior",{"$f":"SUM(L33:AW33)","v":2},{"$f":"COUNT(L33:AW33)","v":2},null,null,null,null,null,null,null,null,null,null,null,null,null,null,null,null,null,null,1,null,1]
["Masculino","-81",29,125066,{"$f":"COUNTIF(D:D,D34)","v":1},"André Sousa",2000,"Lisboa","Sport Algés e Dafundo",{"$f":"SUM(L34:AW34)","v":1},{"$f":"COUNT(L34:AW34)","v":1},1]
["Masculino","-81",30,119296,{"$f":"COUNTIF(D:D,D35)","v":1},"João Esteves",2001,"V.Castelo","Judo Clube Valença",{"$f":"SUM(L35:AW35)","v":1},{"$f":"COUNT(L35:AW35)","v":1},null,null,1]
["Masculino","-81",31,114291,{"$f":"COUNTIF(D:D,D36)","v":1},"Afonso Silva",2000,"Lisboa","Judo Clube Lisboa",{"$f":"SUM(L36:AW36)","v":1},{"$f":"COUNT(L36:AW36)","v":1},null,null,null,null,null,null,null,1]
["Masculino","-81",32,124043,{"$f":"COUNTIF(D:D,D37)","v":1},"Tomás Rodrigues",2001,"Lisboa","Clube de Judo Hajime",{"$f":"SUM(L37:AW37)","v":1},{"$f":"COUNT(L37:AW37)","v":1},null,null,null,null,null,null,null,null,1]
["Masculino","-81",33,114819,{"$f":"COUNTIF(D:D,D38)","v":1},"Rodrigo Saraiva",2001,"Açores","Judo Clube Ponta Delgada",{"$f":"SUM(L38:AW38)","v":1},{"$f":"COUNT(L38:AW38)","v":1},null,null,null,null,null,null,null,null,null,null,1]
["Masculino","-81",34,133279,{"$f":"COUNTIF(D:D,D39)","v":1},"Diogo Alves",2001,"Leiria","Judo Clube Marinha Grande",{"$f":"SUM(L39:AW39)","v":1},{"$f":"COUNT(L39:AW39)","v":1},null,null,null,null,null,null,null,null,null,null,null,null,1]
["Masculino","-81",35,142236,{"$f":"COUNTIF(D:D,D40)","v":1},"Pedro Gaspar",2002,"Aveiro","Associação 4Judo Project",{"$f":"SUM(L40:AW40)","v":1},{"$f":"COUNT(L40:AW40)","v":1},null,null,null,null,null,null,null,null,null,null,null,null,1]
["Masculino","-81",36,113898,{"$f":"COUNTIF(D:D,D41)","v":1},"Pedro Vera",2001,"Lisboa","Colégio Marista de Carcavelos",{"$f":"SUM(L41:AW41)","v":1},{"$f":"COUNT(L41:AW41)","v":1},null,null,null,null,null,null,null,null,null,null,null,null,null,1]
["Masculino","-81",37,149664,{"$f":"COUNTIF(D:D,D42)","v":1},"Henrique Mota",2001,"Açores","JUDOLAG - Judo Clube Lagoa",{"$f":"SUM(L42:AW42)","v":1},{"$f":"COUNT(L42:AW42)","v":1},null,null,null,null,null,null,null,null,null,null,null,null,null,null,null,null,null,null,null,1]
["Masculino","-81",38,106833,{"$f":"COUNTIF(D:D,D43)","v":1},"Tiago Barreto",2000,"Santarém","Clube de Judo de Riachos",{"$f":"SUM(L43:AW43)","v":1},{"$f":"COUNT(L43:AW43)","v":1},null,null,null,null,null,null,null,null,null,null,null,null,null,null,null,null,null,null,1]
["Masculino","-81",39,139455,{"$f":"COUNTIF(D:D,D44)","v":1},"Pedro Cavaco",2000,"Setúbal","Clube Recreativo Charnequense",{"$f":"SUM(L44:AW44)","v":1},{"$f":"COUNT(L44:AW44)","v":1},null,null,null,null,null,null,null,null,null,null,null,null,null,null,null,null,null,null,null,null,1]
["Masculino","-81",40,142905,{"$f":"COUNTIF(D:D,D45)","v":1},"Luís Filipe",2000,"Porto","Escola Básica Dr. Costa Matos",{"$f":"SUM(L45:AW45)","v":0},{"$f":"COUNT(L45:AW45)","v":0}]
["Masculino","-81",41,null,{"$f":"COUNTIF(D:D,D46)","v":0},null,null,null,null,{"$f":"SUM(L46:AW46)","v":0},{"$f":"COUNT(L46:AW46)","v":0}]
["Masculino","-81",42,null,0,null,null,null,null,0,0]
["Masculino","-81",43,null,0,null,null,null,null,0,0]
["Masculino","-81",44,null,0,null,null,null,null,0,0]
["Masculino","-81",45,null,0,null,null,null,null,0,0]
["Masculino","-81",46,null,0,null,null,null,null,0,0]

{"sheet":"+81","index":9,"n_rows":18,"n_cols":45,"rows_kept":18,"cut":false,"hidden":false,"merged":[]}
[null,null,null,null,null,null,null,null,"CADETES"]
[null,null,null,null,null,null,null,null,"+81KG ",null,null,"LISBOA","CASTELO BRANCO","COIMBRA","SETÚBAL","VIANA CASTELO","I.TERCEIRA","COIMBRA","SANTARÉM","LISBOA","MADEIRA","AÇORES","SETÚBAL","COIMBRA","LISBOA","MADEIRA","C.BRANCO","SETÚBAL","VISEU","SANTARÉM","AÇORES","FPJ","Leiria","Lisboa","Castelo Branco","Coimbra","Leiria","Setúbal","Coimbra","V. Castelo","Santarém","Lisboa","Madeira","Setúbal","Coimbra"]
[null,null,null,null,null,null,null,null,null,null,null,"2016-04-09","2016-04-17","2016-04-30","2016-04-30","2016-06-18","2016-06-25","2016-06-26","2016-07-03","2016-10-22","2016-11-12","2016-11-19","2016-11-19","2016-12-17","2017-01-14","2017-01-14","2017-01-21","2017-01-21","2017-01-21","2017-01-21","2017-01-21","2017-02-11","2017-02-18","2017-04-01","2017-04-22","2017-04-29","2017-04-29","2017-05-13","2017-06-17","2017-06-17","2017-07-02","2017-11-11","2017-11-11","2017-11-18","2017-12-16"]
["Género","Categoria",null,"LF",null,"NOME","Ano de Nascimento","Associação","CLUBE","Somatório de pontos","Número de provas","OPEN CADETES","OPEN MESTRE ANTONIO MORAIS","OPEN INT. CIDADE BARCELOS","OPEN MONTIJO CADETES","OPEN INT. CIDADE DE VALENÇA","TORNEIO DE SÃO JOÃO","TAÇA ANTONIO ALEIXO","OPEN INT. ADJ SANTARÉM","OPEN CADETES","OPEN CADETES","OPEN PONTA DELGADA","OPEN PRAGAL","OPEN CADETES","Zonal de Cadetes","Zonal de Cadetes","Zonal de Cadetes","Zonal de Cadetes","Zonal de Cadetes","Zonal de Cadetes","Zonal de Cadetes","Camp.Nac. Cadetes","Torneio Associativo","Open Cadetes","Open Cadetes \"Mestre António Morais\"","OPEN INT. CIDADE BARCELOS","Torneio Associativo","Taça Cidade do Montijo","V Taça António Lopes Aleixo","III Open Int. Eurocidade Valença Tui","V Open Int. Cadetes","Open Cadetes","Open Cadetes","Torneio Aniversário JC Pragal","Open Cadetes"]
[]
["Masculino","+81",1,121008,{"$f":"COUNTIF(D:D,D6)","v":1},"Artur Matias",2001,"Lisboa","Sport Lisboa e Benfica",{"$f":"SUM(L6:AW6)","v":27},{"$f":"COUNT(L6:AW6)","v":6},1,6,null,null,null,null,2,null,6,null,null,6,6]
["Masculino","+81",2,124904,{"$f":"COUNTIF(D:D,D7)","v":1},"Rafael Barreira",2000,"Lisboa","Judo clube de Portugal",{"$f":"SUM(L7:AW7)","v":12},{"$f":"COUNT(L7:AW7)","v":2},null,null,6,null,6]
["Masculino","+81",3,129640,{"$f":"COUNTIF(D:D,D8)","v":1},"Gustavo Monteiro",2000,"Porto","Boavista Futebol Clube",{"$f":"SUM(L8:AW8)","v":9},{"$f":"COUNT(L8:AW8)","v":3},null,null,null,null,null,null,null,null,1,null,null,2,null,6]
["Masculino","+81",4,109038,{"$f":"COUNTIF(D:D,D9)","v":1},"Miguel Pacheco",2000,"Açores","Clube Escolar Desp. Escola Basica de Arrifes",{"$f":"SUM(L9:AW9)","v":6},{"$f":"COUNT(L9:AW9)","v":1},null,null,null,null,null,null,null,null,null,null,null,null,null,null,null,null,null,null,null,6]
["Masculino","+81",5,112916,{"$f":"COUNTIF(D:D,D10)","v":1},"Gonçalo Antunes",2001,"Algarve","C.AM.A. - Clube de Artes Marciais de Altura - Associação",{"$f":"SUM(L10:AW10)","v":6},{"$f":"COUNT(L10:AW10)","v":1},null,null,null,null,null,null,null,null,null,null,null,null,null,null,null,null,6]
["Masculino","+81",6,139423,{"$f":"COUNTIF(D:D,D11)","v":1},"Tiago Marques",2001,"Leiria","Grupo Desportivo Santo Amaro",{"$f":"SUM(L11:AW11)","v":6},{"$f":"COUNT(L11:AW11)","v":1},null,null,null,null,null,null,null,null,null,null,null,null,null,null,null,null,null,null,6]
["Masculino","+81",7,129468,{"$f":"COUNTIF(D:D,D12)","v":1},"Diogo Santos",2001,"Braga","Associação Desportiva e Cultural Manhente",{"$f":"SUM(L12:AW12)","v":3},{"$f":"COUNT(L12:AW12)","v":2},null,null,1,null,2]
["Masculino","+81",8,137793,{"$f":"COUNTIF(D:D,D13)","v":1},"Cristiano Gazdaru",2002,"Setúbal","Clube Recreativo Charnequense",{"$f":"SUM(L13:AW13)","v":2},{"$f":"COUNT(L13:AW13)","v":1},null,null,null,null,null,null,null,null,null,null,null,null,null,null,null,null,2]
["Masculino","+81",9,142278,{"$f":"COUNTIF(D:D,D14)","v":1},"Diogo Fernandes",2001,"Braga","Casa do Povo de Ronfe",{"$f":"SUM(L14:AW14)","v":1},{"$f":"COUNT(L14:AW14)","v":1},null,null,null,null,null,null,null,null,null,null,null,null,1]
["Masculino","+81",10,114819,{"$f":"COUNTIF(D:D,D15)","v":1},"Rodrigo Saraiva",2001,"Açores","Judo Clube Ponta Delgada",{"$f":"SUM(L15:AW15)","v":1},{"$f":"COUNT(L15:AW15)","v":1},null,null,null,null,null,null,null,null,null,null,null,null,null,null,null,null,null,null,null,1]
["Masculino","+81",11,150311,{"$f":"COUNTIF(D:D,D16)","v":1},"Rafael Graça",2001,"Lisboa","Universidade Lusofona de Humanidades de Tecnologias",{"$f":"SUM(L16:AW16)","v":1},{"$f":"COUNT(L16:AW16)","v":1},null,null,null,null,null,null,null,null,null,null,null,null,null,1]
["Masculino","+81",12,111356,{"$f":"COUNTIF(D:D,D17)","v":1},"Nuno Isabel",2000,"Santarém","Sporting Clube de Tomar",{"$f":"SUM(L17:AW17)","v":1},{"$f":"COUNT(L17:AW17)","v":1},null,null,null,null,null,null,null,null,null,null,null,null,null,null,null,null,null,null,1]
["Masculino","+81",13,120367,{"$f":"COUNTIF(D:D,D18)","v":1},"Eduardo Silva",2001,"Porto","Boavista Futebol Clube",{"$f":"SUM(L18:AW18)","v":1},{"$f":"COUNT(L18:AW18)","v":1},null,null,null,null,null,null,null,null,null,null,null,null,null,null,null,null,null,1]

{"sheet":"-90","index":10,"n_rows":26,"n_cols":45,"rows_kept":26,"cut":false,"hidden":false,"merged":[]}
[null,null,null,null,null,null,null,null,"CADETES"]
[null,null,null,null,null,null,null,null,"-90KG ",null,null,"LISBOA","CASTELO BRANCO","COIMBRA","SETÚBAL","VIANA CASTELO","I.TERCEIRA","COIMBRA","SANTARÉM","LISBOA","MADEIRA","AÇORES","SETÚBAL","COIMBRA","LISBOA","MADEIRA","C.BRANCO","SETÚBAL","VISEU","SANTARÉM","AÇORES","FPJ","Leiria","Lisboa","Castelo Branco","Coimbra","Leiria","Setúbal","Coimbra","V. Castelo","Santarém","Lisboa","Madeira","Setúbal","Coimbra"]
[null,null,null,null,null,null,null,null,null,null,null,"2016-04-09","2016-04-17","2016-04-30","2016-04-30","2016-06-18","2016-06-25","2016-06-26","2016-07-03","2016-10-22","2016-11-12","2016-11-19","2016-11-19","2016-12-17","2017-01-14","2017-01-14","2017-01-21","2017-01-21","2017-01-21","2017-01-21","2017-01-21","2017-02-11","2017-02-18","2017-04-01","2017-04-22","2017-04-29","2017-04-29","2017-05-13","2017-06-17","2017-06-17","2017-07-02","2017-11-11","2017-11-11","2017-11-18","2017-12-16"]
["Género","Categoria",null,"LF",null,"NOME","Ano de Nascimento","Associação","CLUBE","Somatório de pontos","Número de provas","OPEN CADETES","OPEN MESTRE ANTONIO MORAIS","OPEN INT. CIDADE BARCELOS","OPEN MONTIJO CADETES","OPEN INT. CIDADE DE VALENÇA","TORNEIO DE SÃO JOÃO","TAÇA ANTONIO ALEIXO","OPEN INT. ADJ SANTARÉM","OPEN CADETES","OPEN CADETES","OPEN PONTA DELGADA","OPEN PRAGAL","OPEN CADETES","Zonal de Cadetes","Zonal de Cadetes","Zonal de Cadetes","Zonal de Cadetes","Zonal de Cadetes","Zonal de Cadetes","Zonal de Cadetes","Camp.Nac. Cadetes","Torneio Associativo","Open Cadetes","Open Cadetes \"Mestre António Morais\"","OPEN INT. CIDADE BARCELOS","Torneio Associativo","Taça Cidade do Montijo","V Taça António Lopes Aleixo","III Open Int. Eurocidade Valença Tui","V Open Int. Cadetes","Open Cadetes","Open Cadetes","Torneio Aniversário JC Pragal","Open Cadetes"]
[]
["Masculino","-90",1,120367,{"$f":"COUNTIF(D:D,D6)","v":1},"Eduardo Silva",2001,"Porto","Boavista Futebol Clube",{"$f":"SUM(L6:AW6)","v":8},{"$f":"COUNT(L6:AW6)","v":1},null,null,null,null,null,null,null,null,null,null,null,null,null,null,null,null,null,null,null,null,8]
["Masculino","-90",2,111356,{"$f":"COUNTIF(D:D,D7)","v":1},"Nuno Isabel",2000,"Santarém","Sporting Clube de Tomar",{"$f":"SUM(L7:AW7)","v":6},{"$f":"COUNT(L7:AW7)","v":1},null,null,null,null,null,null,null,null,null,null,null,null,null,null,null,null,null,null,null,null,6]
["Masculino","-90",3,142278,{"$f":"COUNTIF(D:D,D8)","v":1},"Diogo Fernandes",2001,"Braga","Casa do Povo de Ronfe",{"$f":"SUM(L8:AW8)","v":4},{"$f":"COUNT(L8:AW8)","v":1},null,null,null,null,null,null,null,null,null,null,null,null,null,null,null,null,null,null,null,null,4]
["Masculino","-90",4,139423,{"$f":"COUNTIF(D:D,D9)","v":1},"Tiago Marques",2001,"Leiria","Grupo Desportivo Santo Amaro",{"$f":"SUM(L9:AW9)","v":2},{"$f":"COUNT(L9:AW9)","v":1},null,null,null,null,null,null,null,null,null,null,null,null,null,null,null,null,null,null,null,null,2]
["Masculino","-90",5,137793,{"$f":"COUNTIF(D:D,D10)","v":1},"Cristiano Gazdaru",2002,"Setúbal","Clube Recreativo Charnequense",{"$f":"SUM(L10:AW10)","v":1},{"$f":"COUNT(L10:AW10)","v":1},null,null,null,null,null,null,null,null,null,null,null,null,null,null,null,null,null,null,null,null,1]
["Masculino","-90",6,110376,{"$f":"COUNTIF(D:D,D11)","v":1},"Miguel Catita",2000,"Lisboa","Sport Algés e Dafundo",{"$f":"SUM(L11:AW11)","v":0},{"$f":"COUNT(L11:AW11)","v":0}]
["Masculino","-90",7,129485,{"$f":"COUNTIF(D:D,D12)","v":1},"Usama Sharhorze",2000,"I.Terceira","Judo Clube Praia da Vitória",{"$f":"SUM(L12:AW12)","v":0},{"$f":"COUNT(L12:AW12)","v":0}]
["Masculino","-90",8,null,{"$f":"COUNTIF(D:D,D13)","v":0},null,null,null,null,{"$f":"SUM(L13:AW13)","v":0},{"$f":"COUNT(L13:AW13)","v":0}]
["Masculino","-90",9,null,0,null,null,null,null,0,0]
["Masculino","-90",10,null,0,null,null,null,null,0,0]
["Masculino","-90",11,null,0,null,null,null,null,0,0]
["Masculino","-90",12,null,0,null,null,null,null,0,0]
["Masculino","-90",13,null,0,null,null,null,null,0,0]
["Masculino","-90",14,null,0,null,null,null,null,0,0]
["Masculino","-90",15,null,0,null,null,null,null,0,0]
["Masculino","-90",16,null,0,null,null,null,null,0,0]
["Masculino","-90",17,null,0,null,null,null,null,0,0]
["Masculino","-90",18,null,0,null,null,null,null,0,0]
["Masculino","-90",19,null,0,null,null,null,null,0,0]
["Masculino","-90",20,null,0,null,null,null,null,0,0]
[null,null,null,null,null,null,null,null,null,0,0]

{"sheet":"+90","index":11,"n_rows":37,"n_cols":45,"rows_kept":37,"cut":false,"hidden":false,"merged":[]}
[null,null,null,null,null,null,null,null,"CADETES"]
[null,null,null,null,null,null,null,null,"+90KG ",null,null,"LISBOA","CASTELO BRANCO","COIMBRA","SETÚBAL","VIANA CASTELO","I.TERCEIRA","COIMBRA","SANTARÉM","LISBOA","MADEIRA","AÇORES","SETÚBAL","COIMBRA","LISBOA","MADEIRA","C.BRANCO","SETÚBAL","VISEU","SANTARÉM","AÇORES","FPJ","Leiria","Lisboa","Castelo Branco","Coimbra","Leiria","Setúbal","Coimbra","V. Castelo","Santarém","Lisboa","Madeira","Setúbal","Coimbra"]
[null,null,null,null,null,null,null,null,null,null,null,"2016-04-09","2016-04-17","2016-04-30","2016-04-30","2016-06-18","2016-06-25","2016-06-26","2016-07-03","2016-10-22","2016-11-12","2016-11-19","2016-11-19","2016-12-17","2017-01-14","2017-01-14","2017-01-21","2017-01-21","2017-01-21","2017-01-21","2017-01-21","2017-02-11","2017-02-18","2017-04-01","2017-04-22","2017-04-29","2017-04-29","2017-05-13","2017-06-17","2017-06-17","2017-07-02","2017-11-11","2017-11-11","2017-11-18","2017-12-16"]
["Género","Categoria",null,"LF",null,"NOME","Ano de Nascimento","Associação","CLUBE","Somatório de pontos","Número de provas","OPEN CADETES","OPEN MESTRE ANTONIO MORAIS","OPEN INT. CIDADE BARCELOS","OPEN MONTIJO CADETES","OPEN INT. CIDADE DE VALENÇA","TORNEIO DE SÃO JOÃO","TAÇA ANTONIO ALEIXO","OPEN INT. ADJ SANTARÉM","OPEN CADETES","OPEN CADETES","OPEN PONTA DELGADA","OPEN PRAGAL","OPEN CADETES","Zonal de Cadetes","Zonal de Cadetes","Zonal de Cadetes","Zonal de Cadetes","Zonal de Cadetes","Zonal de Cadetes","Zonal de Cadetes","Camp.Nac. Cadetes","Torneio Associativo","Open Cadetes","Open Cadetes \"Mestre António Morais\"","OPEN INT. CIDADE BARCELOS","Torneio Associativo","Taça Cidade do Montijo","V Taça António Lopes Aleixo","III Open Int. Eurocidade Valença Tui","V Open Int. Cadetes","Open Cadetes","Open Cadetes","Torneio Aniversário JC Pragal","Open Cadetes"]
[]
["Masculino","+90",1,121008,{"$f":"COUNTIF(D:D,D6)","v":1},"Artur Matias",2001,"Lisboa","Sport Lisboa e Benfica",{"$f":"SUM(L6:AW6)","v":13},{"$f":"COUNT(L6:AW6)","v":2},null,null,null,6,null,null,null,null,null,null,null,null,null,null,null,null,null,null,null,null,7]
["Masculino","+90",2,109038,{"$f":"COUNTIF(D:D,D7)","v":1},"Miguel Pacheco",2000,"Açores","Clube Escolar Desp. Escola Basica de Arrifes",{"$f":"SUM(L7:AW7)","v":6},{"$f":"COUNT(L7:AW7)","v":2},null,null,null,null,null,1,null,null,null,null,null,null,null,null,null,null,null,null,null,null,5]
["Masculino","+90",3,124904,{"$f":"COUNTIF(D:D,D8)","v":1},"Rafael Barreia",2000,"Lisboa","ISJudo Associação",{"$f":"SUM(L8:AW8)","v":3},{"$f":"COUNT(L8:AW8)","v":1},null,null,null,null,null,null,null,null,null,null,null,null,null,null,null,null,null,null,null,null,3]
["Masculino","+90",4,129468,{"$f":"COUNTIF(D:D,D9)","v":1},"Diogo Santos",2001,"Braga","Associação Desportiva e Cultural Manhente",{"$f":"SUM(L9:AW9)","v":1},{"$f":"COUNT(L9:AW9)","v":1},null,null,null,null,null,null,null,null,null,null,null,null,null,null,null,null,null,null,null,null,1]
["Masculino","+90",5,112916,{"$f":"COUNTIF(D:D,D10)","v":1},"Gonçalo Antunes",2001,"Algarve","Clube Recreativo Alturense",{"$f":"SUM(L10:AW10)","v":0},{"$f":"COUNT(L10:AW10)","v":0}]
["Masculino","+90",6,null,{"$f":"COUNTIF(D:D,D11)","v":0},null,null,null,null,{"$f":"SUM(L11:AW11)","v":0},{"$f":"COUNT(L11:AW11)","v":0}]
["Masculino","+90",7,null,0,null,null,null,null,0,0]
["Masculino","+90",8,null,0,null,null,null,null,0,0]
["Masculino","+90",9,null,0,null,null,null,null,0,0]
["Masculino","+90",10,null,0,null,null,null,null,0,0]
["Masculino","+90",11,null,0,null,null,null,null,0,0]
["Masculino","+90",12,null,0,null,null,null,null,0,0]
["Masculino","+90",13,null,0,null,null,null,null,0,0]
["Masculino","+90",14,null,0,null,null,null,null,0,0]
["Masculino","+90",15,null,0,null,null,null,null,0,0]
["Masculino","+90",16,null,0,null,null,null,null,0,0]
["Masculino","+90",17,null,0,null,null,null,null,0,0]
["Masculino","+90",18,null,0,null,null,null,null,0,0]
["Masculino","+90",19,null,0,null,null,null,null,0,0]
["Masculino","+90",20,null,0,null,null,null,null,0,0]
["Masculino","+90",21,null,0,null,null,null,null,0,0]
["Masculino","+90",22,null,0,null,null,null,null,0,0]
["Masculino","+90",23,null,0,null,null,null,null,0,0]
["Masculino","+90",24,null,0,null,null,null,null,0,0]
["Masculino","+90",25,null,0,null,null,null,null,0,0]
["Masculino","+90",26,null,0,null,null,null,null,0,0]
["Masculino","+90",27,null,0,null,null,null,null,0,0]
["Masculino","+90",28,null,0,null,null,null,null,0,0]
["Masculino","+90",29,null,0,null,null,null,null,0,0]
["Masculino","+90",30,null,0,null,null,null,null,0,0]
["Masculino","+90",31,null,0,null,null,null,null,0,0]
["Masculino","+90",32,null,0,null,null,null,null,0,0]

{"sheet":"-44","index":12,"n_rows":20,"n_cols":45,"rows_kept":20,"cut":false,"hidden":false,"merged":[]}
[null,null,null,null,null,null,null,null,"CADETES"]
[null,null,null,null,null,null,null,null,"-44KG ",null,null,"LISBOA","CASTELO BRANCO","COIMBRA","SETÚBAL","VIANA CASTELO","I.TERCEIRA","COIMBRA","SANTARÉM","LISBOA","MADEIRA","AÇORES","SETÚBAL","COIMBRA","LISBOA","MADEIRA","C.BRANCO","SETÚBAL","VISEU","SANTARÉM","AÇORES","FPJ","Leiria","Lisboa","Castelo Branco","Coimbra","Leiria","Setúbal","Coimbra","V. Castelo","Santarém","Lisboa","Madeira","Setúbal","Coimbra"]
[null,null,null,null,null,null,null,null,null,null,null,"2016-04-09","2016-04-17","2016-04-30","2016-04-30","2016-06-18","2016-06-25","2016-06-26","2016-07-03","2016-10-22","2016-11-12","2016-11-19","2016-11-19","2016-12-17","2017-01-14","2017-01-14","2017-01-21","2017-01-21","2017-01-21","2017-01-21","2017-01-21","2017-02-11","2017-02-18","2017-04-01","2017-04-22","2017-04-29","2017-04-29","2017-05-13","2017-06-17","2017-06-17","2017-07-02","2017-11-11","2017-11-11","2017-11-18","2017-12-16"]
["Género","Categoria",null,"LF",null,"NOME","Ano de Nascimento","Associação","CLUBE","Somatório de pontos","Número de provas","OPEN CADETES","OPEN MESTRE ANTONIO MORAIS","OPEN INT. CIDADE BARCELOS","OPEN MONTIJO CADETES","OPEN INT. CIDADE DE VALENÇA","TORNEIO DE SÃO JOÃO","TAÇA ANTONIO ALEIXO","OPEN INT. ADJ SANTARÉM","OPEN CADETES","OPEN CADETES","OPEN PONTA DELGADA","OPEN PRAGAL","OPEN CADETES","Zonal de Cadetes","Zonal de Cadetes","Zonal de Cadetes","Zonal de Cadetes","Zonal de Cadetes","Zonal de Cadetes","Zonal de Cadetes","Camp.Nac. Cadetes","Torneio Associativo","Open Cadetes","Open Cadetes \"Mestre António Morais\"","OPEN INT. CIDADE BARCELOS","Torneio Associativo","Taça Cidade do Montijo","V Taça António Lopes Aleixo","III Open Int. Eurocidade Valença Tui","V Open Int. Cadetes","Open Cadetes","Open Cadetes","Torneio Aniversário JC Pragal","Open Cadetes"]
[]
["Feminino","-44",1,121384,{"$f":"COUNTIF(D:D,D6)","v":1},"Vanessa Barbosa",2000,"Braga","Associação Desportiva e Cultural Manhente",{"$f":"SUM(L6:AW6)","v":22},{"$f":"COUNT(L6:AW6)","v":4},null,null,6,null,6,null,null,4,null,null,null,null,6]
["Feminino","-44",2,132822,{"$f":"COUNTIF(D:D,D7)","v":1},"Raquel Calado",2001,"Santarém","Grupo Recreativo 1º de Outubro",{"$f":"SUM(L7:AW7)","v":15},{"$f":"COUNT(L7:AW7)","v":6},null,1,1,null,null,null,4,2,null,null,null,null,null,null,null,null,null,null,1,null,6]
["Feminino","-44",3,117183,{"$f":"COUNTIF(D:D,D8)","v":1},"Iara Neves",2002,"Leiria","Judo Clube Marinha Grande",{"$f":"SUM(L8:AW8)","v":8},{"$f":"COUNT(L8:AW8)","v":3},null,null,null,null,null,null,null,null,null,null,null,null,1,null,null,null,null,null,4,null,3]
["Feminino","-44",4,133308,{"$f":"COUNTIF(D:D,D9)","v":1},"Andreia Fernandes",2002,"Coimbra","Judo Clube de Barcelos",{"$f":"SUM(L9:AW9)","v":5},{"$f":"COUNT(L9:AW9)","v":1},null,null,null,null,null,null,null,null,null,null,null,null,null,null,null,null,null,null,5]
["Feminino","-44",5,130180,{"$f":"COUNTIF(D:D,D10)","v":1},"Vanessa Machado",2000,"Açores","Clube Escolar Desp. da Escola Basica 2 3 Arrifes",{"$f":"SUM(L10:AW10)","v":5},{"$f":"COUNT(L10:AW10)","v":1},null,null,null,null,null,null,null,null,null,null,null,null,null,null,null,null,null,null,null,null,5]
["Feminino","-44",6,130819,{"$f":"COUNTIF(D:D,D11)","v":1},"Helena Castro",2001,"Braga","ARCAP - Academia Recreativa e Cultural \"Amigos de Ponte\"",{"$f":"SUM(L11:AW11)","v":4},{"$f":"COUNT(L11:AW11)","v":1},null,null,4]
["Feminino","-44",7,126256,{"$f":"COUNTIF(D:D,D12)","v":1},"Beatriz Ortensio",2002,"Açores","Judo clube de Ponta Delgada",{"$f":"SUM(L12:AW12)","v":3},{"$f":"COUNT(L12:AW12)","v":2},null,null,null,null,null,null,null,null,null,null,null,null,null,null,null,null,null,null,null,1,2]
["Feminino","-44",8,140025,{"$f":"COUNTIF(D:D,D13)","v":1},"Margarida Cabral",2001,"Lisboa","Judo Clube Lisboa",{"$f":"SUM(L13:AW13)","v":2},{"$f":"COUNT(L13:AW13)","v":2},null,null,null,null,null,null,1,1]
["Feminino","-44",9,126878,{"$f":"COUNTIF(D:D,D14)","v":1},"Joana Coutinho",2001,"Algarve","BEJUDO - Clube",{"$f":"SUM(L14:AW14)","v":1},{"$f":"COUNT(L14:AW14)","v":1},null,null,null,null,null,null,null,null,null,null,null,null,null,null,null,null,1]
["Feminino","-44",10,108774,{"$f":"COUNTIF(D:D,D15)","v":1},"Mariana Piedade",2000,"Santarém","Casa do Povo de Rio Maior",{"$f":"SUM(L15:AW15)","v":0},{"$f":"COUNT(L15:AW15)","v":0}]
["Feminino","-44",11,null,{"$f":"COUNTIF(D:D,D16)","v":0},null,null,null,null,{"$f":"SUM(L16:AW16)","v":0},{"$f":"COUNT(L16:AW16)","v":0}]
["Feminino","-44",12,null,0,null,null,null,null,0,0]
["Feminino","-44",13,null,0,null,null,null,null,0,0]
["Feminino","-44",14,null,0,null,null,null,null,0,0]
["Feminino","-44",15,null,0,null,null,null,null,0,0]

{"sheet":"-48","index":13,"n_rows":34,"n_cols":45,"rows_kept":34,"cut":false,"hidden":false,"merged":[]}
[null,null,null,null,null,null,null,null,"CADETES"]
[null,null,null,null,null,null,null,null,"-48KG ",null,null,"LISBOA","CASTELO BRANCO","COIMBRA","SETÚBAL","VIANA CASTELO","I.TERCEIRA","COIMBRA","SANTARÉM","LISBOA","MADEIRA","AÇORES","SETÚBAL","COIMBRA","LISBOA","MADEIRA","C.BRANCO","SETÚBAL","VISEU","SANTARÉM","AÇORES","FPJ","Leiria","Lisboa","Castelo Branco","Coimbra","Leiria","Setúbal","Coimbra","V. Castelo","Santarém","Lisboa","Madeira","Setúbal","Coimbra"]
[null,null,null,null,null,null,null,null,null,null,null,"2016-04-09","2016-04-17","2016-04-30","2016-04-30","2016-06-18","2016-06-25","2016-06-26","2016-07-03","2016-10-22","2016-11-12","2016-11-19","2016-11-19","2016-12-17","2017-01-14","2017-01-14","2017-01-21","2017-01-21","2017-01-21","2017-01-21","2017-01-21","2017-02-11","2017-02-18","2017-04-01","2017-04-22","2017-04-29","2017-04-29","2017-05-13","2017-06-17","2017-06-17","2017-07-02","2017-11-11","2017-11-11","2017-11-18","2017-12-16"]
["Género","Categoria",null,"LF",null,"NOME","Ano de Nascimento","Associação","CLUBE","Somatório de Pontos","Número de provas","OPEN CADETES","OPEN MESTRE ANTONIO MORAIS","OPEN INT. CIDADE BARCELOS","OPEN MONTIJO CADETES","OPEN INT. CIDADE DE VALENÇA","TORNEIO DE SÃO JOÃO","TAÇA ANTONIO ALEIXO","OPEN INT. ADJ SANTARÉM","OPEN CADETES","OPEN CADETES","OPEN PONTA DELGADA","OPEN PRAGAL","OPEN CADETES","Zonal de Cadetes","Zonal de Cadetes","Zonal de Cadetes","Zonal de Cadetes","Zonal de Cadetes","Zonal de Cadetes","Zonal de Cadetes","Camp.Nac. Cadetes","Torneio Associativo","Open Cadetes","Open Cadetes \"Mestre António Morais\"","OPEN INT. CIDADE BARCELOS","Torneio Associativo","Taça Cidade do Montijo","V Taça António Lopes Aleixo","III Open Int. Eurocidade Valença Tui","V Open Int. Cadetes","Open Cadetes","Open Cadetes","Torneio Aniversário JC Pragal","Open Cadetes"]
[]
["Feminino","-48",1,126888,{"$f":"COUNTIF(D:D,D6)","v":1},"Carolina Estevão",2000,"Setúbal","CCD-Clube Judo Montijo",{"$f":"SUM(L6:AW6)","v":29},{"$f":"COUNT(L6:AW6)","v":5},2,7,null,7,null,null,null,7,6]
["Feminino","-48",2,142498,{"$f":"COUNTIF(D:D,D7)","v":1},"Francisca Jorge",2002,"C.Branco","Escola de Judo Ana Hormigo",{"$f":"SUM(L7:AW7)","v":28},{"$f":"COUNT(L7:AW7)","v":3},null,null,null,null,null,null,null,null,null,null,null,null,10,null,null,6,null,null,null,null,12]
["Feminino","-48",3,114175,{"$f":"COUNTIF(D:D,D8)","v":1},"Teresa Santos",2002,"Algarve","Unbreakable Force - Associação Desportiva e Cultural",{"$f":"SUM(L8:AW8)","v":18},{"$f":"COUNT(L8:AW8)","v":3},null,null,null,null,null,null,null,null,null,null,null,null,7,null,null,null,4,null,null,null,7]
["Feminino","-48",4,115417,{"$f":"COUNTIF(D:D,D9)","v":1},"Diana Valença",2001,"Coimbra","Associação Cristã da Mocidade de Coimbra",{"$f":"SUM(L9:AW9)","v":17},{"$f":"COUNT(L9:AW9)","v":4},null,null,null,null,null,null,1,null,null,null,null,null,1,null,null,null,null,null,6,null,9]
["Feminino","-48",5,119334,{"$f":"COUNTIF(D:D,D10)","v":1},"Ana Fernandes",2001,"Setúbal","Grupo de Amigos da Costa da Caparica",{"$f":"SUM(L10:AW10)","v":16},{"$f":"COUNT(L10:AW10)","v":6},null,1,null,3,4,null,null,1,null,null,null,null,null,null,null,null,6,null,null,null,1]
["Feminino","-48",6,117568,{"$f":"COUNTIF(D:D,D11)","v":1},"Raquel Brito",2002,"Lisboa","Sport Algés e Dafundo",{"$f":"SUM(L11:AW11)","v":14},{"$f":"COUNT(L11:AW11)","v":2},null,null,null,null,null,null,null,null,null,null,null,null,null,7,null,null,null,null,null,null,7]
["Feminino","-48",7,122906,{"$f":"COUNTIF(D:D,D12)","v":1},"Carolina Rodrigues",2001,"Coimbra","Associação Académica Coimbra",{"$f":"SUM(L12:AW12)","v":14},{"$f":"COUNT(L12:AW12)","v":3},null,null,null,null,null,null,6,null,null,null,null,null,null,null,null,null,null,null,4,null,4]
["Feminino","-48",8,131277,{"$f":"COUNTIF(D:D,D13)","v":1},"Filipa Barata",2002,"Lisboa","Escola de Judo Nuno Delgado",{"$f":"SUM(L13:AW13)","v":10},{"$f":"COUNT(L13:AW13)","v":3},null,null,null,null,null,null,null,null,4,null,null,null,null,5,null,null,null,null,null,null,1]
["Feminino","-48",9,110991,{"$f":"COUNTIF(D:D,D14)","v":1},"Rita Soares",2001,"Lisboa","Escola de Judo Nuno Delgado",{"$f":"SUM(L14:AW14)","v":7},{"$f":"COUNT(L14:AW14)","v":3},null,3,null,1,null,null,null,3]
["Feminino","-48",10,130180,{"$f":"COUNTIF(D:D,D15)","v":1},"Vanessa Machado",2000,"Açores","Clube Escolar Desp. da Escola Basica 2 3 Arrifes",{"$f":"SUM(L15:AW15)","v":6},{"$f":"COUNT(L15:AW15)","v":1},null,null,null,null,null,null,null,null,null,null,null,null,null,null,null,null,null,null,null,6]
["Feminino","-48",11,127177,{"$f":"COUNTIF(D:D,D16)","v":1},"Juliana Lopes",2002,"Coimbra","Associação Academica de Coimbra",{"$f":"SUM(L16:AW16)","v":6},{"$f":"COUNT(L16:AW16)","v":3},null,null,null,null,null,null,null,null,null,null,null,null,3,null,null,null,null,null,1,null,2]
["Feminino","-48",12,144376,{"$f":"COUNTIF(D:D,D17)","v":1},"Lenira Martins",2001,"Lisboa","Sport Lisboa e Benfica",{"$f":"SUM(L17:AW17)","v":4},{"$f":"COUNT(L17:AW17)","v":1},null,null,null,null,null,null,null,null,null,null,null,null,4]
["Feminino","-48",13,146764,{"$f":"COUNTIF(D:D,D18)","v":1},"Joana Sousa",2001,"Açores","Clube Escolar Desp. da Escola Basica 2 3 Arrifes",{"$f":"SUM(L18:AW18)","v":4},{"$f":"COUNT(L18:AW18)","v":1},null,null,null,null,null,null,null,null,null,null,null,null,null,null,null,null,null,null,null,4]
["Feminino","-48",14,121384,{"$f":"COUNTIF(D:D,D19)","v":1},"Vanessa Barbosa",2000,"Braga","Associação Desportiva e Cultural Manhente",{"$f":"SUM(L19:AW19)","v":4},{"$f":"COUNT(L19:AW19)","v":1},null,null,null,null,null,null,null,null,null,null,null,null,null,null,null,null,null,null,null,null,4]
["Feminino","-48",15,132022,{"$f":"COUNTIF(D:D,D20)","v":1},"Maria Inês costa",2000,"Lisboa","Escola de Judo Nuno Delgado",{"$f":"SUM(L20:AW20)","v":4},{"$f":"COUNT(L20:AW20)","v":2},null,null,null,null,null,null,null,null,null,null,null,null,null,3,null,null,null,null,null,null,1]
["Feminino","-48",16,127860,{"$f":"COUNTIF(D:D,D21)","v":1},"Ana Agulhas",2001,"Lisboa","Oficinas de São José",{"$f":"SUM(L21:AW21)","v":3},{"$f":"COUNT(L21:AW21)","v":1},null,null,null,null,null,null,null,3]
["Feminino","-48",17,108553,{"$f":"COUNTIF(D:D,D22)","v":1},"Ana Nunes",2001,"Madeira","Grupo Desportivo APEL",{"$f":"SUM(L22:AW22)","v":3},{"$f":"COUNT(L22:AW22)","v":2},null,null,null,null,null,null,null,null,null,null,null,null,null,null,1,null,null,null,null,null,2]
["Feminino","-48",18,120087,{"$f":"COUNTIF(D:D,D23)","v":1},"Vânia Baptista",2001,"Lisboa","Sport Lisboa e Benfica",{"$f":"SUM(L23:AW23)","v":3},{"$f":"COUNT(L23:AW23)","v":3},null,null,null,null,null,null,null,1,1,null,null,null,null,null,null,null,null,null,null,null,1]
["Feminino","-48",19,130819,{"$f":"COUNTIF(D:D,D24)","v":1},"Helena Castro",2001,"Braga","ARCAP - Academia Recreativa e Cultural \"Amigos de Ponte\"",{"$f":"SUM(L24:AW24)","v":2},{"$f":"COUNT(L24:AW24)","v":1},null,null,null,null,null,null,null,null,null,null,null,null,null,null,null,null,null,null,null,null,2]
["Feminino","-48",20,140025,{"$f":"COUNTIF(D:D,D25)","v":1},"Margarida Cabral",2001,"Lisboa","Judo Clube Lisboa",{"$f":"SUM(L25:AW25)","v":2},{"$f":"COUNT(L25:AW25)","v":2},1,null,null,1]
["Feminino","-48",21,138902,{"$f":"COUNTIF(D:D,D26)","v":1},"Bárbara Almeida",2001,"Açores","Judo Clube S. Jorge",{"$f":"SUM(L26:AW26)","v":1},{"$f":"COUNT(L26:AW26)","v":1},null,null,null,null,null,null,null,null,null,null,null,null,null,null,null,null,null,null,null,1]
["Feminino","-48",22,131112,{"$f":"COUNTIF(D:D,D27)","v":1},"Sofia Cardoso",2002,"Lisboa","Judo Clube de Odivelas",{"$f":"SUM(L27:AW27)","v":1},{"$f":"COUNT(L27:AW27)","v":1},null,null,null,null,null,null,null,null,null,null,null,null,null,1]
["Feminino","-48",23,144343,{"$f":"COUNTIF(D:D,D28)","v":1},"Lorena Marcolino",2002,"Algarve","Judo Clube de Portimão",{"$f":"SUM(L28:AW28)","v":1},{"$f":"COUNT(L28:AW28)","v":1},null,null,null,null,null,null,null,null,null,null,null,null,null,null,null,null,1]
["Feminino","-48",24,151245,{"$f":"COUNTIF(D:D,D29)","v":1},"Inês Martins",2002,"C.Branco","Sport Tortosendo e Benfica",{"$f":"SUM(L29:AW29)","v":1},{"$f":"COUNT(L29:AW29)","v":1},null,null,null,null,null,null,null,null,null,null,null,null,null,null,null,1]
["Feminino","-48",25,141563,{"$f":"COUNTIF(D:D,D30)","v":1},"Mariana Sousa",2002,"V.Castelo","Associação Desportiva e Cultural Taiki-Budo",{"$f":"SUM(L30:AW30)","v":1},{"$f":"COUNT(L30:AW30)","v":1},null,null,null,null,null,null,null,null,null,null,null,null,null,null,null,null,null,1]
["Feminino","-48",26,110132,{"$f":"COUNTIF(D:D,D31)","v":1},"Raquel Barbas",2001,"Santarém","Judo Clube Coruche",{"$f":"SUM(L31:AW31)","v":0},{"$f":"COUNT(L31:AW31)","v":0}]
["Feminino","-48",27,137835,{"$f":"COUNTIF(D:D,D32)","v":1},"Helena Hingá",2000,"Leiria","Judo Clube \"O Dragão\"",{"$f":"SUM(L32:AW32)","v":0},{"$f":"COUNT(L32:AW32)","v":0}]
["Feminino","-48",28,null,{"$f":"COUNTIF(D:D,D33)","v":0},null,null,null,null,{"$f":"SUM(L33:AW33)","v":0},{"$f":"COUNT(L33:AW33)","v":0}]
["Feminino","-48",29,null,0,null,null,null,null,0,0]

{"sheet":"-52","index":14,"n_rows":53,"n_cols":45,"rows_kept":53,"cut":false,"hidden":false,"merged":[]}
[null,null,null,null,null,null,null,null,"CADETES"]
[null,null,null,null,null,null,null,null,"-52KG ",null,null,"LISBOA","CASTELO BRANCO","COIMBRA","SETÚBAL","VIANA CASTELO","I.TERCEIRA","COIMBRA","SANTARÉM","LISBOA","MADEIRA","AÇORES","SETÚBAL","COIMBRA","LISBOA","MADEIRA","C.BRANCO","SETÚBAL","VISEU","SANTARÉM","AÇORES","FPJ","Leiria","Lisboa","Castelo Branco","Coimbra","Leiria","Setúbal","Coimbra","V. Castelo","Santarém","Lisboa","Madeira","Setúbal","Coimbra"]
[null,null,null,null,null,null,null,null,null,null,null,"2016-04-09","2016-04-17","2016-04-30","2016-04-30","2016-06-18","2016-06-25","2016-06-26","2016-07-03","2016-10-22","2016-11-12","2016-11-19","2016-11-19","2016-12-17","2017-01-14","2017-01-14","2017-01-21","2017-01-21","2017-01-21","2017-01-21","2017-01-21","2017-02-11","2017-02-18","2017-04-01","2017-04-22","2017-04-29","2017-04-29","2017-05-13","2017-06-17","2017-06-17","2017-07-02","2017-11-11","2017-11-11","2017-11-18","2017-12-16"]
["Género","Categoria",null,"LF",null,"NOME","Ano de Nascimento","Associação","CLUBE","Somatório de Pontos","Número de provas","OPEN CADETES","OPEN MESTRE ANTONIO MORAIS","OPEN INT. CIDADE BARCELOS","OPEN MONTIJO CADETES","OPEN INT. CIDADE DE VALENÇA","TORNEIO DE SÃO JOÃO","TAÇA ANTONIO ALEIXO","OPEN INT. ADJ SANTARÉM","OPEN CADETES","OPEN CADETES","OPEN PONTA DELGADA","OPEN PRAGAL","OPEN CADETES","Zonal de Cadetes","Zonal de Cadetes","Zonal de Cadetes","Zonal de Cadetes","Zonal de Cadetes","Zonal de Cadetes","Zonal de Cadetes","Camp.Nac. Cadetes","Torneio Associativo","Open Cadetes","Open Cadetes \"Mestre António Morais\"","OPEN INT. CIDADE BARCELOS","Torneio Associativo","Taça Cidade do Montijo","V Taça António Lopes Aleixo","III Open Int. Eurocidade Valença Tui","V Open Int. Cadetes","Open Cadetes","Open Cadetes","Torneio Aniversário JC Pragal","Open Cadetes"]
[]
["Feminino","-52",1,112270,{"$f":"COUNTIF(D:D,D6)","v":1},"Maria Sereno",2000,"Lisboa","Escola de Judo Nuno Delgado",{"$f":"SUM(L6:AX6)","v":51},{"$f":"COUNT(L6:AX6)","v":8},10,2,null,4,null,null,null,6,8,null,null,6,null,2,null,null,null,null,null,null,13]
["Feminino","-52",2,127860,{"$f":"COUNTIF(D:D,D7)","v":1},"Ana Agulhas",2001,"Lisboa","Oficinas de São José",{"$f":"SUM(L7:AX7)","v":46},{"$f":"COUNT(L7:AX7)","v":6},1,7,null,null,null,null,null,null,10,null,null,7,10,null,null,null,null,null,null,null,11]
["Feminino","-52",3,122699,{"$f":"COUNTIF(D:D,D8)","v":1},"Mafalda Ezequiel",2000,"Lisboa","Judo Clube Lisboa",{"$f":"SUM(L8:AX8)","v":34},{"$f":"COUNT(L8:AX8)","v":4},7,11,null,null,null,null,null,8,null,null,null,null,null,8]
["Feminino","-52",4,140806,{"$f":"COUNTIF(D:D,D9)","v":1},"Fátima Costa",2002,"Coimbra","Judo Clube de Coimbra",{"$f":"SUM(L9:AX9)","v":33},{"$f":"COUNT(L9:AX9)","v":3},null,null,null,null,null,null,null,null,null,null,null,null,13,null,null,null,null,null,10,null,10]
["Feminino","-52",5,132004,{"$f":"COUNTIF(D:D,D10)","v":1},"Andreia Loureiro",2000,"Lisboa","Escola de Judo Nuno Delgado",{"$f":"SUM(L10:AX10)","v":29},{"$f":"COUNT(L10:AX10)","v":2},null,null,null,null,null,null,null,null,null,null,null,null,null,11,null,null,null,null,null,null,18]
["Feminino","-52",6,113499,{"$f":"COUNTIF(D:D,D11)","v":1},"Ana Campos",2000,"Lisboa","Universidade Lusofona de Humanidades de Tecnologias",{"$f":"SUM(L11:AX11)","v":27},{"$f":"COUNT(L11:AX11)","v":9},1,1,null,5,null,null,null,3,3,null,null,2,4,4,null,null,null,null,null,null,4]
["Feminino","-52",7,112998,1,"Joana Rocha",2002,"Leiria","Judo Clube Marinha Grande",{"$f":"SUM(L12:AX12)","v":22},{"$f":"COUNT(L12:AX12)","v":3},null,null,null,null,null,null,null,null,null,null,null,null,8,null,null,null,null,null,6,null,8]
["Feminino","-52",8,123016,{"$f":"COUNTIF(D:D,D13)","v":1},"Inês Penetra",2001,"Braga","Associação Desportiva e Cultural Manhente",{"$f":"SUM(L13:AX13)","v":16},{"$f":"COUNT(L13:AX13)","v":4},null,null,6,null,2,null,null,null,null,null,null,null,7,null,null,null,null,null,null,null,1]
["Feminino","-52",9,137421,{"$f":"COUNTIF(D:D,D14)","v":1},"Maria Lopes",2001,"Santarém","Casa do Benfica de Santarém",{"$f":"SUM(L14:AX14)","v":12},{"$f":"COUNT(L14:AX14)","v":3},null,4,null,null,null,null,6,2]
["Feminino","-52",10,134318,{"$f":"COUNTIF(D:D,D15)","v":1},"Mafalda Matos",2000,"Algarve","Judo Clube do Algarve",{"$f":"SUM(L15:AX15)","v":11},{"$f":"COUNT(L15:AX15)","v":3},null,null,null,null,null,null,null,null,null,null,null,4,null,null,null,null,6,null,null,null,1]
["Feminino","-52",11,148565,{"$f":"COUNTIF(D:D,D16)","v":1},"Sofia Silva",2000,"Lisboa","Colégio Integrado Monte Maior",{"$f":"SUM(L16:AX16)","v":10},{"$f":"COUNT(L16:AX16)","v":4},null,null,null,null,null,null,null,null,1,null,null,null,4,4,null,null,null,null,null,null,1]
["Feminino","-52",12,144376,{"$f":"COUNTIF(D:D,D17)","v":1},"Lenira Martins",2001,"Lisboa","Sport Lisboa e Benfica",{"$f":"SUM(L17:AX17)","v":7},{"$f":"COUNT(L17:AX17)","v":1},null,null,null,null,null,null,null,null,null,null,null,null,null,null,null,null,null,null,null,null,7]
["Feminino","-52",13,140761,{"$f":"COUNTIF(D:D,D18)","v":1},"Beatriz Rodrigues",2002,"V. Castelo","Centro Social Paroquial de Alvarães",{"$f":"SUM(L18:AX18)","v":7},{"$f":"COUNT(L18:AX18)","v":2},null,null,null,null,null,null,null,null,null,null,null,null,null,null,null,null,null,6,null,null,1]
["Feminino","-52",14,128816,{"$f":"COUNTIF(D:D,D19)","v":1},"Ana Teixeira",2002,"Coimbra","Clube de Judo do Porto",{"$f":"SUM(L19:AX19)","v":7},{"$f":"COUNT(L19:AX19)","v":2},null,null,null,null,null,null,null,null,null,null,null,null,null,null,null,null,null,null,3,null,4]
["Feminino","-52",15,110991,{"$f":"COUNTIF(D:D,D20)","v":1},"Rita Soares",2001,"Lisboa","Escola de Judo Nuno Delgado",{"$f":"SUM(L20:AX20)","v":7},{"$f":"COUNT(L20:AX20)","v":3},null,null,null,null,null,null,null,null,4,null,null,null,null,2,null,null,null,null,null,null,1]
["Feminino","-52",16,138033,{"$f":"COUNTIF(D:D,D21)","v":1},"Bianca Fontes",2001,"Coimbra","Casa do Povo de Miranda do Corvo",{"$f":"SUM(L21:AX21)","v":7},{"$f":"COUNT(L21:AX21)","v":3},null,null,null,null,null,null,4,null,null,null,null,null,1,null,null,null,null,null,null,null,2]
["Feminino","-52",17,108553,{"$f":"COUNTIF(D:D,D22)","v":1},"Ana Nunes",2001,"Madeira","Grupo Desportivo APEL",{"$f":"SUM(L22:AX22)","v":7},{"$f":"COUNT(L22:AX22)","v":4},3,null,null,2,null,null,null,null,1,1]
["Feminino","-52",18,142325,{"$f":"COUNTIF(D:D,D23)","v":1},"Sofia Vale",2001,"V. Castelo","Centro Social Paroquial de Alvarães",{"$f":"SUM(L23:AX23)","v":6},{"$f":"COUNT(L23:AX23)","v":2},null,null,null,null,null,null,null,null,null,null,null,null,null,null,null,null,null,4,null,null,2]
["Feminino","-52",19,123357,{"$f":"COUNTIF(D:D,D24)","v":1},"Maria Gorjão",2001,"Santarém","Clube de Judo de Riachos",{"$f":"SUM(L24:AX24)","v":5},{"$f":"COUNT(L24:AX24)","v":3},null,null,null,null,null,null,1,null,null,null,null,null,3,null,null,null,null,null,1]
["Feminino","-52",20,119687,{"$f":"COUNTIF(D:D,D25)","v":1},"Matilde Silva",2002,"Coimbra","Escola de Judo de Coimbra",{"$f":"SUM(L25:AX25)","v":4},{"$f":"COUNT(L25:AX25)","v":2},null,null,null,null,null,null,null,null,null,null,null,null,1,null,null,null,null,null,3]
["Feminino","-52",21,148964,1,"Catarina Alcarrão",2001,"Aveiro","Associação 4Judo Project",{"$f":"SUM(L26:AX26)","v":4},{"$f":"COUNT(L26:AX26)","v":3},null,null,null,null,null,null,null,null,null,null,null,null,2,null,null,null,null,1,null,null,1]
["Feminino","-52",22,137835,{"$f":"COUNTIF(D:D,D27)","v":1},"Helena Hingá",2000,"Leiria","Judo Clube \"O Dragão\"",{"$f":"SUM(L27:AX27)","v":4},{"$f":"COUNT(L27:AX27)","v":3},null,null,null,null,null,null,null,null,null,null,null,null,1,null,null,null,null,null,2,null,1]
["Feminino","-52",23,140103,{"$f":"COUNTIF(D:D,D28)","v":1},"Mariana Domingues",2001,"C.Branco","Academia de Judo Castelo Branco",{"$f":"SUM(L28:AX28)","v":3},{"$f":"COUNT(L28:AX28)","v":1},null,3]
["Feminino","-52",24,111165,{"$f":"COUNTIF(D:D,D29)","v":1},"Bruna Rodrigues",2000,"Santarém","Sociedade Filarmónica Gualdim Pais",{"$f":"SUM(L29:AX29)","v":2},{"$f":"COUNT(L29:AX29)","v":1},null,null,null,null,null,null,null,null,2]
["Feminino","-52",25,131277,{"$f":"COUNTIF(D:D,D30)","v":1},"Filipa Barata",2002,"Lisboa","Escola de Judo Nuno Delgado",{"$f":"SUM(L30:AX30)","v":2},{"$f":"COUNT(L30:AX30)","v":1},null,null,null,null,null,null,null,null,null,null,null,2]
["Feminino","-52",26,126915,{"$f":"COUNTIF(D:D,D31)","v":1},"Inês Vieira",2002,"Setúbal","ACA-Academia Chushin Associação",{"$f":"SUM(L31:AX31)","v":2},{"$f":"COUNT(L31:AX31)","v":2},null,null,null,null,null,null,null,null,null,null,null,null,null,null,null,null,1,null,null,null,1]
["Feminino","-52",27,144381,{"$f":"COUNTIF(D:D,D32)","v":1},"Ana Morgado",2001,"Lisboa","Judo Clube Sintra",{"$f":"SUM(L32:AX32)","v":1},{"$f":"COUNT(L32:AX32)","v":1},1]
["Feminino","-52",28,145797,{"$f":"COUNTIF(D:D,D33)","v":1},"Sara Lopes",2000,"Braga","ARCAP - Academia Recreativa e Cultural \"Amigos de Ponte\"",{"$f":"SUM(L33:AX33)","v":1},{"$f":"COUNT(L33:AX33)","v":1},null,null,1]
["Feminino","-52",29,146273,{"$f":"COUNTIF(D:D,D34)","v":1},"Julia Almeida",2001,"Setúbal","Grupo de Amigos da Costa da Caparica",{"$f":"SUM(L34:AX34)","v":1},{"$f":"COUNT(L34:AX34)","v":1},null,1]
["Feminino","-52",30,125537,{"$f":"COUNTIF(D:D,D35)","v":1},"Katerzyna Dudko",2000,"Braga","Vitória Sport Clube",{"$f":"SUM(L35:AX35)","v":1},{"$f":"COUNT(L35:AX35)","v":1},null,null,null,null,1]
["Feminino","-52",31,149112,{"$f":"COUNTIF(D:D,D36)","v":1},"Mariana Silva",2001,"Santarém","Clube de Judo de Riachos",{"$f":"SUM(L36:AX36)","v":1},{"$f":"COUNT(L36:AX36)","v":1},null,null,null,null,null,null,null,null,null,null,null,null,1]
["Feminino","-52",32,148745,{"$f":"COUNTIF(D:D,D37)","v":1},"Mara Baptista",2000,"Coimbra","Judo Clube de Coimbra",{"$f":"SUM(L37:AX37)","v":1},{"$f":"COUNT(L37:AX37)","v":1},null,null,null,null,null,null,null,null,null,null,null,null,1]
["Feminino","-52",33,147901,{"$f":"COUNTIF(D:D,D38)","v":1},"Daniela Delgado",2002,"Lisboa","Casa do Povo do Concelho de Cadaval",{"$f":"SUM(L38:AX38)","v":1},{"$f":"COUNT(L38:AX38)","v":1},null,null,null,null,null,null,null,null,null,null,null,null,null,1]
["Feminino","-52",34,140922,{"$f":"COUNTIF(D:D,D39)","v":1},"Mariana Serra",2002,"Lisboa","Clube de Judo da Lourinhã",{"$f":"SUM(L39:AX39)","v":1},{"$f":"COUNT(L39:AX39)","v":1},null,null,null,null,null,null,null,null,null,null,null,null,null,1]
["Feminino","-52",35,118103,{"$f":"COUNTIF(D:D,D40)","v":1},"Ana Sousa",2002,"Ilha Terceira","Clube de Judo da Praia da Vitória",{"$f":"SUM(L40:AX40)","v":1},{"$f":"COUNT(L40:AX40)","v":1},null,null,null,null,null,null,null,null,null,null,null,null,null,null,null,null,null,null,null,1]
["Feminino","-52",36,144343,{"$f":"COUNTIF(D:D,D41)","v":1},"Lorena Marcolino",2002,"Algarve","Judo Clube de Portimão",{"$f":"SUM(L41:AX41)","v":1},{"$f":"COUNT(L41:AX41)","v":1},null,null,null,null,null,null,null,null,null,null,null,null,null,null,null,null,null,null,null,null,1]
["Feminino","-52",37,141563,{"$f":"COUNTIF(D:D,D42)","v":1},"Mariana Sousa",2002,"V.Castelo","Associação Desportiva e Cultural Taiki-Budo",{"$f":"SUM(L42:AX42)","v":1},{"$f":"COUNT(L42:AX42)","v":1},null,null,null,null,null,null,null,null,null,null,null,null,null,null,null,null,null,null,null,null,1]
["Feminino","-52",38,138611,{"$f":"COUNTIF(D:D,D43)","v":1},"Andreia Serrão",2001,"Setúbal","CCD-Clube Judo Montijo",{"$f":"SUM(L43:AX43)","v":0},{"$f":"COUNT(L43:AX43)","v":0}]
["Feminino","-52",39,105039,{"$f":"COUNTIF(D:D,D44)","v":1},"Teresa Trindade",2001,"Setúbal","Judo Clube Pragal",{"$f":"SUM(L44:AX44)","v":0},{"$f":"COUNT(L44:AX44)","v":0}]
["Feminino","-52",40,115142,{"$f":"COUNTIF(D:D,D45)","v":1},"Beatriz Caires",2001,"Madeira","Judo Clube Madeira",{"$f":"SUM(L45:AX45)","v":0},{"$f":"COUNT(L45:AX45)","v":0}]
["Feminino","-52",41,133756,{"$f":"COUNTIF(D:D,D46)","v":1},"Mónica Maia",2001,"I.Terceira","Clube de Judo Praia da Vitória",{"$f":"SUM(L46:AX46)","v":0},{"$f":"COUNT(L46:AX46)","v":0}]
["Feminino","-52",42,117137,{"$f":"COUNTIF(D:D,D47)","v":1},"Alexandra Moreira",2000,"Açores","Judo Clube Ponta Delgada",{"$f":"SUM(L47:AX47)","v":0},{"$f":"COUNT(L47:AX47)","v":0}]
["Feminino","-52",43,145392,{"$f":"COUNTIF(D:D,D48)","v":1},"Mónica Amaral",2000,"I.Terceira","Clube de Judo Praia da Vitória",{"$f":"SUM(L48:AX48)","v":0},{"$f":"COUNT(L48:AX48)","v":0}]
["Feminino","-52",44,144043,{"$f":"COUNTIF(D:D,D49)","v":1},"Beatriz Nobre",2001,"Algarve","Associação Cultural e Desportiva de Ferragudo",{"$f":"SUM(L49:AX49)","v":0},{"$f":"COUNT(L49:AX49)","v":0}]
["Feminino","-52",45,null,{"$f":"COUNTIF(D:D,D50)","v":0},null,null,null,null,{"$f":"SUM(L50:AX50)","v":0},{"$f":"COUNT(L50:AX50)","v":0}]
["Feminino","-52",46,null,0,null,null,null,null,0,0]
["Feminino","-52",47,null,0,null,null,null,null,0,0]
["Feminino","-52",48,null,0,null,null,null,null,0,0]

{"sheet":"-57","index":15,"n_rows":60,"n_cols":45,"rows_kept":60,"cut":false,"hidden":false,"merged":[]}
[null,null,null,null,null,null,null,null,"CADETES"]
[null,null,null,null,null,null,null,null,"-57KG ",null,null,"LISBOA","CASTELO BRANCO","COIMBRA","SETÚBAL","VIANA CASTELO","I.TERCEIRA","COIMBRA","SANTARÉM","LISBOA","MADEIRA","AÇORES","SETÚBAL","COIMBRA","LISBOA","MADEIRA","C.BRANCO","SETÚBAL","VISEU","SANTARÉM","AÇORES","FPJ","Leiria","Lisboa","Castelo Branco","Coimbra","Leiria","Setúbal","Coimbra","V. Castelo","Santarém","Lisboa","Madeira","Setúbal","Coimbra"]
[null,null,null,null,null,null,null,null,null,null,null,"2016-04-09","2016-04-17","2016-04-30","2016-04-30","2016-06-18","2016-06-25","2016-06-26","2016-07-03","2016-10-22","2016-11-12","2016-11-19","2016-11-19","2016-12-17","2017-01-14","2017-01-14","2017-01-21","2017-01-21","2017-01-21","2017-01-21","2017-01-21","2017-02-11","2017-02-18","2017-04-01","2017-04-22","2017-04-29","2017-04-29","2017-05-13","2017-06-17","2017-06-17","2017-07-02","2017-11-11","2017-11-11","2017-11-18","2017-12-16"]
["Género","Categoria",null,"LF",null,"NOME","Ano de Nascimento","Associação","CLUBE","Somatório de pontos","Número de provas","OPEN CADETES","OPEN MESTRE ANTONIO MORAIS","OPEN INT. CIDADE BARCELOS","OPEN MONTIJO CADETES","OPEN INT. CIDADE DE VALENÇA","TORNEIO DE SÃO JOÃO","TAÇA ANTONIO ALEIXO","OPEN INT. ADJ SANTARÉM","OPEN CADETES","OPEN CADETES","OPEN PONTA DELGADA","OPEN PRAGAL","OPEN CADETES","Zonal de Cadetes","Zonal de Cadetes","Zonal de Cadetes","Zonal de Cadetes","Zonal de Cadetes","Zonal de Cadetes","Zonal de Cadetes","Camp.Nac. Cadetes","Torneio Associativo","Open Cadetes","Open Cadetes \"Mestre António Morais\"","OPEN INT. CIDADE BARCELOS","Torneio Associativo","Taça Cidade do Montijo","V Taça António Lopes Aleixo","III Open Int. Eurocidade Valença Tui","V Open Int. Cadetes","Open Cadetes","Open Cadetes","Torneio Aniversário JC Pragal","Open Cadetes"]
[]
["Feminino","-57",1,132004,{"$f":"COUNTIF(D:D,D6)","v":1},"Andreia Loureiro",2000,"Lisboa","Escola de Judo Nuno Delgado",{"$f":"SUM(L6:AW6)","v":61},{"$f":"COUNT(L6:AW6)","v":5},12,null,null,13,null,null,null,13,12,null,null,11]
["Feminino","-57",2,138611,{"$f":"COUNTIF(D:D,D7)","v":1},"Andreia Serrão",2001,"Setúbal","CCD-Clube Judo Montijo",{"$f":"SUM(L7:AW7)","v":48},{"$f":"COUNT(L7:AW7)","v":8},4,7,null,7,null,null,null,8,9,null,null,4,null,null,null,null,7,null,null,null,2]
["Feminino","-57",3,142086,{"$f":"COUNTIF(D:D,D8)","v":1},"Leonor Silva",2000,"Coimbra","Associação Académica de Coimbra",{"$f":"SUM(L8:AW8)","v":41},{"$f":"COUNT(L8:AW8)","v":6},null,3,6,null,null,null,7,null,null,null,null,null,7,null,null,null,null,null,7,null,11]
["Feminino","-57",4,105039,{"$f":"COUNTIF(D:D,D9)","v":1},"Teresa Trindade",2001,"Setúbal","Judo Clube Pragal",{"$f":"SUM(L9:AW9)","v":40},{"$f":"COUNT(L9:AW9)","v":5},null,null,null,4,null,null,null,7,null,null,null,7,null,null,null,null,11,null,null,null,11]
["Feminino","-57",5,127478,{"$f":"COUNTIF(D:D,D10)","v":1},"Carolina Francês",2001,"Lisboa","Sport Lisboa e Benfica",{"$f":"SUM(L10:AW10)","v":30},{"$f":"COUNT(L10:AW10)","v":5},null,5,null,10,null,null,null,4,3,null,null,null,null,null,null,null,null,null,null,null,8]
["Feminino","-57",6,126811,{"$f":"COUNTIF(D:D,D11)","v":1},"Vanessa Figueiredo",2002,"Coimbra","Judo Clube Coimbra",{"$f":"SUM(L11:AW11)","v":25},{"$f":"COUNT(L11:AW11)","v":3},null,null,null,null,null,null,null,null,null,null,null,null,11,null,null,null,null,null,11,null,3]
["Feminino","-57",7,115142,{"$f":"COUNTIF(D:D,D12)","v":1},"Beatriz Caires",2001,"Madeira","Judo Clube Madeira",{"$f":"SUM(L12:AW12)","v":25},{"$f":"COUNT(L12:AW12)","v":6},10,null,null,4,null,null,null,null,1,1,null,null,null,null,7,null,null,null,null,null,2]
["Feminino","-57",8,112264,{"$f":"COUNTIF(D:D,D13)","v":1},"Beatriz Barata",2000,"Lisboa","Escola de Judo Nuno Delgado",{"$f":"SUM(L13:AW13)","v":24},{"$f":"COUNT(L13:AW13)","v":2},null,null,null,null,null,null,null,null,null,null,null,null,null,7,null,null,null,null,null,null,17]
["Feminino","-57",9,122699,{"$f":"COUNTIF(D:D,D14)","v":1},"Mafalda Ezequiel",2000,"Lisboa","Judo Clube Lisboa",{"$f":"SUM(L14:AW14)","v":21},{"$f":"COUNT(L14:AW14)","v":2},null,null,null,null,null,null,null,null,7,null,null,null,null,null,null,null,null,null,null,null,14]
["Feminino","-57",10,117757,{"$f":"COUNTIF(D:D,D15)","v":1},"Inês Costa",2001,"Lisboa","Universidade Lusofona de Humanidades de Tecnologias",{"$f":"SUM(L15:AW15)","v":21},{"$f":"COUNT(L15:AW15)","v":5},null,null,null,null,null,null,null,null,3,null,null,3,5,5,null,null,null,null,null,null,5]
["Feminino","-57",11,109490,{"$f":"COUNTIF(D:D,D16)","v":1},"Isis Bernardes",2000,"Setúbal","CCD-Clube Judo Montijo",{"$f":"SUM(L16:AW16)","v":19},{"$f":"COUNT(L16:AW16)","v":6},7,1,null,6,null,null,null,2,null,null,null,null,null,null,null,null,2,null,null,null,1]
["Feminino","-57",12,136589,{"$f":"COUNTIF(D:D,D17)","v":1},"Maria Rodrigues",2002,"Setúbal","Vitória Futebol Clube",{"$f":"SUM(L17:AW17)","v":14},{"$f":"COUNT(L17:AW17)","v":3},null,null,null,null,null,null,null,null,6,null,null,null,null,null,null,null,4,null,null,null,4]
["Feminino","-57",13,146273,{"$f":"COUNTIF(D:D,D18)","v":1},"Julia Almeida",2001,"Setúbal","Grupo de Amigos da Costa da Caparica",{"$f":"SUM(L18:AW18)","v":14},{"$f":"COUNT(L18:AW18)","v":5},null,null,null,null,1,null,null,2,null,null,null,1,null,null,null,null,3,null,null,null,7]
["Feminino","-57",14,111165,{"$f":"COUNTIF(D:D,D19)","v":1},"Bruna Rodrigues",2000,"Santarém","Sociedade Filarmónica Gualdim Pais",{"$f":"SUM(L19:AW19)","v":13},{"$f":"COUNT(L19:AW19)","v":3},6,null,4,null,null,null,null,3]
["Feminino","-57",15,106115,{"$f":"COUNTIF(D:D,D20)","v":1},"Maria Bernardo",2000,"Açores","Judo Clube da Ribeira Grande",{"$f":"SUM(L20:AW20)","v":10},{"$f":"COUNT(L20:AW20)","v":2},null,null,null,null,null,null,null,null,null,null,null,null,null,null,null,null,null,null,null,7,3]
["Feminino","-57",16,129891,{"$f":"COUNTIF(D:D,D21)","v":1},"Beatriz Rocha",2001,"Madeira","Judo Clube Madeira",{"$f":"SUM(L21:AW21)","v":10},{"$f":"COUNT(L21:AW21)","v":3},null,null,null,2,null,null,null,null,null,null,null,null,null,null,5,null,null,null,null,null,3]
["Feminino","-57",17,129230,{"$f":"COUNTIF(D:D,D22)","v":1},"Sofia Lopes",2001,"Lisboa","Ginásio Clube Português",{"$f":"SUM(L22:AW22)","v":9},{"$f":"COUNT(L22:AW22)","v":3},3,null,null,1,null,5]
["Feminino","-57",18,136670,{"$f":"COUNTIF(D:D,D23)","v":1},"Carolina Gonçalves",2002,"Lisboa","Sporting Clube de Portugal",{"$f":"SUM(L23:AW23)","v":9},{"$f":"COUNT(L23:AW23)","v":4},null,null,null,null,null,null,null,null,null,null,null,2,2,3,null,null,null,null,null,null,2]
["Feminino","-57",19,111685,{"$f":"COUNTIF(D:D,D24)","v":1},"Ana Moura",2001,"C.Branco","Escola de Judo Ana Hormigo",{"$f":"SUM(L24:AW24)","v":8},{"$f":"COUNT(L24:AW24)","v":3},null,null,null,null,null,null,null,null,null,null,null,null,1,null,null,6,null,null,null,null,1]
["Feminino","-57",20,127943,{"$f":"COUNTIF(D:D,D25)","v":1},"Leonor Costa",2001,"Lisboa","Sport Lisboa e Benfica",{"$f":"SUM(L25:AW25)","v":8},{"$f":"COUNT(L25:AW25)","v":3},null,null,null,null,null,null,5,null,1,null,null,null,null,null,null,null,null,null,null,null,2]
["Feminino","-57",21,140103,{"$f":"COUNTIF(D:D,D26)","v":1},"Mariana Domingues",2001,"C.Branco","Academia de Judo Castelo Branco",{"$f":"SUM(L26:AW26)","v":8},{"$f":"COUNT(L26:AW26)","v":4},null,null,null,null,null,null,null,1,null,null,null,null,2,null,null,4,null,null,null,null,1]
["Feminino","-57",22,112038,{"$f":"COUNTIF(D:D,D27)","v":1},"Marta Fonseca",2000,"Coimbra","Judo Clube Barcelos - JUBA",{"$f":"SUM(L27:AW27)","v":8},{"$f":"COUNT(L27:AW27)","v":5},1,null,1,null,3,null,null,null,null,null,null,null,null,null,null,null,null,null,2,null,1]
["Feminino","-57",23,136079,{"$f":"COUNTIF(D:D,D28)","v":1},"Madalena Lima",2002,"V. Castelo","Associação Desportiva e Cultural Taiki-Budo",{"$f":"SUM(L28:AW28)","v":7},{"$f":"COUNT(L28:AW28)","v":2},null,null,null,null,null,null,null,null,null,null,null,null,null,null,null,null,null,6,null,null,1]
["Feminino","-57",24,121879,{"$f":"COUNTIF(D:D,D29)","v":1},"Bárbara Almeida",2002,"Açores","Judo Clube de Ponta Delgada",{"$f":"SUM(L29:AW29)","v":7},{"$f":"COUNT(L29:AW29)","v":2},null,null,null,null,null,null,null,null,null,null,null,null,null,null,null,null,null,null,null,5,2]
["Feminino","-57",25,120978,{"$f":"COUNTIF(D:D,D30)","v":1},"Patricia Martins",2002,"Coimbra","Montanha Clube",{"$f":"SUM(L30:AW30)","v":7},{"$f":"COUNT(L30:AW30)","v":2},null,null,null,null,null,null,null,null,null,null,null,null,null,null,null,null,null,null,5,null,2]
["Feminino","-57",26,144855,{"$f":"COUNTIF(D:D,D31)","v":1},"Ana Ribeiro",2000,"Aveiro","Associação 4Judo Project",{"$f":"SUM(L31:AW31)","v":7},{"$f":"COUNT(L31:AW31)","v":4},null,null,null,null,null,null,3,null,null,null,null,null,1,null,null,null,null,2,null,null,1]
["Feminino","-57",27,123198,{"$f":"COUNTIF(D:D,D32)","v":1},"Ana Tavares",2002,"Coimbra","Associação Académica de Coimbra",{"$f":"SUM(L32:AW32)","v":5},{"$f":"COUNT(L32:AW32)","v":2},null,null,null,null,null,null,null,null,null,null,null,null,4,null,null,null,null,null,1]
["Feminino","-57",28,111515,{"$f":"COUNTIF(D:D,D33)","v":1},"Mariana Lavos",2001,"Leiria","Judo clube Marinha Grande",{"$f":"SUM(L33:AW33)","v":5},{"$f":"COUNT(L33:AW33)","v":2},null,null,null,null,null,null,null,null,null,null,null,null,null,null,null,null,null,null,4,null,1]
["Feminino","-57",29,145392,{"$f":"COUNTIF(D:D,D34)","v":1},"Mónica Amaral",2000,"I.Terceira","Clube de Judo Praia da Vitória",{"$f":"SUM(L34:AW34)","v":5},{"$f":"COUNT(L34:AW34)","v":3},null,null,null,null,null,3,null,null,null,null,null,null,null,null,null,null,null,null,null,1,1]
["Feminino","-57",30,125537,{"$f":"COUNTIF(D:D,D35)","v":1},"Katerzyna Dudko",2000,"Braga","Vitória Sport Clube",{"$f":"SUM(L35:AW35)","v":3},{"$f":"COUNT(L35:AW35)","v":1},null,null,3]
["Feminino","-57",31,129169,{"$f":"COUNTIF(D:D,D36)","v":1},"Ana Cruz",2000,"Madeira","Clube Naval do Funchal",{"$f":"SUM(L36:AW36)","v":3},{"$f":"COUNT(L36:AW36)","v":1},null,null,null,null,null,null,null,null,null,null,null,null,null,null,3]
["Feminino","-57",32,121324,{"$f":"COUNTIF(D:D,D37)","v":1},"Érica Loureiro",2002,"Ilha Terceira","Clube de Judo da Praia da Vitória",{"$f":"SUM(L37:AW37)","v":3},{"$f":"COUNT(L37:AW37)","v":1},null,null,null,null,null,null,null,null,null,null,null,null,null,null,null,null,null,null,null,3]
["Feminino","-57",33,133310,{"$f":"COUNTIF(D:D,D38)","v":1},"Helena Francisco",2002,"Coimbra","Judo Clube de Barcelos",{"$f":"SUM(L38:AW38)","v":3},{"$f":"COUNT(L38:AW38)","v":2},null,null,null,null,null,null,null,null,null,null,null,null,null,null,null,null,null,null,2,null,1]
["Feminino","-57",34,120969,{"$f":"COUNTIF(D:D,D39)","v":1},"Maria Queirós",2000,"Coimbra","Montanha Clube",{"$f":"SUM(L39:AW39)","v":3},{"$f":"COUNT(L39:AW39)","v":3},null,null,null,null,null,null,1,null,null,null,null,null,null,null,null,null,null,null,1,null,1]
["Feminino","-57",35,144381,{"$f":"COUNTIF(D:D,D40)","v":1},"Ana Morgado",2001,"Lisboa","Judo Clube Sintra",{"$f":"SUM(L40:AW40)","v":3},{"$f":"COUNT(L40:AW40)","v":3},null,null,null,null,null,null,null,null,1,null,null,null,null,1,null,null,null,null,null,null,1]
["Feminino","-57",36,123094,{"$f":"COUNTIF(D:D,D41)","v":1},"Elisabete Kolesnikov",2001,"Setúbal","Judo Clube Pragal",{"$f":"SUM(L41:AW41)","v":2},{"$f":"COUNT(L41:AW41)","v":1},null,null,null,2]
["Feminino","-57",37,148745,{"$f":"COUNTIF(D:D,D42)","v":1},"Mara Baptista",2000,"Coimbra","Judo Clube de Coimbra",{"$f":"SUM(L42:AW42)","v":2},{"$f":"COUNT(L42:AW42)","v":1},null,null,null,null,null,null,null,null,null,null,null,null,null,null,null,null,null,null,null,null,2]
["Feminino","-57",38,148565,{"$f":"COUNTIF(D:D,D43)","v":1},"Sofia Silva",2001,"Lisboa","C.C.D. - Judo Clube de Lisboa",{"$f":"SUM(L43:AW43)","v":2},{"$f":"COUNT(L43:AW43)","v":2},1,null,null,null,null,null,null,1]
["Feminino","-57",39,150266,{"$f":"COUNTIF(D:D,D44)","v":1},"Sara Queimado",2000,"Setúbal","Centro Cultural e Recreativo do Alto do Moinho",{"$f":"SUM(L44:AW44)","v":2},{"$f":"COUNT(L44:AW44)","v":2},null,null,null,null,null,null,null,null,null,null,null,1,null,null,null,null,1]
["Feminino","-57",40,139768,{"$f":"COUNTIF(D:D,D45)","v":1},"Catarina Graça",2001,"Lisboa","Escola de Judo Nuno Delgado",{"$f":"SUM(L45:AW45)","v":1},{"$f":"COUNT(L45:AW45)","v":1},1]
["Feminino","-57",41,138033,{"$f":"COUNTIF(D:D,D46)","v":1},"Bianca Fontes",2001,"Coimbra","Casa do Povo de Miranda do Corvo",{"$f":"SUM(L46:AW46)","v":1},{"$f":"COUNT(L46:AW46)","v":1},null,null,null,null,null,null,null,1]
["Feminino","-57",42,133756,{"$f":"COUNTIF(D:D,D47)","v":1},"Mónica Maia",2001,"I.Terceira","Clube de Judo Praia da Vitória",{"$f":"SUM(L47:AW47)","v":1},{"$f":"COUNT(L47:AW47)","v":1},null,null,null,null,null,1]
["Feminino","-57",43,149782,{"$f":"COUNTIF(D:D,D48)","v":1},"Paula Nascimento",2000,"Madeira","Clube de Judo Brava",{"$f":"SUM(L48:AW48)","v":1},{"$f":"COUNT(L48:AW48)","v":1},null,null,null,null,null,null,null,null,null,null,null,null,null,null,1]
["Feminino","-57",44,148632,{"$f":"COUNTIF(D:D,D49)","v":1},"Salomé Miranda",2000,"Beja","Associacao Bombeiros Voluntarios de Beja",{"$f":"SUM(L49:AW49)","v":1},{"$f":"COUNT(L49:AW49)","v":1},null,null,null,null,null,null,null,null,null,null,null,null,null,null,null,null,1]
["Feminino","-57",45,151134,{"$f":"COUNTIF(D:D,D50)","v":1},"Andreia Piedade",2001,"Portalegre","Casa do Povo de Campo Maior",{"$f":"SUM(L50:AW50)","v":1},{"$f":"COUNT(L50:AW50)","v":1},null,null,null,null,null,null,null,null,null,null,null,null,null,null,null,1]
["Feminino","-57",46,123357,{"$f":"COUNTIF(D:D,D51)","v":1},"Maria Gorjão",2001,"Santarém","Clube de Judo de Riachos",{"$f":"SUM(L51:AW51)","v":1},{"$f":"COUNT(L51:AW51)","v":1},null,null,null,null,null,null,null,null,null,null,null,null,null,null,null,null,null,null,null,null,1]
["Feminino","-57",47,132613,{"$f":"COUNTIF(D:D,D52)","v":1},"Joana Crisóstomo",2001,"Lisboa","Universidade Lusofona de Humanidades de Tecnologias",{"$f":"SUM(L52:AW52)","v":0},{"$f":"COUNT(L52:AW52)","v":0}]
["Feminino","-57",48,120388,{"$f":"COUNTIF(D:D,D53)","v":1},"Beatriz Lopes",2001,"Braga","Associação Desportiva e Cultural Manhente",{"$f":"SUM(L53:AW53)","v":0},{"$f":"COUNT(L53:AW53)","v":0}]
["Feminino","-57",49,113393,{"$f":"COUNTIF(D:D,D54)","v":1},"Catarina Cardoso",2000,"Açores","Clube de Judo Angra do Heroismo",{"$f":"SUM(L54:AW54)","v":0},{"$f":"COUNT(L54:AW54)","v":0}]
["Feminino","-57",50,112518,{"$f":"COUNTIF(D:D,D55)","v":1},"Marta Simões",2000,"Coimbra","Escola de Judo de Coimbra",{"$f":"SUM(L55:AW55)","v":0},{"$f":"COUNT(L55:AW55)","v":0}]
["Feminino","-57",51,null,{"$f":"COUNTIF(D:D,D56)","v":0},null,null,null,null,{"$f":"SUM(L56:AW56)","v":0},{"$f":"COUNT(L56:AW56)","v":0}]
["Feminino","-57",52,null,0,null,null,null,null,0,0]
["Feminino","-57",53,null,0,null,null,null,null,0,0]
["Feminino","-57",54,null,0,null,null,null,null,0,0]
["Feminino","-57",55,null,0,null,null,null,null,0,0]

{"sheet":"-63","index":16,"n_rows":45,"n_cols":45,"rows_kept":45,"cut":false,"hidden":false,"merged":[]}
[null,null,null,null,null,null,null,null,"CADETES"]
[null,null,null,null,null,null,null,null,"-63KG ",null,null,"LISBOA","CASTELO BRANCO","COIMBRA","SETÚBAL","VIANA CASTELO","I.TERCEIRA","COIMBRA","SANTARÉM","LISBOA","MADEIRA","AÇORES","SETÚBAL","COIMBRA","LISBOA","MADEIRA","C.BRANCO","SETÚBAL","VISEU","SANTARÉM","AÇORES","FPJ","Leiria","Lisboa","Castelo Branco","Coimbra","Leiria","Setúbal","Coimbra","V. Castelo","Santarém","Lisboa","Madeira","Setúbal","Coimbra"]
[null,null,null,null,null,null,null,null,null,null,null,"2016-04-09","2016-04-17","2016-04-30","2016-04-30","2016-06-18","2016-06-25","2016-06-26","2016-07-03","2016-10-22","2016-11-12","2016-11-19","2016-11-19","2016-12-17","2017-01-14","2017-01-14","2017-01-21","2017-01-21","2017-01-21","2017-01-21","2017-01-21","2017-02-11","2017-02-18","2017-04-01","2017-04-22","2017-04-29","2017-04-29","2017-05-13","2017-06-17","2017-06-17","2017-07-02","2017-11-11","2017-11-11","2017-11-18","2017-12-16"]
["Género","Categoria",null,"LF",null,"NOME","Ano de Nascimento","Associação","CLUBE","Somatório de pontos","Número de provas","OPEN CADETES","OPEN MESTRE ANTONIO MORAIS","OPEN INT. CIDADE BARCELOS","OPEN MONTIJO CADETES","OPEN INT. CIDADE DE VALENÇA","TORNEIO DE SÃO JOÃO","TAÇA ANTONIO ALEIXO","OPEN INT. ADJ SANTARÉM","OPEN CADETES","OPEN CADETES","OPEN PONTA DELGADA","OPEN PRAGAL","OPEN CADETES","Zonal de Cadetes","Zonal de Cadetes","Zonal de Cadetes","Zonal de Cadetes","Zonal de Cadetes","Zonal de Cadetes","Zonal de Cadetes","Camp.Nac. Cadetes","Torneio Associativo","Open Cadetes","Open Cadetes \"Mestre António Morais\"","OPEN INT. CIDADE BARCELOS","Torneio Associativo","Taça Cidade do Montijo","V Taça António Lopes Aleixo","III Open Int. Eurocidade Valença Tui","V Open Int. Cadetes","Open Cadetes","Open Cadetes","Torneio Aniversário JC Pragal","Open Cadetes"]
[]
["Feminino","-63",1,132613,{"$f":"COUNTIF(D:D,D6)","v":1},"Joana Crisóstomo",2001,"Lisboa","Universidade Lusofona de Humanidades de Tecnologias",{"$f":"SUM(L6:AW6)","v":87},{"$f":"COUNT(L6:AW6)","v":9},6,10,null,11,null,null,null,10,10,null,null,11,6,6,null,null,null,null,null,null,17]
["Feminino","-63",2,135308,{"$f":"COUNTIF(D:D,D7)","v":1},"Beatriz Martins",2000,"Setúbal","Vitoria Futebol Clube",{"$f":"SUM(L7:AW7)","v":36},{"$f":"COUNT(L7:AW7)","v":5},null,null,null,7,null,null,null,7,2,null,null,null,null,null,null,null,10,null,null,null,10]
["Feminino","-63",3,134930,{"$f":"COUNTIF(D:D,D8)","v":1},"Renata Fernandes",2001,"Aveiro","Sport Clube Beira Mar",{"$f":"SUM(L8:AW8)","v":29},{"$f":"COUNT(L8:AW8)","v":7},3,4,6,null,10,null,null,3,null,null,null,null,null,null,null,null,null,1,null,null,2]
["Feminino","-63",4,116713,{"$f":"COUNTIF(D:D,D9)","v":1},"Alice Pereira",2002,"Lisboa","Escola de Judo Nuno Delgado",{"$f":"SUM(L9:AW9)","v":27},{"$f":"COUNT(L9:AW9)","v":4},null,null,null,null,null,null,null,null,5,null,null,5,null,4,null,null,null,null,null,null,13]
["Feminino","-63",5,108014,{"$f":"COUNTIF(D:D,D10)","v":1},"Eduarda Mendes",2001,"Leiria","Clube de Judo do Dragão",{"$f":"SUM(L10:AW10)","v":17},{"$f":"COUNT(L10:AW10)","v":2},null,null,null,null,null,null,null,null,null,null,null,null,null,null,null,null,null,null,7,null,10]
["Feminino","-63",6,113362,{"$f":"COUNTIF(D:D,D11)","v":1},"Mariana Dias",2001,"Açores","Judo Clube Ramo Grande",{"$f":"SUM(L11:AW11)","v":15},{"$f":"COUNT(L11:AW11)","v":4},null,null,null,2,null,null,null,null,null,null,null,1,null,null,null,null,null,null,null,6,6]
["Feminino","-63",7,131923,{"$f":"COUNTIF(D:D,D12)","v":1},"Marta Loureiro",2002,"Lisboa","Sport Lisboa e Benfica",{"$f":"SUM(L12:AW12)","v":14},{"$f":"COUNT(L12:AW12)","v":4},null,null,null,null,null,null,null,null,6,null,null,4,1,null,null,null,null,null,null,null,3]
["Feminino","-63",8,141565,{"$f":"COUNTIF(D:D,D13)","v":1},"Melissa Colaço",2000,"Setúbal","Judo Clube Pragal",{"$f":"SUM(L13:AW13)","v":14},{"$f":"COUNT(L13:AW13)","v":5},null,null,null,1,null,null,null,1,null,null,null,4,null,null,null,null,7,null,null,null,1]
["Feminino","-63",9,120388,{"$f":"COUNTIF(D:D,D14)","v":1},"Beatriz Lopes",2001,"Braga","Associação Desportiva e Cultural Manhente",{"$f":"SUM(L14:AW14)","v":12},{"$f":"COUNT(L14:AW14)","v":3},null,null,4,null,4,null,null,null,null,null,null,null,null,null,null,null,null,null,null,null,4]
["Feminino","-63",10,115453,{"$f":"COUNTIF(D:D,D15)","v":1},"Margarida Freitas",2001,"Madeira","Grupo Desportivo APEL",{"$f":"SUM(L15:AW15)","v":12},{"$f":"COUNT(L15:AW15)","v":4},null,null,null,null,null,null,null,null,3,6,null,null,null,null,1,null,null,null,null,null,2]
["Feminino","-63",11,133461,{"$f":"COUNTIF(D:D,D16)","v":1},"Joana Bastos",2002,"Lisboa","Academia de Judo da Amadora",{"$f":"SUM(L16:AW16)","v":12},{"$f":"COUNT(L16:AW16)","v":4},null,null,null,null,null,null,null,null,2,null,null,2,null,1,null,null,null,null,null,null,7]
["Feminino","-63",12,112264,{"$f":"COUNTIF(D:D,D17)","v":1},"Beatriz Barata",2000,"Lisboa","Escola de Judo Nuno Delgado",{"$f":"SUM(L17:AW17)","v":11},{"$f":"COUNT(L17:AW17)","v":1},11]
["Feminino","-63",13,121382,{"$f":"COUNTIF(D:D,D18)","v":1},"Beatriz Macedo",2000,"Braga","Associação Desportiva e Cultural Manhente",{"$f":"SUM(L18:AW18)","v":10},{"$f":"COUNT(L18:AW18)","v":3},null,null,null,null,6,null,null,1,null,null,null,null,null,null,null,null,null,null,null,null,3]
["Feminino","-63",14,127943,{"$f":"COUNTIF(D:D,D19)","v":1},"Leonor Costa",2001,"Lisboa","Sport Lisboa e Benfica",{"$f":"SUM(L19:AW19)","v":7},{"$f":"COUNT(L19:AW19)","v":3},1,null,null,3,null,null,null,3]
["Feminino","-63",15,106115,{"$f":"COUNTIF(D:D,D20)","v":1},"Maria Bernardo",2000,"Açores","Judo Clube da Ribeira Grande",{"$f":"SUM(L20:AW20)","v":6},{"$f":"COUNT(L20:AW20)","v":1},null,null,null,null,null,null,null,null,null,null,6]
["Feminino","-63",16,136613,{"$f":"COUNTIF(D:D,D21)","v":1},"Marta Neto",2000,"Leiria","Judo Clube da Marinha Grande",{"$f":"SUM(L21:AW21)","v":6},{"$f":"COUNT(L21:AW21)","v":2},null,null,null,null,null,null,null,null,null,null,null,null,null,null,null,null,null,null,5,null,1]
["Feminino","-63",17,122374,{"$f":"COUNTIF(D:D,D22)","v":1},"Constança Bettencourt",2002,"Açores","Clube de Judo de Angra do Heroísmo",{"$f":"SUM(L22:AW22)","v":5},{"$f":"COUNT(L22:AW22)","v":2},null,null,null,null,null,null,null,null,null,null,null,null,null,null,null,null,null,null,null,4,1]
["Feminino","-63",18,146272,{"$f":"COUNTIF(D:D,D23)","v":1},"Raquel Sequeira",2001,"Setúbal","Clube Recreativo Charnequense",{"$f":"SUM(L23:AW23)","v":5},{"$f":"COUNT(L23:AW23)","v":4},null,1,null,null,null,null,null,null,null,null,null,1,null,null,null,null,1,null,null,null,2]
["Feminino","-63",19,122313,{"$f":"COUNTIF(D:D,D24)","v":1},"Beatriz Romana",2001,"Santarém","Ateneu Artístico Cartxense",{"$f":"SUM(L24:AW24)","v":4},{"$f":"COUNT(L24:AW24)","v":2},null,null,null,null,null,null,null,null,null,null,null,null,null,null,null,null,null,null,3,null,1]
["Feminino","-63",20,146813,1,"Sara Branco",2001,"V.Castelo","Judo Clube Valença (Juvalença)",{"$f":"SUM(L25:AW25)","v":3},{"$f":"COUNT(L25:AW25)","v":1},null,null,null,null,3]
["Feminino","-63",21,111685,{"$f":"COUNTIF(D:D,D26)","v":1},"Ana Moura",2001,"C.Branco","Escola de Judo Ana Hormigo",{"$f":"SUM(L26:AW26)","v":3},{"$f":"COUNT(L26:AW26)","v":1},null,3]
["Feminino","-63",22,136354,{"$f":"COUNTIF(D:D,D27)","v":1},"Maria Ulrich",2002,"Algarve","Unbreakable Force - Associação Desportiva e Cultural",{"$f":"SUM(L27:AW27)","v":3},{"$f":"COUNT(L27:AW27)","v":1},null,null,null,null,null,null,null,null,null,null,null,null,null,null,null,null,3]
["Feminino","-63",23,151238,{"$f":"COUNTIF(D:D,D28)","v":1},"Beatriz Anacleto",2001,"Setúbal","Grupo amigos Costa da Caparica",{"$f":"SUM(L28:AW28)","v":3},{"$f":"COUNT(L28:AW28)","v":1},null,null,null,null,null,null,null,null,null,null,null,null,null,null,null,null,3]
["Feminino","-63",24,132317,{"$f":"COUNTIF(D:D,D29)","v":1},"Vera Ferreira",2001,"Lisboa","Judo Clube Portugal",{"$f":"SUM(L29:AW29)","v":3},{"$f":"COUNT(L29:AW29)","v":2},1,2]
["Feminino","-63",25,117025,{"$f":"COUNTIF(D:D,D30)","v":1},"Alicia Frango",2000,"Algarve","Judo Clube Albufeira",{"$f":"SUM(L30:AW30)","v":2},{"$f":"COUNT(L30:AW30)","v":1},2]
["Feminino","-63",26,145112,{"$f":"COUNTIF(D:D,D31)","v":1},"Maria Pires",2000,"Algarve","Academia Chushin Associação",{"$f":"SUM(L31:AW31)","v":2},{"$f":"COUNT(L31:AW31)","v":2},null,1,null,1]
["Feminino","-63",27,139982,{"$f":"COUNTIF(D:D,D32)","v":1},"Beatriz Gonçalves",2002,"Santarém","Sociedade Filarmonica Gualdim Pais",{"$f":"SUM(L32:AW32)","v":2},{"$f":"COUNT(L32:AW32)","v":2},null,null,null,null,null,null,null,null,1,null,null,null,null,null,null,null,null,null,1]
["Feminino","-63",28,133326,{"$f":"COUNTIF(D:D,D33)","v":1},"Carolina Maia",2001,"I.Terceira","Clube de Judo Praia da Vitória",{"$f":"SUM(L33:AW33)","v":1},{"$f":"COUNT(L33:AW33)","v":1},null,null,null,null,null,1]
["Feminino","-63",29,144855,{"$f":"COUNTIF(D:D,D34)","v":1},"Ana Ribeiro",2000,"Aveiro","Associação 4Judo Project",{"$f":"SUM(L34:AW34)","v":1},{"$f":"COUNT(L34:AW34)","v":1},null,null,1]
["Feminino","-63",30,129891,{"$f":"COUNTIF(D:D,D35)","v":1},"Beatriz Rocha",2001,"Madeira","Judo Clube Madeira",{"$f":"SUM(L35:AW35)","v":1},{"$f":"COUNT(L35:AW35)","v":1},null,null,null,null,null,null,null,null,null,1]
["Feminino","-63",31,137698,{"$f":"COUNTIF(D:D,D36)","v":1},"Claudia Calado",2002,"Açores","JUDOLAG - Judo Clube Lagoa",{"$f":"SUM(L36:AW36)","v":1},{"$f":"COUNT(L36:AW36)","v":1},null,null,null,null,null,null,null,null,null,null,null,null,null,null,null,null,null,null,null,1]
["Feminino","-63",32,148633,{"$f":"COUNTIF(D:D,D37)","v":1},"Ana Morais",2000,"Beja","Associacao Bombeiros Voluntarios de Beja",{"$f":"SUM(L37:AW37)","v":1},{"$f":"COUNT(L37:AW37)","v":1},null,null,null,null,null,null,null,null,null,null,null,null,null,null,null,null,1]
["Feminino","-63",33,139468,{"$f":"COUNTIF(D:D,D38)","v":1},"Maria Ribeiro",2002,"Braga","ARCAP - Associação Recreativa e Cultural \"Amigos da Ponte\"",{"$f":"SUM(L38:AW38)","v":1},{"$f":"COUNT(L38:AW38)","v":1},null,null,null,null,null,null,null,null,null,null,null,null,null,null,null,null,null,null,null,null,1]
["Feminino","-63",34,121324,{"$f":"COUNTIF(D:D,D39)","v":1},"Érica Loureiro",2002,"Ilha Terceira","Clube de Judo da Praia da Vitória",{"$f":"SUM(L39:AW39)","v":1},{"$f":"COUNT(L39:AW39)","v":1},null,null,null,null,null,null,null,null,null,null,null,null,null,null,null,null,null,null,null,null,1]
["Feminino","-63",35,148632,{"$f":"COUNTIF(D:D,D40)","v":1},"Salomé Miranda",2000,"Beja","Associacao Bombeiros Voluntarios de Beja",{"$f":"SUM(L40:AW40)","v":1},{"$f":"COUNT(L40:AW40)","v":1},null,null,null,null,null,null,null,null,null,null,null,null,null,null,null,null,null,null,null,null,1]
["Feminino","-63",36,144578,{"$f":"COUNTIF(D:D,D41)","v":1},"Iris Conceição",2001,"Lisboa","Sport Lisboa e Benfica",{"$f":"SUM(L41:AW41)","v":0},{"$f":"COUNT(L41:AW41)","v":0}]
["Feminino","-63",37,123351,{"$f":"COUNTIF(D:D,D42)","v":1},"Patrícia Nunes",2000,"Santarém","Clube de Judo de Riachos",{"$f":"SUM(L42:AW42)","v":0},{"$f":"COUNT(L42:AW42)","v":0}]
["Feminino","-63",38,132977,{"$f":"COUNTIF(D:D,D43)","v":1},"Raquel Miranda",2000,"Braga","Associação Desportiva e Cultural Manhente",{"$f":"SUM(L43:AW43)","v":0},{"$f":"COUNT(L43:AW43)","v":0}]
["Feminino","-63",39,null,{"$f":"COUNTIF(D:D,D44)","v":0},null,null,null,null,{"$f":"SUM(L44:AW44)","v":0},{"$f":"COUNT(L44:AW44)","v":0}]
["Feminino","-63",40,null,0,null,null,null,null,0,0]

{"sheet":"-70","index":17,"n_rows":31,"n_cols":45,"rows_kept":31,"cut":false,"hidden":false,"merged":[]}
[null,null,null,null,null,null,null,null,"CADETES"]
[null,null,null,null,null,null,null,null,"-70KG ",null,null,"LISBOA","CASTELO BRANCO","COIMBRA","SETÚBAL","VIANA CASTELO","I.TERCEIRA","COIMBRA","SANTARÉM","LISBOA","MADEIRA","AÇORES","SETÚBAL","COIMBRA","LISBOA","MADEIRA","C.BRANCO","SETÚBAL","VISEU","SANTARÉM","AÇORES","FPJ","Leiria","Lisboa","Castelo Branco","Coimbra","Leiria","Setúbal","Coimbra","V. Castelo","Santarém","Lisboa","Madeira","Setúbal","Coimbra"]
[null,null,null,null,null,null,null,null,null,null,null,"2016-04-09","2016-04-17","2016-04-30","2016-04-30","2016-06-18","2016-06-25","2016-06-26","2016-07-03","2016-10-22","2016-11-12","2016-11-19","2016-11-19","2016-12-17","2017-01-14","2017-01-14","2017-01-21","2017-01-21","2017-01-21","2017-01-21","2017-01-21","2017-02-11","2017-02-18","2017-04-01","2017-04-22","2017-04-29","2017-04-29","2017-05-13","2017-06-17","2017-06-17","2017-07-02","2017-11-11","2017-11-11","2017-11-18","2017-12-16"]
["Género","Categoria",null,"LF",null,"NOME","Ano de Nascimento","Associação","CLUBE","Somatório de pontos","Número de provas","OPEN CADETES","OPEN MESTRE ANTONIO MORAIS","OPEN INT. CIDADE BARCELOS","OPEN MONTIJO CADETES","OPEN INT. CIDADE DE VALENÇA","TORNEIO DE SÃO JOÃO","TAÇA ANTONIO ALEIXO","OPEN INT. ADJ SANTARÉM","OPEN CADETES","OPEN CADETES","OPEN PONTA DELGADA","OPEN PRAGAL","OPEN CADETES","Zonal de Cadetes","Zonal de Cadetes","Zonal de Cadetes","Zonal de Cadetes","Zonal de Cadetes","Zonal de Cadetes","Zonal de Cadetes","Camp.Nac. Cadetes","Torneio Associativo","Open Cadetes","Open Cadetes \"Mestre António Morais\"","OPEN INT. CIDADE BARCELOS","Torneio Associativo","Taça Cidade do Montijo","V Taça António Lopes Aleixo","III Open Int. Eurocidade Valença Tui","V Open Int. Cadetes","Open Cadetes","Open Cadetes","Torneio Aniversário JC Pragal","Open Cadetes"]
[]
["Feminino","-70",1,120609,{"$f":"COUNTIF(D:D,D6)","v":1},"Carolina Paiva",2002,"Lisboa","Universidade Lusofona de Humanidades de Tecnologias",{"$f":"SUM(L6:AG6)","v":32},{"$f":"COUNT(L6:AH6)","v":5},null,null,null,null,null,null,null,null,5,null,null,2,6,7,null,null,null,null,null,null,12]
["Feminino","-70",2,130959,{"$f":"COUNTIF(D:D,D7)","v":1},"Ana Oliveira",2000,"Lisboa","Oficinas de São José",{"$f":"SUM(L7:AG7)","v":32},{"$f":"COUNT(L7:AH7)","v":7},4,4,null,null,null,null,null,1,7,null,null,4,null,3,null,null,null,null,null,null,9]
["Feminino","-70",3,145524,{"$f":"COUNTIF(D:D,D8)","v":1},"Catarina Santos",2002,"Coimbra","Associação Académica de Coimbra",{"$f":"SUM(L8:AG8)","v":13},{"$f":"COUNT(L8:AH8)","v":2},null,null,null,null,null,null,null,null,null,null,null,null,null,null,null,null,null,null,6,null,7]
["Feminino","-70",4,132317,{"$f":"COUNTIF(D:D,D9)","v":1},"Vera Ferreira",2001,"Lisboa","Judo Clube Portugal",{"$f":"SUM(L9:AG9)","v":12},{"$f":"COUNT(L9:AH9)","v":4},null,null,null,null,null,null,null,null,1,null,null,5,null,5,null,null,null,null,null,null,1]
["Feminino","-70",5,138904,{"$f":"COUNTIF(D:D,D10)","v":1},"Mónica Amaral",2000,"Açores","Judo Clube São Jorge",{"$f":"SUM(L10:AG10)","v":10},{"$f":"COUNT(L10:AH10)","v":2},null,null,null,null,null,null,null,null,null,null,null,null,null,null,null,null,null,null,null,7,3]
["Feminino","-70",6,139982,{"$f":"COUNTIF(D:D,D11)","v":1},"Beatriz Gonçalves",2002,"Santarém","Sociedade Filarmonica Gualdim Pais",{"$f":"SUM(L11:AG11)","v":6},{"$f":"COUNT(L11:AH11)","v":1},null,null,null,null,null,null,null,null,null,null,null,null,null,null,null,null,null,null,null,null,6]
["Feminino","-70",7,118301,{"$f":"COUNTIF(D:D,D12)","v":1},"Tânia Moreno",2001,"I.Terceira","Clube de Judo Praia da Vitória",{"$f":"SUM(L12:AG12)","v":6},{"$f":"COUNT(L12:AH12)","v":2},null,null,null,null,null,null,null,null,null,null,null,null,null,null,null,null,null,null,null,5,1]
["Feminino","-70",8,124697,{"$f":"COUNTIF(D:D,D13)","v":1},"Cláudia Gonçalves",2002,"Braga","Casa do Povo de Ronfe",{"$f":"SUM(L13:AG13)","v":5},{"$f":"COUNT(L13:AH13)","v":2},null,null,null,null,null,null,null,null,null,null,null,null,1,null,null,null,null,null,null,null,4]
["Feminino","-70",9,143674,{"$f":"COUNTIF(D:D,D14)","v":1},"Gabriela Barbosa",2001,"Aveiro","Associação 4Judo Project",{"$f":"SUM(L14:AG14)","v":4},{"$f":"COUNT(L14:AH14)","v":1},null,null,4]
["Feminino","-70",10,144578,{"$f":"COUNTIF(D:D,D15)","v":1},"Iris Conceição",2001,"Lisboa","Sport Lisboa e Benfica",{"$f":"SUM(L15:AG15)","v":4},{"$f":"COUNT(L15:AH15)","v":3},1,1,2]
["Feminino","-70",11,121382,{"$f":"COUNTIF(D:D,D16)","v":1},"Beatriz Macedo",2000,"Braga","Associação Desportiva e Cultural Manhente",{"$f":"SUM(L16:AG16)","v":3},{"$f":"COUNT(L16:AH16)","v":1},null,null,3]
["Feminino","-70",12,136207,{"$f":"COUNTIF(D:D,D17)","v":1},"Catarina Silva",2001,"Santarém","Judo Clube Salvaterra de Magos",{"$f":"SUM(L17:AG17)","v":3},{"$f":"COUNT(L17:AH17)","v":1},null,null,null,null,null,null,null,null,3]
["Feminino","-70",13,126437,{"$f":"COUNTIF(D:D,D18)","v":1},"Carolina Mesquita",2000,"Açores","Judo Clube de S. Jorge",{"$f":"SUM(L18:AG18)","v":3},{"$f":"COUNT(L18:AH18)","v":1},null,null,null,null,null,null,null,null,null,null,null,null,null,null,null,null,null,null,null,3]
["Feminino","-70",14,113680,{"$f":"COUNTIF(D:D,D19)","v":1},"Flávia Costa",2000,"Viseu","Judo clube de Viseu",{"$f":"SUM(L19:AG19)","v":2},{"$f":"COUNT(L19:AH19)","v":2},null,null,null,null,null,null,null,null,null,null,null,null,null,null,null,null,null,1,null,null,1]
["Feminino","-70",15,144969,{"$f":"COUNTIF(D:D,D20)","v":1},"Mariana Santos",2002,"Coimbra","Associação Académica de Coimbra",{"$f":"SUM(L20:AG20)","v":2},{"$f":"COUNT(L20:AH20)","v":2},null,null,null,null,null,null,null,null,null,null,null,null,null,null,null,null,null,null,1,null,1]
["Feminino","-70",16,134930,{"$f":"COUNTIF(D:D,D21)","v":1},"Renata Fernandes",2001,"Aveiro","Sport Clube Beira Mar",{"$f":"SUM(L21:AG21)","v":1},{"$f":"COUNT(L21:AH21)","v":1},null,null,null,null,null,null,1]
["Feminino","-70",17,148889,{"$f":"COUNTIF(D:D,D22)","v":1},"Soraia Sousa",2002,"Lisboa","Clube de Judo da Lourinhã",{"$f":"SUM(L22:AG22)","v":1},{"$f":"COUNT(L22:AH22)","v":1},null,null,null,null,null,null,null,null,null,null,null,null,null,1]
["Feminino","-70",18,138901,{"$f":"COUNTIF(D:D,D23)","v":1},"Matilde Silva",2002,"Açores","Judo Clube de S. Jorge",{"$f":"SUM(L23:AG23)","v":1},{"$f":"COUNT(L23:AH23)","v":1},null,null,null,null,null,null,null,null,null,null,null,null,null,null,null,null,null,null,null,1]
["Feminino","-70",19,118093,{"$f":"COUNTIF(D:D,D24)","v":1},"Andreia Gonçalves",2000,"Braga","Associação Desportiva e Cultural Manhente",{"$f":"SUM(L24:AG24)","v":0},{"$f":"COUNT(L24:AH24)","v":0}]
["Feminino","-70",20,120386,{"$f":"COUNTIF(D:D,D25)","v":1},"Jaqueline Alves",2001,"Braga","Associação Desportiva e Cultural Manhente",{"$f":"SUM(L25:AG25)","v":0},{"$f":"COUNT(L25:AH25)","v":0}]
["Feminino","-70",21,null,{"$f":"COUNTIF(D:D,D26)","v":0},null,null,null,null,{"$f":"SUM(L26:AG26)","v":0},{"$f":"COUNT(L26:AH26)","v":0}]
["Feminino","-70",22,null,0,null,null,null,null,0,0]
["Feminino","-70",23,null,0,null,null,null,null,0,0]
["Feminino","-70",24,null,0,null,null,null,null,0,0]
["Feminino","-70",25,null,0,null,null,null,null,0,0]
["Feminino","-70",26,null,0,null,null,null,null,0,0]

{"sheet":"+70","index":18,"n_rows":17,"n_cols":45,"rows_kept":17,"cut":false,"hidden":false,"merged":[]}
[null,null,null,null,null,null,null,null,"CADETES"]
[null,null,null,null,null,null,null,null,"+70KG ",null,null,"LISBOA","CASTELO BRANCO","COIMBRA","SETÚBAL","VIANA CASTELO","I.TERCEIRA","COIMBRA","SANTARÉM","LISBOA","MADEIRA","AÇORES","SETÚBAL","COIMBRA","LISBOA","MADEIRA","C.BRANCO","SETÚBAL","VISEU","SANTARÉM","AÇORES","FPJ","Leiria","Lisboa","Castelo Branco","Coimbra","Leiria","Setúbal","Coimbra","V. Castelo","Santarém","Lisboa","Madeira","Setúbal","Coimbra"]
[null,null,null,null,null,null,null,null,null,null,null,"2016-04-09","2016-04-17","2016-04-30","2016-04-30","2016-06-18","2016-06-25","2016-06-26","2016-07-03","2016-10-22","2016-11-12","2016-11-19","2016-11-19","2016-12-17","2017-01-14","2017-01-14","2017-01-21","2017-01-21","2017-01-21","2017-01-21","2017-01-21","2017-02-11","2017-02-18","2017-04-01","2017-04-22","2017-04-29","2017-04-29","2017-05-13","2017-06-17","2017-06-17","2017-07-02","2017-11-11","2017-11-11","2017-11-18","2017-12-16"]
["Género","Categoria",null,"LF",null,"NOME","Ano de Nascimento","Associação","CLUBE","Somatório de Pontos","Número de provas","OPEN CADETES","OPEN MESTRE ANTONIO MORAIS","OPEN INT. CIDADE BARCELOS","OPEN MONTIJO CADETES","OPEN INT. CIDADE DE VALENÇA","TORNEIO DE SÃO JOÃO","TAÇA ANTONIO ALEIXO","OPEN INT. ADJ SANTARÉM","OPEN CADETES","OPEN CADETES","OPEN PONTA DELGADA","OPEN PRAGAL","OPEN CADETES","Zonal de Cadetes","Zonal de Cadetes","Zonal de Cadetes","Zonal de Cadetes","Zonal de Cadetes","Zonal de Cadetes","Zonal de Cadetes","Camp.Nac. Cadetes","Torneio Associativo","Open Cadetes","Open Cadetes \"Mestre António Morais\"","OPEN INT. CIDADE BARCELOS","Torneio Associativo","Taça Cidade do Montijo","V Taça António Lopes Aleixo","III Open Int. Eurocidade Valença Tui","V Open Int. Cadetes","Open Cadetes","Open Cadetes","Torneio Aniversário JC Pragal","Open Cadetes"]
[]
["Feminino","+70",1,106571,{"$f":"COUNTIF(D:D,D6)","v":1},"Aida Simão",2001,"Santarém","Sporting Clube Tomar",{"$f":"SUM(L6:AW6)","v":25},{"$f":"COUNT(L6:AW6)","v":4},5,null,null,null,null,null,null,null,6,null,null,null,7,null,null,null,null,null,7]
["Feminino","+70",2,143674,{"$f":"COUNTIF(D:D,D7)","v":1},"Gabriela Barbosa",2001,"Aveiro","Associação 4Judo Project",{"$f":"SUM(L7:AW7)","v":15},{"$f":"COUNT(L7:AW7)","v":2},null,null,null,null,null,null,null,null,null,null,null,null,9,null,null,null,null,6]
["Feminino","+70",3,134080,{"$f":"COUNTIF(D:D,D8)","v":1},"Fátima Andrade",2001,"Madeira","Judo Clube Madeira",{"$f":"SUM(L8:AW8)","v":11},{"$f":"COUNT(L8:AW8)","v":5},3,null,null,2,null,null,null,null,4,1,null,null,null,null,1]
["Feminino","+70",4,145426,{"$f":"COUNTIF(D:D,D9)","v":1},"Íris Paulo",2001,"Coimbra","Casa do Povo de Miranda do Corvo",{"$f":"SUM(L9:AW9)","v":10},{"$f":"COUNT(L9:AW9)","v":4},null,null,null,null,null,null,1,1,null,null,null,null,4,null,null,null,null,null,4]
["Feminino","+70",5,129242,{"$f":"COUNTIF(D:D,D10)","v":1},"Beatriz Moreira",2002,"Coimbra","Associação Academica de Coimbra",{"$f":"SUM(L10:AW10)","v":7},{"$f":"COUNT(L10:AW10)","v":2},null,null,null,null,null,null,null,null,null,null,null,null,1,null,null,null,null,null,6]
["Feminino","+70",6,130959,{"$f":"COUNTIF(D:D,D11)","v":1},"Ana Oliveira",2000,"Lisboa","Oficinas de São José",{"$f":"SUM(L11:AW11)","v":6},{"$f":"COUNT(L11:AW11)","v":1},null,null,null,6]
["Feminino","+70",7,147497,{"$f":"COUNTIF(D:D,D12)","v":1},"Maria Pereira",2002,"Lisboa","Sport Lisboa e Benfica",{"$f":"SUM(L12:AW12)","v":3},{"$f":"COUNT(L12:AW12)","v":1},null,null,null,null,null,null,null,null,null,null,null,null,3]
["Feminino","+70",8,118093,{"$f":"COUNTIF(D:D,D13)","v":1},"Andreia Gonçalves",2000,"Braga","Associação Desportiva e Cultural Manhente",{"$f":"SUM(L13:AW13)","v":2},{"$f":"COUNT(L13:AW13)","v":1},null,null,null,null,null,null,null,null,null,null,null,null,null,null,null,null,null,null,2]
["Feminino","+70",9,149418,{"$f":"COUNTIF(D:D,D14)","v":1},"Ana Prestes",2002,"Coimbra","Escola de Judo de Coimbra",{"$f":"SUM(L14:AW14)","v":2},{"$f":"COUNT(L14:AW14)","v":2},null,null,null,null,null,null,null,null,null,null,null,null,1,null,null,null,null,null,1]
["Feminino","+70",10,131812,{"$f":"COUNTIF(D:D,D15)","v":1},"Isabel Carvalho",2002,"Lisboa","Oficinas de São José",{"$f":"SUM(L15:AW15)","v":1},{"$f":"COUNT(L15:AW15)","v":1},null,null,null,null,null,null,null,null,1]
["Feminino","+70",11,149475,{"$f":"COUNTIF(D:D,D16)","v":1},"Cátia Rosa",2001,"Algarve","Judo Clube do Algarve",{"$f":"SUM(L16:AW16)","v":1},{"$f":"COUNT(L16:AW16)","v":1},null,null,null,null,null,null,null,null,null,null,null,null,null,null,null,null,1]
["Feminino","+70",12,139412,{"$f":"COUNTIF(D:D,D17)","v":1},"Jéssica Gonçalves",2002,"V.Castelo","Judo Clube de Valença",{"$f":"SUM(L17:AW17)","v":1},{"$f":"COUNT(L17:AW17)","v":1},null,null,null,null,null,null,null,null,null,null,null,null,null,null,null,null,null,1]

{"sheet":"-78","index":19,"n_rows":19,"n_cols":45,"rows_kept":19,"cut":false,"hidden":false,"merged":[]}
[null,null,null,null,null,null,null,null,"CADETES"]
[null,null,null,null,null,null,null,null,"+70KG ",null,null,"LISBOA","CASTELO BRANCO","COIMBRA","SETÚBAL","VIANA CASTELO","I.TERCEIRA","COIMBRA","SANTARÉM","LISBOA","MADEIRA","AÇORES","SETÚBAL","COIMBRA","LISBOA","MADEIRA","C.BRANCO","SETÚBAL","VISEU","SANTARÉM","AÇORES","FPJ","Leiria","Lisboa","Castelo Branco","Coimbra","Leiria","Setúbal","Coimbra","V. Castelo","Santarém","Lisboa","Madeira","Setúbal","Coimbra"]
[null,null,null,null,null,null,null,null,null,null,null,"2016-04-09","2016-04-17","2016-04-30","2016-04-30","2016-06-18","2016-06-25","2016-06-26","2016-07-03","2016-10-22","2016-11-12","2016-11-19","2016-11-19","2016-12-17","2017-01-14","2017-01-14","2017-01-21","2017-01-21","2017-01-21","2017-01-21","2017-01-21","2017-02-11","2017-02-18","2017-04-01","2017-04-22","2017-04-29","2017-04-29","2017-05-13","2017-06-17","2017-06-17","2017-07-02","2017-11-11","2017-11-11","2017-11-18","2017-12-16"]
["Género","Categoria",null,"LF",null,"NOME","Ano de Nascimento","Associação","CLUBE","Somatório de Pontos","Número de provas","OPEN CADETES","OPEN MESTRE ANTONIO MORAIS","OPEN INT. CIDADE BARCELOS","OPEN MONTIJO CADETES","OPEN INT. CIDADE DE VALENÇA","TORNEIO DE SÃO JOÃO","TAÇA ANTONIO ALEIXO","OPEN INT. ADJ SANTARÉM","OPEN CADETES","OPEN CADETES","OPEN PONTA DELGADA","OPEN PRAGAL","OPEN CADETES","Zonal de Cadetes","Zonal de Cadetes","Zonal de Cadetes","Zonal de Cadetes","Zonal de Cadetes","Zonal de Cadetes","Zonal de Cadetes","Camp.Nac. Cadetes","Torneio Associativo","Open Cadetes","Open Cadetes \"Mestre António Morais\"","OPEN INT. CIDADE BARCELOS","Torneio Associativo","Taça Cidade do Montijo","V Taça António Lopes Aleixo","III Open Int. Eurocidade Valença Tui","V Open Int. Cadetes","Open Cadetes","Open Cadetes","Torneio Aniversário JC Pragal","Open Cadetes"]
[]
["Feminino","-78",1,134080,{"$f":"COUNTIF(D:D,D6)","v":1},"Fátima Andrade",2001,"Madeira","Judo Clube Madeira",{"$f":"SUM(L6:AW6)","v":10},{"$f":"COUNT(L6:AW6)","v":1},null,null,null,null,null,null,null,null,null,null,null,null,null,null,null,null,null,null,null,null,10]
["Feminino","-78",2,129242,{"$f":"COUNTIF(D:D,D7)","v":1},"Beatriz Moreira",2002,"Coimbra","Associação Academica de Coimbra",{"$f":"SUM(L7:AW7)","v":7},{"$f":"COUNT(L7:AW7)","v":1},null,null,null,null,null,null,null,null,null,null,null,null,null,null,null,null,null,null,null,null,7]
["Feminino","-78",3,145426,{"$f":"COUNTIF(D:D,D8)","v":1},"Íris Paulo",2001,"Coimbra","Casa do Povo de Miranda do Corvo",{"$f":"SUM(L8:AW8)","v":4},{"$f":"COUNT(L8:AW8)","v":1},null,null,null,null,null,null,null,null,null,null,null,null,null,null,null,null,null,null,null,null,4]
["Feminino","-78",4,143674,{"$f":"COUNTIF(D:D,D9)","v":1},"Gabriela Barbosa",2001,"Aveiro","Associação 4Judo Project",{"$f":"SUM(L9:AW9)","v":3},{"$f":"COUNT(L9:AW9)","v":1},null,null,null,null,null,null,null,null,null,null,null,null,null,null,null,null,null,null,null,null,3]
["Feminino","-78",5,120386,{"$f":"COUNTIF(D:D,D10)","v":1},"Jaqueline Alves",2001,"Braga","Associação Desportiva e Cultural Manhente",{"$f":"SUM(L10:AW10)","v":3},{"$f":"COUNT(L10:AW10)","v":1},null,null,null,null,null,null,null,null,null,null,null,null,null,null,null,null,null,null,null,null,3]
["Feminino","-78",6,131812,{"$f":"COUNTIF(D:D,D11)","v":1},"Isabel Carvalho",2002,"Lisboa","Oficinas de São José",{"$f":"SUM(L11:AW11)","v":1},{"$f":"COUNT(L11:AW11)","v":1},null,null,null,null,null,null,null,null,null,null,null,null,null,null,null,null,null,null,null,null,1]
["Feminino","-78",7,139412,{"$f":"COUNTIF(D:D,D12)","v":1},"Jéssica Gonçalves",2002,"V.Castelo","Judo Clube de Valença",{"$f":"SUM(L12:AW12)","v":1},{"$f":"COUNT(L12:AW12)","v":1},null,null,null,null,null,null,null,null,null,null,null,null,null,null,null,null,null,null,null,null,1]
["Feminino","-78",8,null,{"$f":"COUNTIF(D:D,D13)","v":0},null,null,null,null,{"$f":"SUM(L13:AW13)","v":0},{"$f":"COUNT(L13:AW13)","v":0}]
["Feminino","-78",9,null,0,null,null,null,null,0,0]
["Feminino","-78",10,null,0,null,null,null,null,0,0]
["Feminino","-78",11,null,0,null,null,null,null,0,0]
["Feminino","-78",12,null,0,null,null,null,null,0,0]
["Feminino","-78",13,null,0,null,null,null,null,0,0]
["Feminino","-78",14,null,0,null,null,null,null,0,0]

{"sheet":"+78","index":20,"n_rows":19,"n_cols":45,"rows_kept":19,"cut":false,"hidden":false,"merged":[]}
[null,null,null,null,null,null,null,null,"CADETES"]
[null,null,null,null,null,null,null,null,"+70KG ",null,null,"LISBOA","CASTELO BRANCO","COIMBRA","SETÚBAL","VIANA CASTELO","I.TERCEIRA","COIMBRA","SANTARÉM","LISBOA","MADEIRA","AÇORES","SETÚBAL","COIMBRA","LISBOA","MADEIRA","C.BRANCO","SETÚBAL","VISEU","SANTARÉM","AÇORES","FPJ","Leiria","Lisboa","Castelo Branco","Coimbra","Leiria","Setúbal","Coimbra","V. Castelo","Santarém","Lisboa","Madeira","Setúbal","Coimbra"]
[null,null,null,null,null,null,null,null,null,null,null,"2016-04-09","2016-04-17","2016-04-30","2016-04-30","2016-06-18","2016-06-25","2016-06-26","2016-07-03","2016-10-22","2016-11-12","2016-11-19","2016-11-19","2016-12-17","2017-01-14","2017-01-14","2017-01-21","2017-01-21","2017-01-21","2017-01-21","2017-01-21","2017-02-11","2017-02-18","2017-04-01","2017-04-22","2017-04-29","2017-04-29","2017-05-13","2017-06-17","2017-06-17","2017-07-02","2017-11-11","2017-11-11","2017-11-18","2017-12-16"]
["Género","Categoria",null,"LF",null,"NOME","Ano de Nascimento","Associação","CLUBE","Somatório de Pontos","Número de provas","OPEN CADETES","OPEN MESTRE ANTONIO MORAIS","OPEN INT. CIDADE BARCELOS","OPEN MONTIJO CADETES","OPEN INT. CIDADE DE VALENÇA","TORNEIO DE SÃO JOÃO","TAÇA ANTONIO ALEIXO","OPEN INT. ADJ SANTARÉM","OPEN CADETES","OPEN CADETES","OPEN PONTA DELGADA","OPEN PRAGAL","OPEN CADETES","Zonal de Cadetes","Zonal de Cadetes","Zonal de Cadetes","Zonal de Cadetes","Zonal de Cadetes","Zonal de Cadetes","Zonal de Cadetes","Camp.Nac. Cadetes","Torneio Associativo","Open Cadetes","Open Cadetes \"Mestre António Morais\"","OPEN INT. CIDADE BARCELOS","Torneio Associativo","Taça Cidade do Montijo","V Taça António Lopes Aleixo","III Open Int. Eurocidade Valença Tui","V Open Int. Cadetes","Open Cadetes","Open Cadetes","Torneio Aniversário JC Pragal","Open Cadetes"]
[]
["Feminino","+78",1,106571,{"$f":"COUNTIF(D:D,D6)","v":1},"Aida Simão",2001,"Santarém","Sportiing Clube Tomar",{"$f":"SUM(L6:AW6)","v":7},{"$f":"COUNT(L6:AW6)","v":1},null,null,null,null,null,null,null,null,null,null,null,null,null,null,null,null,null,null,null,null,7]
["Feminino","+78",2,149475,{"$f":"COUNTIF(D:D,D7)","v":1},"Cátia Rosa",2001,"Algarve","Judo Clube do Algarve",{"$f":"SUM(L7:AW7)","v":5},{"$f":"COUNT(L7:AW7)","v":1},null,null,null,null,null,null,null,null,null,null,null,null,null,null,null,null,null,null,null,null,5]
["Feminino","+78",3,147497,{"$f":"COUNTIF(D:D,D8)","v":1},"Maria Pereira",2002,"Lisboa","Sport Lisboa e Benfica",{"$f":"SUM(L8:AW8)","v":3},{"$f":"COUNT(L8:AW8)","v":1},null,null,null,null,null,null,null,null,null,null,null,null,null,null,null,null,null,null,null,null,3]
["Feminino","+78",4,118093,{"$f":"COUNTIF(D:D,D9)","v":1},"Andreia Gonçalves",2000,"Braga","Associação Desportiva e Cultural Manhente",{"$f":"SUM(L9:AW9)","v":1},{"$f":"COUNT(L9:AW9)","v":1},null,null,null,null,null,null,null,null,null,null,null,null,null,null,null,null,null,null,null,null,1]
["Feminino","+78",5,121517,{"$f":"COUNTIF(D:D,D10)","v":1},"Ana Massa",2001,"Açores","Clube Escolar Desp. Da Escola Básica 2 e 3 de Arrifes",{"$f":"SUM(L10:AW10)","v":0},{"$f":"COUNT(L10:AW10)","v":0}]
["Feminino","+78",6,null,{"$f":"COUNTIF(D:D,D11)","v":0},null,null,null,null,{"$f":"SUM(L11:AW11)","v":0},{"$f":"COUNT(L11:AW11)","v":0}]
["Feminino","+78",7,null,0,null,null,null,null,0,0]
["Feminino","+78",8,null,0,null,null,null,null,0,0]
["Feminino","+78",9,null,0,null,null,null,null,0,0]
["Feminino","+78",10,null,0,null,null,null,null,0,0]
["Feminino","+78",11,null,0,null,null,null,null,0,0]
["Feminino","+78",12,null,0,null,null,null,null,0,0]
["Feminino","+78",13,null,0,null,null,null,null,0,0]
["Feminino","+78",14,null,0,null,null,null,null,0,0]

{"sheet":"Parameters","index":21,"n_rows":29,"n_cols":14,"rows_kept":29,"cut":false,"hidden":false,"merged":[[3,3,3,7]]}
[null,null,null,null,null,null,null,null,null,"Version : ",1.1000000000000001]
[null,null,null,null,null,null,null,null,null,"Date :","2016-01-15",null,null,"Shape #1"]
[null,null,null,null,null,null,null,null,null,null,null,null,null,"Title"]
[]
[]
[null,null,null,null,null,null,null,null,null,null,null,null,null,"Shape #2"]
[null,null,null,null,null,null,null,null,null,null,null,null,null,"IJF"]
[]
[]
["Title","LCD de Cadetes"]
["Data ","2016-01-15",null,null,null,null,null,null,null,null,null,null,null,"Shape #3"]
[null,null,null,null,null,null,null,null,null,null,null,null,null,"CatM"]
[]
[]
[]
[]
[]
[null,null,null,null,null,null,null,null,null,null,null,null,null,"Shape #4"]
[null,null,null,null,null,null,null,null,null,null,null,null,null,"CatW"]
[]
[]
[]
[null,null,null,null,null,null,null,null,null,null,null,null,null,"Shape #5"]
[null,null,null,null,null,null,null,null,null,null,null,null,null,"Date"]
[]
[]
["Versions","Date","Author","Updates"]
[]
[1.1000000000000001,"2016-01-15","IR","LCD Template Grafico"]